Workbook

Sheet Main Menu
D1: =HLOOKUP(LangChoice,$AC$3:$AE$67,$AB5+2) -> IEA Balance Builder | L1: Select language / Выберите язык: | AA1: Hide -->: | AF1: <--Hide
D2: =HLOOKUP(LangChoice,$AC$3:$AE$67,$AB6+2) -> Version: | E2: November 2024.1 | G2: original file: | AC2: Language | AF2: Select language / Выберите язык / 选择语言:
D3: =HLOOKUP(LangChoice,$AC$3:$AE$67,$AB7+2) -> Compatible with the joint IEA-Eurostat-UNECE questionnaires collecting data for: 2023 (for use with EXCEL 2007 or more recent version) | L3: English | AC3: English | AD3: Pусский | AF3: 中文
B5: =HLOOKUP(LangChoice,$AC$3:$AE$67,$AB8+2) -> The main purpose of this tool is to build a country energy balance following the IEA methodology. This can be done by: | AB5: 1 | AC5: IEA Balance Builder | AD5: Построитель баланса МЭА | AE5: y
B6: =HLOOKUP(LangChoice,$AC$3:$AE$67,$AB9+2) -> A) by automatically loading data from the IEA data questionnaires (2023 data requested in August 2024) | AB6: 2 | AC6: Version: | AD6: Версия: | AE6: y
B7: B) by manually filling the "Data in physical units" and "Conversion factors" worksheets. | AB7: 3 | AC7: ="Compatible with the joint IEA-Eurostat-UNECE questionnaires collecting data for: 2023 (for use with EXCEL 2007 or more recent version)" -> Compatible with the joint IEA-Eurostat-UNECE questionnaires collecting data for: 2023 (for use with EXCEL 2007 or more recent version) | AD7: ="Сопоставимые с совместными вопросниками МЭА-Евростата-ЕЭК ООН по данным за " & LatestYear & " год (для использования с EXCEL 2007 или более поздней версией)" -> Сопоставимые с совместными вопросниками МЭА-Евростата-ЕЭК ООН по данным за 2024 год (для использования с EXCEL 2007 или более поздней версией) | AE7: y
B8: C) having the IEA load data from their current databases | AB8: 4 | AC8: The main purpose of this tool is to build a country energy balance following the IEA methodology. This can be done by: | AD8: Основной целью этого инструмента является построение энергетического баланса страны по методологии МЭА. Это можно сделать следующими способами: | AE8: y
A9: 1. | B9: Select your country name from the drop down list or type it in manually: | AB9: 5 | AC9: A) by automatically loading data from the IEA data questionnaires (2023 data requested in August 2024) | AD9: А) автоматически загрузив данные из вопросников МЭА (данные за 2023 год, запрошенные в августе 2024 года) | AE9: y
B10: Country: | C10: =HLOOKUP(LangChoice,$AC$3:$AE$67,$AB13+2) -> Country: | D10: Statisland | AB10: 6 | AC10: B) by manually filling the "Data in physical units" and "Conversion factors" worksheets. | AD10: В) вручную заполнив рабочие листы «Data in physical units» и «Conversion factors» | AE10: y
A11: 2. | B11: Select the year for which the balance should be built: | AB11: 7 | AC11: C) having the IEA load data from their current databases | AD11: С) попросить МЭА загрузить данные из имеющихся у него баз данных | AE11: y
B12: Year: | C12: =HLOOKUP(LangChoice,$AC$3:$AE$67,$AB15+2) -> Year: | D12: 2023 | AB12: 8 | AC12: Select your country name from the drop down list or type it in manually: | AD12: Выберите название вашей страны из выпадающего списка или наберите его вручную: | AE12: y
A13: 3. | B13: Follow the instructions for A. automatic upload or B. manual data input | AB13: 9 | AC13: Country: | AD13: Страна: | AE13: y
A14: 4. | B14: Check the "Data in physical units" and "Conversion factors" worksheets to see if any problems are highlighted in yellow. | AB14: 10 | AC14: Select the year for which the balance should be built: | AD14: Выберите год, для которого нужно построить баланс: | AE14: y
B15: (Detailed checking instructions in 'Table Of Contents-sheet) | AB15: 11 | AC15: Year: | AD15: Год: | AE15: y
A16: A. | B16: Automatic upload | AB16: 12 | AC16: Follow the instructions for A. automatic upload or B. manual data input | AD16: Следуйте инструкциям для вариантов «А. Автоматическая загрузка» или «В. Ручной ввод данных» | AE16: y
B17: Use the buttons below to load the IEA data questionnaires into the balance builder worksheets "Data in physical units" and "Conversion factors". | AB17: 13 | AC17: Check the "Data in physical units" and "Conversion factors" worksheets to see if any problems are highlighted in yellow. | AD17: Проверьте рабочие листы «Data in physical units» и «Conversion factors» на предмет проблем, которые отмечаются желтым цветом. | AE17: y
L18: =HLOOKUP(LangChoice,$AC$3:$AE$67,$AB21+2) -> Last upload: | AB18: 14 | AC18: (Detailed checking instructions in 'Table Of Contents-sheet) | AD18: (Подробные инструкции по проверке приведены во вкладке «Table Of Contents») | AE18: y
L19: NA | AB19: 15 | AC19: Automatic upload | AD19: Автоматическая загрузка | AE19: y
L20: NA | AB20: 16 | AC20: Use the buttons below to load the IEA data questionnaires into the balance builder worksheets "Data in physical units" and "Conversion factors". | AD20: Используйте кнопки ниже для загрузки данных из вопросников МЭА в рабочие таблицы построителя балансов «Data in physical units» и «Conversion factors». | AE20: y
L21: NA | AA21: Choice for the buttons | AB21: 17 | AC21: Last upload: | AD21: Последняя загрузка: | AE21: y
L22: NA | AA22: =HLOOKUP(LangChoice,$AC$3:$AE$67,$AB22+2) -> Load COAL | AB22: 18 | AC22: Load COAL | AD22: УГОЛЬ | AE22: y
L23: NA | AA23: =HLOOKUP(LangChoice,$AC$3:$AE$67,$AB23+2) -> Load OIL | AB23: 19 | AC23: Load OIL | AD23: НЕФТЬ | AE23: y
A24: B. | B24: =HLOOKUP(LangChoice,$AC$3:$AE$67,$AB27+2) -> Manual data input | AA24: =HLOOKUP(LangChoice,$AC$3:$AE$67,$AB24+2) -> Load GAS | AB24: 20 | AC24: Load GAS | AD24: ГАЗ | AE24: y
B25: =HLOOKUP(LangChoice,$AC$3:$AE$67,$AB28+2) -> Insert data in the "Data in physical units" worksheet by products (e.g. natural gas, crude oil, hydro) and by flows (e.g. indigenous production, imports, electricity generation). | AA25: =HLOOKUP(LangChoice,$AC$3:$AE$67,$AB25+2) -> Load REN | AB25: 21 | AC25: Load REN | AD25: ВИЭ | AE25: y
B26: =HLOOKUP(LangChoice,$AC$3:$AE$67,$AB29+2) -> Update the conversion factors on the "Conversion Factors" worksheet as appropriate (colored cells should be filled in). | AA26: =HLOOKUP(LangChoice,$AC$3:$AE$67,$AB26+2) -> Load ELE | AB26: 22 | AC26: Load ELE | AD26: ЭЛЕКТРО | AE26: y
A27: C. | B27: =HLOOKUP(LangChoice,$AC$3:$AE$67,$AB30+2) -> IEA-prefilled data | AB27: 23 | AC27: Manual data input | AD27: Ручной ввод данных
B28: =HLOOKUP(LangChoice,$AC$3:$AE$67,$AB31+2) -> Please contact BALANCES@iea.org. | AB28: 24 | AC28: Insert data in the "Data in physical units" worksheet by products (e.g. natural gas, crude oil, hydro) and by flows (e.g. indigenous production, imports, electricity generation). | AD28: Вставьте данные в рабочую таблицу «Data in physical units» по видам продукта (например, природный газ, сырая нефть, гидро) и по потокам (например, собственное производство, импорт, генерация электроэнергии).
AB29: 25 | AC29: Update the conversion factors on the "Conversion Factors" worksheet as appropriate (colored cells should be filled in). | AD29: При необходимости обновите коэффициенты пересчета во вкладке «Conversion Factors» (нужно заполнить цветные ячейки).
AB30: 26 | AC30: IEA-prefilled data | AD30: Предварительное заполнение данных МЭА
AB31: 27 | AC31: Please contact BALANCES@iea.org. | AD31: Пожалуйста, обращайтесь на электронный адрес BALANCES@iea.org.
AA32: =HLOOKUP(LangChoice,$AC$3:$AE$67,$AB32+2) -> Create a PDF-report! (Saved to user desktop) | AB32: 28 | AC32: ="Create a PDF-report!" & CHAR(10) & CHAR(10) &"(Saved to user desktop)" -> Create a PDF-report! (Saved to user desktop) | AD32: Создать PDF-отчёт! (сохранить на рабочем столе пользователя) | AE32: y
A64: HIDE | C64: Country list | D64: Year list
C65: Australia | D65: 2024 | E65: <-- Change
C66: Austria | D66: =IFERROR(IF((D65-$E$66)>1989,D65-$E$66,""),"") -> 2023 | E66: 1
C67: Belgium | D67: =IFERROR(IF((D66-$E$66)>1989,D66-$E$66,""),"") -> 2022
C68: Canada | D68: 2021
C69: Chile | D69: 2020
C70: Czech Republic | D70: 2019
C71: Denmark | D71: 2018
C72: Estonia | D72: 2017
C73: Finland | D73: 2016
C74: France | D74: 2015
C75: Germany | D75: 2014
C76: Greece | D76: 2013
C77: Hungary | D77: 2012
C78: Iceland | D78: 2011
C79: Ireland | D79: 2010
C80: Israel | D80: 2009
C81: Italy | D81: 2008
C82: Japan | D82: 2007
C83: Korea | D83: 2006
C84: Latvia | D84: 2005
C85: Lithuania | D85: 2004
C86: Luxembourg | D86: 2003
C87: Mexico | D87: 2002
C88: Netherlands | D88: 2001
C89: New Zealand | D89: 2000
C90: Norway | D90: 1999
C91: Poland | D91: 1998
C92: Portugal | D92: 1997
C93: Slovak Republic | D93: 1996
C94: Slovenia | D94: 1995
C95: Spain | D95: 1994
C96: Sweden | D96: 1993
C97: Switzerland | D97: 1992
C98: Turkiye
C99: United Kingdom
C100: United States
C101: Albania
C102: Algeria
C103: Armenia
C104: Azerbaijan
C105: Belarus
C106: Bosnia and Herzegovina
C107: Bulgaria
C108: Croatia
C109: Cyprus
C110: Georgia
C111: Gibraltar
C112: Kazakhstan
C113: Kosovo
C114: Kyrgyzstan
C115: Malta
C116: Moldova, Republic of
C117: Montenegro
C118: North Macedonia, Republic of
C119: Romania
C120: Russian Federation
C121: Serbia
C122: Tajikistan
C123: Turkmenistan
C124: Ukraine
C125: Uzbekistan
C126: Morocco
C127: Tunisia
C128: South Africa
C129: Brazil
C130: People's Republic of China
C131: India
C132: Malaysia
C133: Statisland
A134: HIDE

Sheet ReportCover (hidden)
A1: =HLOOKUP(LangChoice,$AD$3:$AF$30,AC4,FALSE)&": " & CountryName & ", " & DataYear -> Energy balance report: Statisland, 2023 | AA1: Hide -->: | AI1: <--Hide
A2: =HLOOKUP(LangChoice,$AD$3:$AF$30,AC8,FALSE) & CHAR(10) & TEXT(NOW(),"DD/MM/YYYY HH:MM") & " ("&HLOOKUP(LangChoice,$AD$3:$AF$30,AC9,FALSE)&": "&'Main Menu'!E2&")." -> Report created with IEA energy balance builder tool based on data provided by the user. 05/12/2024 17:26 (Version: November 2024.1). | AD2: Language
AC3: 1 | AD3: English | AE3: Pусский | AF3: 中文
B4: =HLOOKUP(LangChoice,$AD$3:$AF$30,AC10,FALSE) -> Questionnaires loaded: | AC4: 2 | AD4: Energy balance report | AE4: Отчет об энергетическом балансе | AF4: [missing Chinese]
B5: Coal | D5: ='Main Menu'!L19 -> NA | AB5: Electricity and heat generation | AC5: 3 | AD5: Low efficiencies for some fuels. Please verify the input and output values in the ELE/fuel questionnaire. | AE5: Низкая эффективность для некоторых видов топлива. Проверьте значения используемых ресурсов и производства. | AF5: [missing Chinese]
B6: Oil | D6: ='Main Menu'!L20 -> NA | AA6: Low efficiencies | AB6: =COUNTIF(Electricity_Heat_II!$O$13:$Q$60,Electricity_Heat_II!$AB$27) -> 1 | AC6: 4 | AD6: High efficiencies for some fuels. Please verify the input and output values in the ELE/fuel questionnaire. | AE6: Высокая эффективность для некоторых видов топлива. Проверьте значения используемых ресурсов и производства. | AF6: [missing Chinese]
B7: Gas | D7: ='Main Menu'!L21 -> NA | AA7: High efficiencies | AB7: =COUNTIF(Electricity_Heat_II!$O$13:$Q$60,Electricity_Heat_II!$AB$28) -> 0 | AC7: 5 | AD7: Missing inputs/outputs for some fuels. Please check 'Electricity_Heat_II'-sheet for details. | AE7: Отсутствующие значения затраченных ресурсов и выпуска. Проверьте детали в листе 'Electricity_Heat_II'. | AF7: [missing Chinese]
B8: Renewables | D8: ='Main Menu'!L22 -> NA | AA8: missing outputs | AB8: =Electricity_Heat_II!AX32 -> 0 | AC8: 6 | AD8: Report created with IEA energy balance builder tool based on data provided by the user. | AE8: Отчет, созданный при помощи инструментария МЭА для построения энергетических балансов на основе предоставленных пользователем данных. | AF8: [missing Chinese]
B9: Electricity and heat | D9: ='Main Menu'!L23 -> NA | AC9: 7 | AD9: Version | AE9: версия | AF9: [missing Chinese]
AC10: 8 | AD10: Questionnaires loaded: | AE10: Загруженный вопросники:
B11: =HLOOKUP(LangChoice,$AD$3:$AF$30,AC16,FALSE) -> OR (if questionnaires are not used) | C11: =HLOOKUP(LangChoice,$AD$3:$AF$30,AD17,FALSE) ->  | D11: =HLOOKUP(LangChoice,$AD$3:$AF$30,AE17,FALSE) ->  | AC11: 9 | AD11: Coal | AE11: по углю | AF11: [missing Chinese]
B12: =HLOOKUP(LangChoice,$AD$3:$AF$30,AC17,FALSE) -> Data input manually | D12: =IF(COUNTIF(D5:D9,"NA")=5,TEXT(NOW(),"dd/mm/yyyy"),"NA") -> 05/12/2024 | AC12: 10 | AD12: Oil | AE12: по нефти | AF12: [missing Chinese]
AC13: 11 | AD13: Gas | AE13: по газу | AF13: [missing Chinese]
AC14: 12 | AD14: Renewables | AE14: по ВИЭ | AF14: [missing Chinese]
AC15: 13 | AD15: Electricity and heat | AE15: по электроэнергии | AF15: [missing Chinese]
AC16: 14 | AD16: OR (if questionnaires are not used) | AE16: ИЛИ (если вопросники не используются) | AF16: [missing Chinese]
AC17: 15 | AD17: Data input manually | AE17: Ручной ввод данных | AF17: [missing Chinese]
AC18: 16 | AD18: Summary of the checks: | AE18: Сводка проверок: | AF18: [missing Chinese]
B19: =HLOOKUP(LangChoice,$AD$3:$AF$30,AC18,FALSE) -> Summary of the checks: | AC19: 17 | AD19: Transformation sector: | AE19: Сектор преобразования: | AF19: [missing Chinese]
B20: Transformation sector: | AC20: 18 | AD20: Coke oven | AE20: Коксовая печь | AF20: [missing Chinese]
B21: Coke oven | C21: Hide | D21: =IronSteel_CokeOven!$K$25 -> Not applicable | AC21: 19 | AD21: Blast furnace | AE21: Доменная печь | AF21: [missing Chinese]
B22: Blast furnace | C22: Hide | D22: =IronSteel_BlastFurnace!$K$25 -> Not applicable | AC22: 20 | AD22: Oil refinery | AE22: Нефтеперерабатывающий завод | AF22: [missing Chinese]
B23: Oil refinery | C23: Hide | D23: =Refinery!$J$23 -> Oil refinery losses are within reasonable range. | AC23: 21 | AD23: Electricity and heat generation | AE23: Генерация электрической и тепловой энергии | AF23: [missing Chinese]
B24: Electricity and heat generation | C24: Hide | D24: =IF($AB$6>0,HLOOKUP(LangChoice,$AD$3:$AF$8,AC5,FALSE),"") -> Low efficiencies for some fuels. Please verify the input and output values in the ELE/fuel questionnaire. | AC24: 22 | AD24: Statistical differences for following products: | AE24: Статистические расхождения для следующих видов продукции: | AF24: [missing Chinese]
D25: =IF($AB$7>0,HLOOKUP(LangChoice,$AD$3:$AF$8,AC6,FALSE),"") ->  | AC25: 23 | AD25: Statistical difference / Total supply of the fuel | AE25: Статистическое расхождение / Общее предложение данного вида топлива | AF25: [missing Chinese]
D26: =IF($AB$8>0,HLOOKUP(LangChoice,$AD$3:$AF$8,AC7,FALSE),"") ->  | AC26: 24 | AF26: [missing Chinese]
AC27: 25 | AF27: [missing Chinese]
B28: =HLOOKUP(LangChoice,$AD$3:$AF$30,AC24,FALSE) -> Statistical differences for following products: | D28: =HLOOKUP(LangChoice,$AD$3:$AF$30,AC25,FALSE) -> Statistical difference / Total supply of the fuel
A29: =IF(AB46<$AG$45+1,AB46,"") -> 1 | B29: =IFERROR(INDIRECT(C29),"") -> Crude oil | C29: =IFERROR(INDEX($AC$46:$AC$108,MATCH(A29,$AI$46:$AI$108,0),1),"") -> CRUDEOIL | D29: =IFERROR(INDEX($AF$46:$AF$108,MATCH($A29,$AI$46:$AI$108,0),1),"") -> 0.7317708333
B30: =IFERROR(INDIRECT(C30),"") -> 
B31: =IFERROR(INDIRECT(C31),"") -> 
AB41: Data to create the statistical difference -list
AG42: Limit:
B43: =IFERROR(INDIRECT(C43),"") ->  | AG43: 0.0499
AB44: Order | AC44: Statistical differences | AD44: STATDIFF | AE44: TPES | AF44: Statdiff/Fuel TPES | AG44: Above limit? | AH44: Rank of statdiff | AI44: Adjusted rank
B45: =IFERROR(INDIRECT(C45),"") ->  | AE45: =SUM(AE46:AE108) -> 5329 | AG45: =COUNTIF(AG46:AG110,TRUE) -> 1
AB46: 1 | AC46: =TRANSPOSE('Data in physical units'!C4:BO4) -> ANTCOAL | AD46: =TRANSPOSE('Data in physical units'!C18:BO18) -> 0 | AE46: =TRANSPOSE('Data in physical units'!C16:BO16) -> 0 | AF46: =IFERROR(ABS(AD46/AE46),"..") -> .. | AG46: =IF(AND(ISTEXT($AF46)=FALSE,$AF46>$AG$43),TRUE,FALSE) -> FALSE | AH46: =IFERROR(RANK(AF46,$AF$46:$AF$108,0),"..") -> .. | AI46: =IF(AND(COUNTIF($AH$46:AH46,$AH46)>1,$AH46<$AB$65),$AH46+COUNTIF($AH$46:AH46,$AH46)-1,$AH46) -> ..
AB47: 2 | AC47: COKCOAL | AD47: 0 | AE47: 0 | AF47: .. | AG47: FALSE | AH47: .. | AI47: =IF(AND(COUNTIF($AH$46:AH47,$AH47)>1,$AH47<$AB$65),$AH47+COUNTIF($AH$46:AH47,$AH47)-1,$AH47) -> ..
AB48: 3 | AC48: BITCOAL | AD48: 0 | AE48: 0 | AF48: .. | AG48: FALSE | AH48: .. | AI48: =IF(AND(COUNTIF($AH$46:AH48,$AH48)>1,$AH48<$AB$65),$AH48+COUNTIF($AH$46:AH48,$AH48)-1,$AH48) -> ..
AB49: 4 | AC49: SUBCOAL | AD49: 0 | AE49: 0 | AF49: .. | AG49: FALSE | AH49: .. | AI49: =IF(AND(COUNTIF($AH$46:AH49,$AH49)>1,$AH49<$AB$65),$AH49+COUNTIF($AH$46:AH49,$AH49)-1,$AH49) -> ..
AB50: 5 | AC50: LIGNITE | AD50: 0 | AE50: 0 | AF50: .. | AG50: FALSE | AH50: .. | AI50: =IF(AND(COUNTIF($AH$46:AH50,$AH50)>1,$AH50<$AB$65),$AH50+COUNTIF($AH$46:AH50,$AH50)-1,$AH50) -> ..
AB51: 6 | AC51: PATFUEL | AD51: 0 | AE51: 0 | AF51: .. | AG51: FALSE | AH51: .. | AI51: =IF(AND(COUNTIF($AH$46:AH51,$AH51)>1,$AH51<$AB$65),$AH51+COUNTIF($AH$46:AH51,$AH51)-1,$AH51) -> ..
AB52: 7 | AC52: OVENCOKE | AD52: 0 | AE52: 0 | AF52: .. | AG52: FALSE | AH52: .. | AI52: =IF(AND(COUNTIF($AH$46:AH52,$AH52)>1,$AH52<$AB$65),$AH52+COUNTIF($AH$46:AH52,$AH52)-1,$AH52) -> ..
AB53: 8 | AC53: GASCOKE | AD53: 0 | AE53: 0 | AF53: .. | AG53: FALSE | AH53: .. | AI53: =IF(AND(COUNTIF($AH$46:AH53,$AH53)>1,$AH53<$AB$65),$AH53+COUNTIF($AH$46:AH53,$AH53)-1,$AH53) -> ..
AB54: 9 | AC54: COALTAR | AD54: 0 | AE54: 0 | AF54: .. | AG54: FALSE | AH54: .. | AI54: =IF(AND(COUNTIF($AH$46:AH54,$AH54)>1,$AH54<$AB$65),$AH54+COUNTIF($AH$46:AH54,$AH54)-1,$AH54) -> ..
AB55: 10 | AC55: BKB | AD55: 0 | AE55: 0 | AF55: .. | AG55: FALSE | AH55: .. | AI55: =IF(AND(COUNTIF($AH$46:AH55,$AH55)>1,$AH55<$AB$65),$AH55+COUNTIF($AH$46:AH55,$AH55)-1,$AH55) -> ..
AB56: 11 | AC56: GASWKSGS | AD56: 0 | AE56: 0 | AF56: .. | AG56: FALSE | AH56: .. | AI56: =IF(AND(COUNTIF($AH$46:AH56,$AH56)>1,$AH56<$AB$65),$AH56+COUNTIF($AH$46:AH56,$AH56)-1,$AH56) -> ..
AB57: 12 | AC57: COKEOVGS | AD57: 0 | AE57: 0 | AF57: .. | AG57: FALSE | AH57: .. | AI57: =IF(AND(COUNTIF($AH$46:AH57,$AH57)>1,$AH57<$AB$65),$AH57+COUNTIF($AH$46:AH57,$AH57)-1,$AH57) -> ..
AB58: 13 | AC58: BLFURGS | AD58: 0 | AE58: 0 | AF58: .. | AG58: FALSE | AH58: .. | AI58: =IF(AND(COUNTIF($AH$46:AH58,$AH58)>1,$AH58<$AB$65),$AH58+COUNTIF($AH$46:AH58,$AH58)-1,$AH58) -> ..
AB59: 14 | AC59: OGASES | AD59: 0 | AE59: 0 | AF59: .. | AG59: FALSE | AH59: .. | AI59: =IF(AND(COUNTIF($AH$46:AH59,$AH59)>1,$AH59<$AB$65),$AH59+COUNTIF($AH$46:AH59,$AH59)-1,$AH59) -> ..
AB60: 15 | AC60: MANGAS | AD60: 0 | AE60: 0 | AF60: .. | AG60: FALSE | AH60: .. | AI60: =IF(AND(COUNTIF($AH$46:AH60,$AH60)>1,$AH60<$AB$65),$AH60+COUNTIF($AH$46:AH60,$AH60)-1,$AH60) -> ..
AB61: 16 | AC61: PEAT | AD61: 0 | AE61: 0 | AF61: .. | AG61: FALSE | AH61: .. | AI61: =IF(AND(COUNTIF($AH$46:AH61,$AH61)>1,$AH61<$AB$65),$AH61+COUNTIF($AH$46:AH61,$AH61)-1,$AH61) -> ..
AB62: 17 | AC62: PEATPROD | AD62: 0 | AE62: 0 | AF62: .. | AG62: FALSE | AH62: .. | AI62: =IF(AND(COUNTIF($AH$46:AH62,$AH62)>1,$AH62<$AB$65),$AH62+COUNTIF($AH$46:AH62,$AH62)-1,$AH62) -> ..
AB63: 18 | AC63: OILSHALE | AD63: 0 | AE63: 0 | AF63: .. | AG63: FALSE | AH63: .. | AI63: =IF(AND(COUNTIF($AH$46:AH63,$AH63)>1,$AH63<$AB$65),$AH63+COUNTIF($AH$46:AH63,$AH63)-1,$AH63) -> ..
AB64: 19 | AC64: CRUDEOIL | AD64: -1405 | AE64: 1920 | AF64: 0.7317708333 | AG64: TRUE | AH64: 1 | AI64: =IF(AND(COUNTIF($AH$46:AH64,$AH64)>1,$AH64<$AB$65),$AH64+COUNTIF($AH$46:AH64,$AH64)-1,$AH64) -> 1
AB65: 20 | AC65: NGL | AD65: 0 | AE65: 0 | AF65: .. | AG65: FALSE | AH65: .. | AI65: =IF(AND(COUNTIF($AH$46:AH65,$AH65)>1,$AH65<$AB$65),$AH65+COUNTIF($AH$46:AH65,$AH65)-1,$AH65) -> ..
AB66: 21 | AC66: REFFEEDS | AD66: 0 | AE66: 0 | AF66: .. | AG66: FALSE | AH66: .. | AI66: =IF(AND(COUNTIF($AH$46:AH66,$AH66)>1,$AH66<$AB$65),$AH66+COUNTIF($AH$46:AH66,$AH66)-1,$AH66) -> ..
AB67: 22 | AC67: ADDITIVE | AD67: 0 | AE67: 0 | AF67: .. | AG67: FALSE | AH67: .. | AI67: =IF(AND(COUNTIF($AH$46:AH67,$AH67)>1,$AH67<$AB$65),$AH67+COUNTIF($AH$46:AH67,$AH67)-1,$AH67) -> ..
AB68: 23 | AC68: NONCRUDE | AD68: 0 | AE68: 0 | AF68: .. | AG68: FALSE | AH68: .. | AI68: =IF(AND(COUNTIF($AH$46:AH68,$AH68)>1,$AH68<$AB$65),$AH68+COUNTIF($AH$46:AH68,$AH68)-1,$AH68) -> ..
AB69: 24 | AC69: REFINGAS | AD69: 0 | AE69: 0 | AF69: .. | AG69: FALSE | AH69: .. | AI69: =IF(AND(COUNTIF($AH$46:AH69,$AH69)>1,$AH69<$AB$65),$AH69+COUNTIF($AH$46:AH69,$AH69)-1,$AH69) -> ..
AB70: 25 | AC70: ETHANE | AD70: 0 | AE70: 0 | AF70: .. | AG70: FALSE | AH70: .. | AI70: =IF(AND(COUNTIF($AH$46:AH70,$AH70)>1,$AH70<$AB$65),$AH70+COUNTIF($AH$46:AH70,$AH70)-1,$AH70) -> ..
AB71: 26 | AC71: LPG | AD71: 0 | AE71: 0 | AF71: .. | AG71: FALSE | AH71: .. | AI71: =IF(AND(COUNTIF($AH$46:AH71,$AH71)>1,$AH71<$AB$65),$AH71+COUNTIF($AH$46:AH71,$AH71)-1,$AH71) -> ..
AB72: 27 | AC72: NONBIOGASO | AD72: 0 | AE72: 0 | AF72: .. | AG72: FALSE | AH72: .. | AI72: =IF(AND(COUNTIF($AH$46:AH72,$AH72)>1,$AH72<$AB$65),$AH72+COUNTIF($AH$46:AH72,$AH72)-1,$AH72) -> ..
AB73: 28 | AC73: AVGAS | AD73: 0 | AE73: 0 | AF73: .. | AG73: FALSE | AH73: .. | AI73: =IF(AND(COUNTIF($AH$46:AH73,$AH73)>1,$AH73<$AB$65),$AH73+COUNTIF($AH$46:AH73,$AH73)-1,$AH73) -> ..
AB74: 29 | AC74: JETGAS | AD74: 0 | AE74: 0 | AF74: .. | AG74: FALSE | AH74: .. | AI74: =IF(AND(COUNTIF($AH$46:AH74,$AH74)>1,$AH74<$AB$65),$AH74+COUNTIF($AH$46:AH74,$AH74)-1,$AH74) -> ..
AB75: 30 | AC75: NONBIOJETK | AD75: 0 | AE75: 0 | AF75: .. | AG75: FALSE | AH75: .. | AI75: =IF(AND(COUNTIF($AH$46:AH75,$AH75)>1,$AH75<$AB$65),$AH75+COUNTIF($AH$46:AH75,$AH75)-1,$AH75) -> ..
AB76: 31 | AC76: OTHKERO | AD76: 0 | AE76: 0 | AF76: .. | AG76: FALSE | AH76: .. | AI76: =IF(AND(COUNTIF($AH$46:AH76,$AH76)>1,$AH76<$AB$65),$AH76+COUNTIF($AH$46:AH76,$AH76)-1,$AH76) -> ..
AB77: 32 | AC77: NONBIODIES | AD77: -110 | AE77: 3345 | AF77: 0.03288490284 | AG77: FALSE | AH77: 2 | AI77: =IF(AND(COUNTIF($AH$46:AH77,$AH77)>1,$AH77<$AB$65),$AH77+COUNTIF($AH$46:AH77,$AH77)-1,$AH77) -> 2
AB78: 33 | AC78: RESFUEL | AD78: 0 | AE78: 0 | AF78: =IFERROR(ABS(AD78/AE78),"..") -> .. | AG78: =IF(AND(ISTEXT($AF78)=FALSE,$AF78>$AG$43),TRUE,FALSE) -> FALSE | AH78: =IFERROR(RANK(AF78,$AF$46:$AF$108,0),"..") -> .. | AI78: =IF(AND(COUNTIF($AH$46:AH78,$AH78)>1,$AH78<$AB$65),$AH78+COUNTIF($AH$46:AH78,$AH78)-1,$AH78) -> ..
AB79: 34 | AC79: NAPHTHA | AD79: 0 | AE79: 0 | AF79: .. | AG79: FALSE | AH79: .. | AI79: =IF(AND(COUNTIF($AH$46:AH79,$AH79)>1,$AH79<$AB$65),$AH79+COUNTIF($AH$46:AH79,$AH79)-1,$AH79) -> ..
AB80: 35 | AC80: WHITESP | AD80: 0 | AE80: 0 | AF80: .. | AG80: FALSE | AH80: .. | AI80: =IF(AND(COUNTIF($AH$46:AH80,$AH80)>1,$AH80<$AB$65),$AH80+COUNTIF($AH$46:AH80,$AH80)-1,$AH80) -> ..
AB81: 36 | AC81: LUBRIC | AD81: 0 | AE81: 0 | AF81: .. | AG81: FALSE | AH81: .. | AI81: =IF(AND(COUNTIF($AH$46:AH81,$AH81)>1,$AH81<$AB$65),$AH81+COUNTIF($AH$46:AH81,$AH81)-1,$AH81) -> ..
AB82: 37 | AC82: BITUMEN | AD82: 0 | AE82: 0 | AF82: .. | AG82: FALSE | AH82: .. | AI82: =IF(AND(COUNTIF($AH$46:AH82,$AH82)>1,$AH82<$AB$65),$AH82+COUNTIF($AH$46:AH82,$AH82)-1,$AH82) -> ..
AB83: 38 | AC83: PARWAX | AD83: 0 | AE83: 0 | AF83: .. | AG83: FALSE | AH83: .. | AI83: =IF(AND(COUNTIF($AH$46:AH83,$AH83)>1,$AH83<$AB$65),$AH83+COUNTIF($AH$46:AH83,$AH83)-1,$AH83) -> ..
AB84: 39 | AC84: PETCOKE | AD84: 0 | AE84: 0 | AF84: .. | AG84: FALSE | AH84: .. | AI84: =IF(AND(COUNTIF($AH$46:AH84,$AH84)>1,$AH84<$AB$65),$AH84+COUNTIF($AH$46:AH84,$AH84)-1,$AH84) -> ..
AB85: 40 | AC85: ONONSPEC | AD85: 0 | AE85: 0 | AF85: .. | AG85: FALSE | AH85: .. | AI85: =IF(AND(COUNTIF($AH$46:AH85,$AH85)>1,$AH85<$AB$65),$AH85+COUNTIF($AH$46:AH85,$AH85)-1,$AH85) -> ..
AB86: 41 | AC86: NATGAS | AD86: 0 | AE86: 0 | AF86: .. | AG86: FALSE | AH86: .. | AI86: =IF(AND(COUNTIF($AH$46:AH86,$AH86)>1,$AH86<$AB$65),$AH86+COUNTIF($AH$46:AH86,$AH86)-1,$AH86) -> ..
AB87: 42 | AC87: INDWASTE | AD87: 0 | AE87: 0 | AF87: .. | AG87: FALSE | AH87: .. | AI87: =IF(AND(COUNTIF($AH$46:AH87,$AH87)>1,$AH87<$AB$65),$AH87+COUNTIF($AH$46:AH87,$AH87)-1,$AH87) -> ..
AB88: 43 | AC88: MUNWASTER | AD88: 0 | AE88: 0 | AF88: .. | AG88: FALSE | AH88: .. | AI88: =IF(AND(COUNTIF($AH$46:AH88,$AH88)>1,$AH88<$AB$65),$AH88+COUNTIF($AH$46:AH88,$AH88)-1,$AH88) -> ..
AB89: 44 | AC89: MUNWASTEN | AD89: 0 | AE89: 0 | AF89: .. | AG89: FALSE | AH89: .. | AI89: =IF(AND(COUNTIF($AH$46:AH89,$AH89)>1,$AH89<$AB$65),$AH89+COUNTIF($AH$46:AH89,$AH89)-1,$AH89) -> ..
AB90: 45 | AC90: PRIMSBIO | AD90: 0 | AE90: 62.5 | AF90: 0 | AG90: FALSE | AH90: 3 | AI90: =IF(AND(COUNTIF($AH$46:AH90,$AH90)>1,$AH90<$AB$65),$AH90+COUNTIF($AH$46:AH90,$AH90)-1,$AH90) -> 3
AB91: 46 | AC91: BIOGASES | AD91: 0 | AE91: 0 | AF91: .. | AG91: FALSE | AH91: .. | AI91: =IF(AND(COUNTIF($AH$46:AH91,$AH91)>1,$AH91<$AB$65),$AH91+COUNTIF($AH$46:AH91,$AH91)-1,$AH91) -> ..
AB92: 47 | AC92: BIOGASOL | AD92: 0 | AE92: 0 | AF92: .. | AG92: FALSE | AH92: .. | AI92: =IF(AND(COUNTIF($AH$46:AH92,$AH92)>1,$AH92<$AB$65),$AH92+COUNTIF($AH$46:AH92,$AH92)-1,$AH92) -> ..
AB93: 48 | AC93: BIOJETKERO | AD93: 0 | AE93: 0 | AF93: .. | AG93: FALSE | AH93: .. | AI93: =IF(AND(COUNTIF($AH$46:AH93,$AH93)>1,$AH93<$AB$65),$AH93+COUNTIF($AH$46:AH93,$AH93)-1,$AH93) -> ..
AB94: 49 | AC94: BIODIESEL | AD94: 0 | AE94: 1.5 | AF94: 0 | AG94: FALSE | AH94: 3 | AI94: =IF(AND(COUNTIF($AH$46:AH94,$AH94)>1,$AH94<$AB$65),$AH94+COUNTIF($AH$46:AH94,$AH94)-1,$AH94) -> 4
AB95: 50 | AC95: OBIOLIQ | AD95: 0 | AE95: 0 | AF95: .. | AG95: FALSE | AH95: .. | AI95: =IF(AND(COUNTIF($AH$46:AH95,$AH95)>1,$AH95<$AB$65),$AH95+COUNTIF($AH$46:AH95,$AH95)-1,$AH95) -> ..
AB96: 51 | AC96: RENEWNS | AD96: 0 | AE96: 0 | AF96: .. | AG96: FALSE | AH96: .. | AI96: =IF(AND(COUNTIF($AH$46:AH96,$AH96)>1,$AH96<$AB$65),$AH96+COUNTIF($AH$46:AH96,$AH96)-1,$AH96) -> ..
AB97: 52 | AC97: CHARCOAL | AD97: 0 | AE97: 0 | AF97: .. | AG97: FALSE | AH97: .. | AI97: =IF(AND(COUNTIF($AH$46:AH97,$AH97)>1,$AH97<$AB$65),$AH97+COUNTIF($AH$46:AH97,$AH97)-1,$AH97) -> ..
AB98: 53 | AC98: NUCLEAR | AD98: 0 | AE98: 0 | AF98: .. | AG98: FALSE | AH98: .. | AI98: =IF(AND(COUNTIF($AH$46:AH98,$AH98)>1,$AH98<$AB$65),$AH98+COUNTIF($AH$46:AH98,$AH98)-1,$AH98) -> ..
AB99: 54 | AC99: HYDRO | AD99: 0 | AE99: 0 | AF99: .. | AG99: FALSE | AH99: .. | AI99: =IF(AND(COUNTIF($AH$46:AH99,$AH99)>1,$AH99<$AB$65),$AH99+COUNTIF($AH$46:AH99,$AH99)-1,$AH99) -> ..
AB100: 55 | AC100: GEOTHERM | AD100: 0 | AE100: 0 | AF100: .. | AG100: FALSE | AH100: .. | AI100: =IF(AND(COUNTIF($AH$46:AH100,$AH100)>1,$AH100<$AB$65),$AH100+COUNTIF($AH$46:AH100,$AH100)-1,$AH100) -> ..
AB101: 56 | AC101: SOLARPV | AD101: 0 | AE101: 0 | AF101: .. | AG101: FALSE | AH101: .. | AI101: =IF(AND(COUNTIF($AH$46:AH101,$AH101)>1,$AH101<$AB$65),$AH101+COUNTIF($AH$46:AH101,$AH101)-1,$AH101) -> ..
AB102: 57 | AC102: SOLARTH | AD102: 0 | AE102: 0 | AF102: .. | AG102: FALSE | AH102: .. | AI102: =IF(AND(COUNTIF($AH$46:AH102,$AH102)>1,$AH102<$AB$65),$AH102+COUNTIF($AH$46:AH102,$AH102)-1,$AH102) -> ..
AB103: 58 | AC103: TIDE | AD103: 0 | AE103: 0 | AF103: .. | AG103: FALSE | AH103: .. | AI103: =IF(AND(COUNTIF($AH$46:AH103,$AH103)>1,$AH103<$AB$65),$AH103+COUNTIF($AH$46:AH103,$AH103)-1,$AH103) -> ..
AB104: 59 | AC104: WIND | AD104: 0 | AE104: 0 | AF104: .. | AG104: FALSE | AH104: .. | AI104: =IF(AND(COUNTIF($AH$46:AH104,$AH104)>1,$AH104<$AB$65),$AH104+COUNTIF($AH$46:AH104,$AH104)-1,$AH104) -> ..
AB105: 60 | AC105: HEATPUMP | AD105: 0 | AE105: 0 | AF105: .. | AG105: FALSE | AH105: .. | AI105: =IF(AND(COUNTIF($AH$46:AH105,$AH105)>1,$AH105<$AB$65),$AH105+COUNTIF($AH$46:AH105,$AH105)-1,$AH105) -> ..
AB106: 61 | AC106: BOILER | AD106: 0 | AE106: 0 | AF106: .. | AG106: FALSE | AH106: .. | AI106: =IF(AND(COUNTIF($AH$46:AH106,$AH106)>1,$AH106<$AB$65),$AH106+COUNTIF($AH$46:AH106,$AH106)-1,$AH106) -> ..
AB107: 62 | AC107: CHEMHEAT | AD107: 0 | AE107: 0 | AF107: .. | AG107: FALSE | AH107: .. | AI107: =IF(AND(COUNTIF($AH$46:AH107,$AH107)>1,$AH107<$AB$65),$AH107+COUNTIF($AH$46:AH107,$AH107)-1,$AH107) -> ..
AB108: 63 | AC108: OTHER | AD108: 0 | AE108: 0 | AF108: .. | AG108: FALSE | AH108: .. | AI108: =IF(AND(COUNTIF($AH$46:AH108,$AH108)>1,$AH108<$AB$65),$AH108+COUNTIF($AH$46:AH108,$AH108)-1,$AH108) -> ..
AB109: 64 | AC109: ELECTR | AD109: 0 | AE109: 10522 | AF109: =IFERROR(ABS(AD109/AE109),"..") -> 0 | AG109: FALSE | AH109: 3 | AI109: =IF(AND(COUNTIF($AH$46:AH109,$AH109)>1,$AH109<$AB$65),$AH109+COUNTIF($AH$46:AH109,$AH109)-1,$AH109) -> 5
AB110: 65 | AC110: HEAT | AD110: 0 | AE110: 0 | AF110: .. | AG110: FALSE | AH110: .. | AI110: =IF(AND(COUNTIF($AH$46:AH110,$AH110)>1,$AH110<$AB$65),$AH110+COUNTIF($AH$46:AH110,$AH110)-1,$AH110) -> ..

Sheet TableOfContents (hidden)
B1: =HLOOKUP(LangChoice,$AB$4:$AE$50,$AA5+1) -> Table of Contents | C1: Hide | AA1: Hide -->: | AD1: <--Hide
B3: =HLOOKUP(LangChoice,$AB$4:$AE$50,$AA6+1) -> Sheet | C3: Print? | D3: =HLOOKUP(LangChoice,$AB$4:$AE$50,$AA7+1) -> Contents | E3: =HLOOKUP(LangChoice,$AB$4:$AE$50,$AA8+1) -> Notes | AB3: Language
B4: Definitions | D4: =HLOOKUP(LangChoice,$AB$4:$AE$50,$AA9+1) -> IEA product and flow definitions | AB4: English | AC4: Pусский | AD4: 中文
A5: =HLOOKUP(LangChoice,$AB$4:$AE$50,$AA22+1) -> Data entry | B5: Conversion Factors | D5: Conversion factors used to convert data from physical to energy units | E5: =HLOOKUP(LangChoice,$AB$4:$AE$50,$AA25+1) -> See 'Instructions' below | AA5: 1 | AB5: Table of Contents | AC5: Оглавление | AD5: [missing Chinese]
B6: Data in physical units | D6: Filled by hand or automatically loaded data from the IEA questionnaires | E6: =E5 -> See 'Instructions' below | AA6: 2 | AB6: Sheet | AC6: Лист | AD6: [missing Chinese]
A7: =HLOOKUP(LangChoice,$AB$4:$AE$50,$AA23+1) -> Data dissemi-nation | B7: Disaggregated balance | D7: All fuels converted to a common energy unit from the data in physical units | E7: =HLOOKUP(LangChoice,$AB$4:$AE$50,$AA26+1) -> Calculated automatically | AA7: 3 | AB7: Contents | AC7: Содержание | AD7: [missing Chinese]
B8: Aggregated balance | D8: Energy balance grouped by main fuel source | E8: =$E$7 -> Calculated automatically | AA8: 4 | AB8: Notes | AC8: Примечания | AD8: [missing Chinese]
B9: Published balance | C9: TRUE | D9: Aggregated energy balance as published in IEA World Energy Balances-publication | E9: =$E$7 -> Calculated automatically | AA9: 5 | AB9: IEA product and flow definitions | AC9: Определения МЭА для продукта и потоков | AD9: [missing Chinese]
B10: Balance summary | C10: TRUE | D10: Short description of the data with graphs | E10: Calculated automatically | AA10: 6 | AB10: Conversion factors used to convert data from physical to energy units | AC10: Коэффициенты пересчета, используемые для перевода данных из физических в энергетические единицы | AD10: [missing Chinese]
A11: =HLOOKUP(LangChoice,$AB$4:$AE$50,$AA24+1) -> Energy-specific checks | B11: IronSteel_CokeOven | C11: =IF(IronSteel_CokeOven!$K$17="..",FALSE,TRUE) -> FALSE | D11: Check for coke oven transformation process | E11: Calculated automatically | AA11: 7 | AB11: Filled by hand or automatically loaded data from the IEA questionnaires | AC11: Заполняется вручную или автоматически загружаемые данные из вопросников МЭА | AD11: [missing Chinese]
B12: IronSteel_BlastFurnace | C12: =IF(IronSteel_BlastFurnace!$K$17="..",FALSE,TRUE) -> FALSE | D12: Check for blast furnace transformation process | E12: Calculated automatically | AA12: 8 | AB12: All fuels converted to a common energy unit from the data in physical units | AC12: Все виды топлива переводятся в принятые единицы энергии из данных, приведенных в физических единицах | AD12: [missing Chinese]
B13: Refinery | C13: =IF(Refinery!$J$15="..",FALSE,TRUE) -> TRUE | D13: Check for oil refinery transformation process | E13: Calculated automatically | AA13: 9 | AB13: Energy balance grouped by main fuel source | AC13: Энергетический баланс, сгруппированный по основному источнику топлива | AD13: [missing Chinese]
B14: Electricity_Heat_I | C14: TRUE | D14: Broad check for electricity and heat generation efficiencies and a calculator | E14: Calculated automatically | AA14: 10 | AB14: Aggregated energy balance as published in IEA World Energy Balances-publication | AC14: Агрегированный энергетический баланс на основе публикации «World Energy Balances» МЭА | AD14: [missing Chinese]
B15: Electricity_Heat_II | C15: TRUE | D15: Detailed check for electricity and heat generation efficiencies | E15: Calculated automatically | AA15: 11 | AB15: Short description of the data with graphs | AC15: Краткое описание данных с графиками | AD15: [missing Chinese]
B16: CapacityFactor | C16: TRUE | D16: Check for plant capacity factors | E16: Calculated automatically | AA16: 12 | AB16: Check for coke oven transformation process | AC16: Проверка для процесса преобразования в коксовой печи | AD16: [missing Chinese]
AA17: 13 | AB17: Check for blast furnace transformation process | AC17: Проверка для процесса преобразования в доменной печи | AD17: [missing Chinese]
AA18: 14 | AB18: Check for oil refinery transformation process | AC18: Проверка для процесса преобразования на нефтеперерабатывающем заводе | AD18: [missing Chinese]
A19: =HLOOKUP(LangChoice,$AB$4:$AE$50,$AA27+1) -> Instructions: | AA19: 15 | AB19: Broad check for electricity and heat generation efficiencies and a calculator | AC19: Общая проверка для эффективности генерации электрической и тепловой энергии, а также калькулятор | AD19: [missing Chinese]
A20: - Certain cells must always be negative (i.e. exports and bunkers). | B20: =HLOOKUP(LangChoice,$AB$4:$AE$50,$AA28+1) -> - Certain cells must always be negative (i.e. exports and bunkers). | C20: - Certain cells must always be negative (i.e. exports and bunkers). | D20: - Certain cells must always be negative (i.e. exports and bunkers). | E20: - Certain cells must always be negative (i.e. exports and bunkers). | AA20: 16 | AB20: Detailed check for electricity and heat generation efficiencies | AC20: Подробная проверка для эффективности генерации электрической и тепловой энергии | AD20: [missing Chinese]
A21: - Certain cells must always be positive (i.e. production, other sources, imports and all the sub-elements for transformation processes, energy industry own use, losses, industry, transport, other and non-energy use) | B21: - Certain cells must always be positive (i.e. production, other sources, imports and all the sub-elements for transformation processes, energy industry own use, losses, industry, transport, other and non-energy use) | C21: - Certain cells must always be positive (i.e. production, other sources, imports and all the sub-elements for transformation processes, energy industry own use, losses, industry, transport, other and non-energy use) | D21: - Certain cells must always be positive (i.e. production, other sources, imports and all the sub-elements for transformation processes, energy industry own use, losses, industry, transport, other and non-energy use) | E21: - Certain cells must always be positive (i.e. production, other sources, imports and all the sub-elements for transformation processes, energy industry own use, losses, industry, transport, other and non-energy use) | AA21: 17 | AB21: Check for plant capacity factors | AC21: Проверка для коэффициентов мощности электростанций | AD21: [missing Chinese]
A22: - Sub-totals will be highlighted if they are not equal to the sum of the sub-elements. | B22: - Sub-totals will be highlighted if they are not equal to the sum of the sub-elements. | C22: - Sub-totals will be highlighted if they are not equal to the sum of the sub-elements. | D22: - Sub-totals will be highlighted if they are not equal to the sum of the sub-elements. | E22: - Sub-totals will be highlighted if they are not equal to the sum of the sub-elements. | AA22: 18 | AB22: Data entry | AC22: Ввод данных | AD22: [missing Chinese]
A23: - Final consumption will check to see that sums are correct both from the top-down and the bottom-up: | B23: - Final consumption will check to see that sums are correct both from the top-down and the bottom-up: | C23: - Final consumption will check to see that sums are correct both from the top-down and the bottom-up: | D23: - Final consumption will check to see that sums are correct both from the top-down and the bottom-up: | E23: - Final consumption will check to see that sums are correct both from the top-down and the bottom-up: | AA23: 19 | AB23: Data dissemi-nation | AC23: Распространение данных | AD23: [missing Chinese]
A24: --Final consumption (top-down) = Domestic supply - Transformation processes - Energy industry own use - Losses + Transfers + Statistical difference | B24: --Final consumption (top-down) = Domestic supply - Transformation processes - Energy industry own use - Losses + Transfers + Statistical difference | C24: --Final consumption (top-down) = Domestic supply - Transformation processes - Energy industry own use - Losses + Transfers + Statistical difference | D24: --Final consumption (top-down) = Domestic supply - Transformation processes - Energy industry own use - Losses + Transfers + Statistical difference | E24: --Final consumption (top-down) = Domestic supply - Transformation processes - Energy industry own use - Losses + Transfers + Statistical difference | AA24: 20 | AB24: Energy-specific checks | AC24: Проверки, связанные с энергетикой | AD24: [missing Chinese]
A25: --Final consumption (bottom-up) = Industry + Transport + Other + Non-energy use | B25: --Final consumption (bottom-up) = Industry + Transport + Other + Non-energy use | C25: --Final consumption (bottom-up) = Industry + Transport + Other + Non-energy use | D25: --Final consumption (bottom-up) = Industry + Transport + Other + Non-energy use | E25: --Final consumption (bottom-up) = Industry + Transport + Other + Non-energy use | AA25: 21 | AB25: See 'Instructions' below | AC25: См. «Инструкции» ниже | AD25: [missing Chinese]
A26: - For the conversion factors, make sure that there are no zeroes in the table to ensure that all flows are converted to energy units. | B26: - For the conversion factors, make sure that there are no zeroes in the table to ensure that all flows are converted to energy units. | C26: - For the conversion factors, make sure that there are no zeroes in the table to ensure that all flows are converted to energy units. | D26: - For the conversion factors, make sure that there are no zeroes in the table to ensure that all flows are converted to energy units. | E26: - For the conversion factors, make sure that there are no zeroes in the table to ensure that all flows are converted to energy units. | AA26: 22 | AB26: Calculated automatically | AC26: Рассчитывается автоматически | AD26: [missing Chinese]
AA27: 23 | AB27: Instructions: | AC27: Инструкции: | AD27: [missing Chinese]
A28: =HLOOKUP(LangChoice,$AB$4:$AE$50,$AA35+1) -> Help / Further Information: | AA28: 24 | AB28: - Certain cells must always be negative (i.e. exports and bunkers). | AC28: - Некоторые ячейки должны всегда иметь отрицательное значение (например, экспорт и бункерные накопители). | AD28: [missing Chinese]
A29: - Consult the IEA definitions worksheet to understand what is covered by individual products or flows. Where applicable, row or column headings of the "data in physical units" and balances worksheets are linked directly to the appropriate definition. | B29: =HLOOKUP(LangChoice,$AB$4:$AE$50,$AA36+1) -> - Consult the IEA definitions worksheet to understand what is covered by individual products or flows. Where applicable, row or column headings of the "data in physical units" and balances worksheets are linked directly to the appropriate definition. | C29: - Consult the IEA definitions worksheet to understand what is covered by individual products or flows. Where applicable, row or column headings of the "data in physical units" and balances worksheets are linked directly to the appropriate definition. | D29: - Consult the IEA definitions worksheet to understand what is covered by individual products or flows. Where applicable, row or column headings of the "data in physical units" and balances worksheets are linked directly to the appropriate definition. | E29: - Consult the IEA definitions worksheet to understand what is covered by individual products or flows. Where applicable, row or column headings of the "data in physical units" and balances worksheets are linked directly to the appropriate definition. | AA29: 25 | AB29: - Certain cells must always be positive (i.e. production, other sources, imports and all the sub-elements for transformation processes, energy industry own use, losses, industry, transport, other and non-energy use) | AC29: - Некоторые ячейки должны всегда иметь положительное значение (например, производство, другие источники, импорт и все субэлементы процессов преобразования, собственное использование энергетической отросли, потери, отрасли промышленности, транспорт, другое и неэнергетическое использование) | AD29: [missing Chinese]
A30: - Please ensure macros are enabled. | B30: - Please ensure macros are enabled. | C30: - Please ensure macros are enabled. | D30: - Please ensure macros are enabled. | E30: - Please ensure macros are enabled. | AA30: 26 | AB30: - Sub-totals will be highlighted if they are not equal to the sum of the sub-elements. | AC30: - Промежуточные итоговые суммы будут подцвечиваться в случае несовпадения с суммой субэлементов. | AD30: [missing Chinese]
A31: - The country-specific exceptions listed in the "Exceptions" worksheet are automatically copied to the disaggregated balance when necessary. This worksheet should not be modified, it is made available for information. When "Disaggregated Balance" cells are modified their font color is changed to red. | B31: - The country-specific exceptions listed in the "Exceptions" worksheet are automatically copied to the disaggregated balance when necessary. This worksheet should not be modified, it is made available for information. When "Disaggregated Balance" cells are modified their font color is changed to red. | C31: - The country-specific exceptions listed in the "Exceptions" worksheet are automatically copied to the disaggregated balance when necessary. This worksheet should not be modified, it is made available for information. When "Disaggregated Balance" cells are modified their font color is changed to red. | D31: - The country-specific exceptions listed in the "Exceptions" worksheet are automatically copied to the disaggregated balance when necessary. This worksheet should not be modified, it is made available for information. When "Disaggregated Balance" cells are modified their font color is changed to red. | E31: - The country-specific exceptions listed in the "Exceptions" worksheet are automatically copied to the disaggregated balance when necessary. This worksheet should not be modified, it is made available for information. When "Disaggregated Balance" cells are modified their font color is changed to red. | AA31: 27 | AB31: - Final consumption will check to see that sums are correct both from the top-down and the bottom-up: | AC31: - Конечное потребление будет совершать проверку на предмет правильности всех сумм сверху вниз и снизу вверх: | AD31: [missing Chinese]
A32: - Most worksheets are protected to prevent involuntary changes. To unprotect them, right-click the desired worksheet and select "Unprotect sheet". | B32: - Most worksheets are protected to prevent involuntary changes. To unprotect them, right-click the desired worksheet and select "Unprotect sheet". | C32: - Most worksheets are protected to prevent involuntary changes. To unprotect them, right-click the desired worksheet and select "Unprotect sheet". | D32: - Most worksheets are protected to prevent involuntary changes. To unprotect them, right-click the desired worksheet and select "Unprotect sheet". | E32: - Most worksheets are protected to prevent involuntary changes. To unprotect them, right-click the desired worksheet and select "Unprotect sheet". | AA32: 28 | AB32: --Final consumption (top-down) = Domestic supply - Transformation processes - Energy industry own use - Losses + Transfers + Statistical difference | AC32: --Общее конечное потребление (сверху вниз) | AD32: [missing Chinese]
A33: - The IEA uses a model to allocate part of the blast furnaces fuel inputs to transformation processes and part to iron and steel consumption. This model is not implemented in the balance builder and, for this reason, the blast furnaces transformation row and iron and steel row might differ from our published data. | B33: - The IEA uses a model to allocate part of the blast furnaces fuel inputs to transformation processes and part to iron and steel consumption. This model is not implemented in the balance builder and, for this reason, the blast furnaces transformation row and iron and steel row might differ from our published data. | C33: - The IEA uses a model to allocate part of the blast furnaces fuel inputs to transformation processes and part to iron and steel consumption. This model is not implemented in the balance builder and, for this reason, the blast furnaces transformation row and iron and steel row might differ from our published data. | D33: - The IEA uses a model to allocate part of the blast furnaces fuel inputs to transformation processes and part to iron and steel consumption. This model is not implemented in the balance builder and, for this reason, the blast furnaces transformation row and iron and steel row might differ from our published data. | E33: - The IEA uses a model to allocate part of the blast furnaces fuel inputs to transformation processes and part to iron and steel consumption. This model is not implemented in the balance builder and, for this reason, the blast furnaces transformation row and iron and steel row might differ from our published data. | AA33: 29 | AB33: --Final consumption (bottom-up) = Industry + Transport + Other + Non-energy use | AC33: --Общее конечное потребление (снизу вверх) | AD33: [missing Chinese]
AA34: 30 | AB34: - For the conversion factors, make sure that there are no zeroes in the table to ensure that all flows are converted to energy units. | AC34: - Что касается коэффициентов пересчета, для того, чтобы все потоки были переведены в единицы энергии, пожалуйста, убедитесь, что в таблице нет нолей. | AD34: [missing Chinese]
AA35: 31 | AB35: Help / Further Information: | AC35: Помощь / Дополнительная информация: | AD35: [missing Chinese]
AA36: 32 | AB36: - Consult the IEA definitions worksheet to understand what is covered by individual products or flows. Where applicable, row or column headings of the "data in physical units" and balances worksheets are linked directly to the appropriate definition. | AC36: - Обратитесь к таблице определений МЭА, чтобы понять, что входит в те или иные виды продукции или потоки. Где необходимо, заголовки строк и столбцов во вкладках «Data in physical units» и «Balances» привязаны непосредственно к соответствующему определению. | AD36: [missing Chinese]
AA37: 33 | AB37: - Please ensure macros are enabled. | AC37: - Убедитесь, что включены макросы. | AD37: [missing Chinese]
AA38: 34 | AB38: - The country-specific exceptions listed in the "Exceptions" worksheet are automatically copied to the disaggregated balance when necessary. This worksheet should not be modified, it is made available for information. When "Disaggregated Balance" cells are modified their font color is changed to red. | AC38: - Присущие определенным странам исключения, перечисленные во вкладке «Exceptions», где необходимо, автоматически копируются в дезагрегированный баланс. В этот рабочий лист нельзя вносить изменения, поскольку он приведен для информации. В случае изменения ячеек «Дезагрегированный баланс», цвет их шрифта изменяется на красный. | AD38: [missing Chinese]
AA39: 35 | AB39: - Most worksheets are protected to prevent involuntary changes. To unprotect them, right-click the desired worksheet and select "Unprotect sheet". | AC39: - Большинство рабочих листов защищены от непреднамеренного внесения изменений. Чтобы снять защиту, кликните правой кнопкой мыши на нужном листе и выберете пункт «Снять защиту листа». | AD39: [missing Chinese]
AA40: 36 | AB40: - The IEA uses a model to allocate part of the blast furnaces fuel inputs to transformation processes and part to iron and steel consumption. This model is not implemented in the balance builder and, for this reason, the blast furnaces transformation row and iron and steel row might differ from our published data. | AC40: - МЭА использует модель для распределения части используемого топлива для доменных печей на процессы преобразования, а части – на потребление чугуна и стали. Эта модель не реализована в построителе балансов и, по этой причине, строки преобразований доменных печей и строки чугуна и стали могут отличаться от публикуемых нами данных. | AD40: [missing Chinese]
AA41: 37 | AB41: Compatible with International recommendations for energy statistics (UN, 2011) | AC41: Совместимо с Международными рекомендациями по статистике энергетики (ООН, 2011) | AD41: [missing Chinese]
A50: Hide | B50: Hidden sheets only for administrator
B51: DPU formulas | D51: This sheet has links to relevant AQ tables. Modify if there are changes in the AQs. Macro copies the formulas so that they are correct in the 'Data in physical units'-sheet. Table formatting removed to make the file lighter.
B52: CF formulas | D52: This sheet has links to relevant AQ tables for calorific values. Modify if there are changes in the AQs. Macro copies the formulas so that they are correct in the 'Conversion factors'-sheet. Table formatting removed to make the file lighter.
B53: Miscellanoeus efficiencies | C53: Missing | D53: Charcoal, patent fuel, other transformation, CTL, GTL
B54: BAL_Reading_Exercise | D54: Hidden sheet ('xlVeryHidden') for training purposes
B55: BAL_Checking_Exercise | D55: Hidden sheet ('xlVeryHidden') for training purposes

Sheet Definitions
A1: IEA Definitions | C1: IEA Definitions | E1: Compatible with International recommendations for energy statistics (UN, 2011)
B3: =HLOOKUP(LangChoice,Definitions_ProdLang!$C$2:$E$75,Definitions_ProdLang!$A3+1,FALSE) -> PRODUCT DEFINITIONS | E3: =HLOOKUP(LangChoice,Definitions_FlowLang!$C$2:$E$112,Definitions_ProdLang!$A3+1,FALSE) -> FLOW DEFINITIONS
C4: =C12 -> Coal, peat, oilshale and oil sands | E4: =C86 -> Supply
C5: =C31 -> Crude, NGL, refinery feedstocks | E5: =C98 -> Transformation processes
C6: =C37 -> Oil products | E6: =C121 -> Energy industry own use and losses
C7: =C55 -> Natural gas | E7: =C141 -> Final consumption
C8: =C57 -> Biofuels and waste | E8: =C175 -> Electricity and heat output
C9: =C69 -> Electricity and heat
A11: =CONCATENATE(HLOOKUP(LangChoice,Definitions_ProdLang!$C$2:$E$75,Definitions_ProdLang!$A3+1,FALSE),":") -> PRODUCT DEFINITIONS: | E11: Link to IRES: https://unstats.un.org/unsd/energy/ires/
C12: =HLOOKUP(LangChoice,Definitions_ProdLang!$C$2:$E$75,Definitions_ProdLang!$A4+1,FALSE) -> Coal, peat, oilshale and oil sands | D12: :
C13: =HLOOKUP(LangChoice,Definitions_ProdLang!$C$2:$E$75,Definitions_ProdLang!$A5+1,FALSE) -> Anthracite | D13: : | E13: =HLOOKUP(LangChoice,Definitions_ProdLang!$F$2:$H$75,Definitions_ProdLang!$A5+1,FALSE) -> High rank coal used for industrial and residential applications. It has generally less than 10% volatile matter and a high carbon content (about 90% fixed carbon). Its gross calorific value is equal to or greater than 24 000 kJ/kg on an ash-free but moist basis.
C14: =HLOOKUP(LangChoice,Definitions_ProdLang!$C$2:$E$75,Definitions_ProdLang!$A6+1,FALSE) -> Coking coal | D14: : | E14: =HLOOKUP(LangChoice,Definitions_ProdLang!$F$2:$H$75,Definitions_ProdLang!$A6+1,FALSE) -> Bituminous coal with a quality that allows the production of a coke suitable to support a blast furnace charge. Its gross calorific value is equal to or greater than 24 000 kJ/kg on an ash-free but moist basis.
C15: =HLOOKUP(LangChoice,Definitions_ProdLang!$C$2:$E$75,Definitions_ProdLang!$A7+1,FALSE) -> Other bituminous coal | D15: : | E15: =HLOOKUP(LangChoice,Definitions_ProdLang!$F$2:$H$75,Definitions_ProdLang!$A7+1,FALSE) -> Coal mainly used for steam raising purposes and includes all bituminous coal that is not included under coking coal nor anthracite. It is characterized by higher volatile matter than anthracite (more than 10%) and lower carbon content (less than 90% fixed carbon). Its gross calorific value is equal to or greater than 24 000 kJ/kg on an ash-free but moist basis. If bituminous coal is used in coke ovens it should be reported as coking coal.
C16: =HLOOKUP(LangChoice,Definitions_ProdLang!$C$2:$E$75,Definitions_ProdLang!$A8+1,FALSE) -> Sub-bituminous coal | D16: : | E16: =HLOOKUP(LangChoice,Definitions_ProdLang!$F$2:$H$75,Definitions_ProdLang!$A8+1,FALSE) -> Non-agglomerating coal with a gross calorific value equal to or greater than 20 000 kJ/kg and less than 24 000 kJ/kg containing more than 31% volatile matter on a dry mineral matter free basis.
C17: =HLOOKUP(LangChoice,Definitions_ProdLang!$C$2:$E$75,Definitions_ProdLang!$A9+1,FALSE) -> Lignite | D17: : | E17: =HLOOKUP(LangChoice,Definitions_ProdLang!$F$2:$H$75,Definitions_ProdLang!$A9+1,FALSE) -> Non-agglomerating coal with a gross calorific value less than 20 000 kJ/kg and greater than 31% volatile matter on a dry mineral matter free basis.
C18: =HLOOKUP(LangChoice,Definitions_ProdLang!$C$2:$E$75,Definitions_ProdLang!$A10+1,FALSE) -> Patent fuel | D18: : | E18: =HLOOKUP(LangChoice,Definitions_ProdLang!$F$2:$H$75,Definitions_ProdLang!$A10+1,FALSE) -> A composition fuel manufactured from hard coal fines with the addition of a binding agent. The amount of patent fuel produced may, therefore, be slightly higher than the actual amount of coal consumed in the transformation process.
C19: =HLOOKUP(LangChoice,Definitions_ProdLang!$C$2:$E$75,Definitions_ProdLang!$A11+1,FALSE) -> Coke oven coke | D19: : | E19: =HLOOKUP(LangChoice,Definitions_ProdLang!$F$2:$H$75,Definitions_ProdLang!$A11+1,FALSE) -> The solid product obtained from carbonization of coal, principally coking coal, at high temperature, it is low in moisture and volatile matter. Coke oven coke is used mainly in the iron and steel industry acting as energy source and chemical agent. Coke breeze and foundry coke are included in this category. Semi-coke (a solid product obtained from carbonization of coal at low temperature) should be included in this category. Semi-coke is used as a domestic fuel or by the transformation plant itself. This heading also includes coke, coke breeze and semi-coke made from lignite/brown coal.
C20: =HLOOKUP(LangChoice,Definitions_ProdLang!$C$2:$E$75,Definitions_ProdLang!$A12+1,FALSE) -> Gas coke | D20: : | E20: =HLOOKUP(LangChoice,Definitions_ProdLang!$F$2:$H$75,Definitions_ProdLang!$A12+1,FALSE) -> By-product of hard coal used for production of town gas in gas works. Gas coke is used for heating purposes.
C21: =HLOOKUP(LangChoice,Definitions_ProdLang!$C$2:$E$75,Definitions_ProdLang!$A13+1,FALSE) -> Coal tar | D21: : | E21: =HLOOKUP(LangChoice,Definitions_ProdLang!$F$2:$H$75,Definitions_ProdLang!$A13+1,FALSE) -> A result of the destructive distillation of bituminous coal or of the low-temperature carbonisation of brown coal. Coal tar from bituminous coal is the liquid by-product of the distillation of coal to make coke in the coke oven process. Coal tar can be further distilled into different organic products (e.g. benzene, toluene, naphthalene), which normally would be reported as a feedstock to the petrochemical industry.
C22: =HLOOKUP(LangChoice,Definitions_ProdLang!$C$2:$E$75,Definitions_ProdLang!$A14+1,FALSE) -> BKB (Brown coal briquettes) | D22: : | E22: =HLOOKUP(LangChoice,Definitions_ProdLang!$F$2:$H$75,Definitions_ProdLang!$A14+1,FALSE) -> BKB is a composition fuel manufactured from lignite or sub-bituminous coal, produced by briquetting under high pressure without the addition of a binding agent.
C23: =HLOOKUP(LangChoice,Definitions_ProdLang!$C$2:$E$75,Definitions_ProdLang!$A15+1,FALSE) -> Gas works gas | D23: : | E23: =HLOOKUP(LangChoice,Definitions_ProdLang!$F$2:$H$75,Definitions_ProdLang!$A15+1,FALSE) -> Covers all types of gases produced in public utility or private plants, whose main purpose is manufacture, transport and distribution of gas. It includes gas produced by carbonization (including gas produced by coke ovens and transferred to gas works gas), by total gasification with or without enrichment with oil products (LPG, residual fuel oil, etc.), and by reforming and simple mixing of gases and/or air, reported under the rows, From other sources. Under the transformation sector identify amounts of gas work gas transferred to blended natural gas which will be distributed and consumed through the natural gas grid. The quantity of fuel should be reported on a gross calorific value basis. The production of other coal gases (i.e. coke oven gas, blast furnace gas and other recovered gases) should be reported in the columns concerning such gases, and not as production of gas works gas. The coal gases transferred to gas works plants should then be reported (in their own column) in the transformation sector in the gas works plants row. The total amount of gas works gas resulting from transfers of other coal gases should appear in the production line for gas works gas.
C24: =HLOOKUP(LangChoice,Definitions_ProdLang!$C$2:$E$75,Definitions_ProdLang!$A16+1,FALSE) -> Coke oven gas | D24: : | E24: =HLOOKUP(LangChoice,Definitions_ProdLang!$F$2:$H$75,Definitions_ProdLang!$A16+1,FALSE) -> Obtained as a by-product from the manufacture of coke oven coke for the production of iron and steel. The quantity of fuel should be reported on a gross calorific value basis.
C25: =HLOOKUP(LangChoice,Definitions_ProdLang!$C$2:$E$75,Definitions_ProdLang!$A17+1,FALSE) -> Blast furnace gas | D25: : | E25: =HLOOKUP(LangChoice,Definitions_ProdLang!$F$2:$H$75,Definitions_ProdLang!$A17+1,FALSE) -> Produced during the combustion of coke in blast furnaces in the iron and steel industry. It is recovered and used as a fuel partly within the plant and partly in other steel industry processes or in power stations equipped to burn it. The quantity of recuperated fuel should be reported on a gross calorific value basis. In addition, off-gases from all iron-production reduction processes utilising air as the oxygen source (such as Direct reduced iron) should be reported here.
C26: =HLOOKUP(LangChoice,Definitions_ProdLang!$C$2:$E$75,Definitions_ProdLang!$A18+1,FALSE) -> Other recovered gases | D26: : | E26: =HLOOKUP(LangChoice,Definitions_ProdLang!$F$2:$H$75,Definitions_ProdLang!$A18+1,FALSE) -> By-product of the production of steel in an oxygen furnace, recovered on leaving the furnace. The gases are also known as converter gas, LD gas or BOS gas. The quantity of recuperated fuel should be reported on a gross calorific value basis. Also covers non-specified manufactured gases not mentioned above, such as combustible gases of solid carbonaceous origin recovered from manufacturing and chemical processes not elsewhere defined.
C27: =HLOOKUP(LangChoice,Definitions_ProdLang!$C$2:$E$75,Definitions_ProdLang!$A19+1,FALSE) -> Elec/heat output from non-spec. manufactured gases | D27: : | E27: =HLOOKUP(LangChoice,Definitions_ProdLang!$F$2:$H$75,Definitions_ProdLang!$A19+1,FALSE) -> This item is only used if the detailed breakdown is not available. It includes coke oven gas, blast furnace gas and other recovered gases. Gas works gas is not included here.
C28: =HLOOKUP(LangChoice,Definitions_ProdLang!$C$2:$E$75,Definitions_ProdLang!$A20+1,FALSE) -> Peat | D28: : | E28: =HLOOKUP(LangChoice,Definitions_ProdLang!$F$2:$H$75,Definitions_ProdLang!$A20+1,FALSE) -> A combustible soft, porous or compressed, fossil sedimentary deposit of plant origin with high water content (up to 90 percent in the raw state), easily cut, and of light to dark brown colour. Peat used for non-energy purposes should not included here. Milled peat is included here.
C29: =HLOOKUP(LangChoice,Definitions_ProdLang!$C$2:$E$75,Definitions_ProdLang!$A21+1,FALSE) -> Peat products | D29: : | E29: =HLOOKUP(LangChoice,Definitions_ProdLang!$F$2:$H$75,Definitions_ProdLang!$A21+1,FALSE) -> Products such as peat briquettes derived directly or indirectly from sod peat and milled peat.
C30: =HLOOKUP(LangChoice,Definitions_ProdLang!$C$2:$E$75,Definitions_ProdLang!$A22+1,FALSE) -> Oil shale and oil sands | D30: : | E30: =HLOOKUP(LangChoice,Definitions_ProdLang!$F$2:$H$75,Definitions_ProdLang!$A22+1,FALSE) -> Oil shale and oil sands are sedimentary rock which contains organic matter in the form of kerogen. Kerogen is a waxy hydrocarbon-rich material regarded as a precursor of petroleum. Oil shale may be burned directly or processed by heating to extract shale oil. Oil shale and tar sands used as inputs for other transformation processes are also included here (this includes the portion consumed in the transformation process). Shale oil and other products derived from liquefaction are included in from other sources under crude oil (other hydrocarbons).
C31: =HLOOKUP(LangChoice,Definitions_ProdLang!$C$2:$E$75,Definitions_ProdLang!$A23+1,FALSE) -> Crude, NGL, refinery feedstocks | D31: :
C32: =HLOOKUP(LangChoice,Definitions_ProdLang!$C$2:$E$75,Definitions_ProdLang!$A24+1,FALSE) -> Crude oil | D32: : | E32: =HLOOKUP(LangChoice,Definitions_ProdLang!$F$2:$H$75,Definitions_ProdLang!$A24+1,FALSE) -> Crude oil is a mineral oil of natural origin comprising a mixture of hydrocarbons and associated impurities, such as sulphur. It exists in the liquid phase under normal surface temperature and pressure and its physical characteristics (density, viscosity, etc.) are highly variable. This category includes field or lease condensate recovered from associated and non–associated gas where it is commingled with the commercial crude oil stream.
C33: =HLOOKUP(LangChoice,Definitions_ProdLang!$C$2:$E$75,Definitions_ProdLang!$A25+1,FALSE) -> Natural gas liquids (NGL) | D33: : | E33: =HLOOKUP(LangChoice,Definitions_ProdLang!$F$2:$H$75,Definitions_ProdLang!$A25+1,FALSE) -> NGL are liquid or liquefied hydrocarbons recovered from natural gas in separation facilities or gas processing plants. Natural gas liquids include ethane, propane, butane (normal and iso–), (iso) pentane and pentanes plus (sometimes referred to as natural gasoline or plant condensate).
C34: =HLOOKUP(LangChoice,Definitions_ProdLang!$C$2:$E$75,Definitions_ProdLang!$A26+1,FALSE) -> Refinery feedstocks | D34: : | E34: =HLOOKUP(LangChoice,Definitions_ProdLang!$F$2:$H$75,Definitions_ProdLang!$A26+1,FALSE) -> A refinery feedstock is a processed oil destined for further processing (e.g. straight run fuel oil or vacuum gas oil) excluding blending. With further processing, it will be transformed into one or more components and/or finished products. This definition also covers returns from the petrochemical industry to the refining industry (e.g. pyrolysis gasoline, C4 fractions, gasoil and fuel oil fractions).
C35: =HLOOKUP(LangChoice,Definitions_ProdLang!$C$2:$E$75,Definitions_ProdLang!$A27+1,FALSE) -> Additives/ blending components | D35: : | E35: =HLOOKUP(LangChoice,Definitions_ProdLang!$F$2:$H$75,Definitions_ProdLang!$A27+1,FALSE) -> Additives are non-hydrocarbon compounds added to or blended with a product to modify fuel properties (octane, cetane, cold properties, etc.): i. Oxygenates, such as alcohols (methanol, ethanol); ethers, such as MTBE (methyl tertiary butyl ether), ETBE (ethyl tertiary butyl ether), TAME (tertiary amyl methyl ether); ii. Esters (e.g. rapeseed or dimethylester, etc.); iii. Chemical compounds (such as TML, TEL and detergents). The biofuel fractions of biogasoline, biodiesel and ethanol are not included here, but under liquid biofuels. This differs from the presentation of additives in the Oil Information publication.
C36: =HLOOKUP(LangChoice,Definitions_ProdLang!$C$2:$E$75,Definitions_ProdLang!$A28+1,FALSE) -> Other hydro-carbons | D36: : | E36: =HLOOKUP(LangChoice,Definitions_ProdLang!$F$2:$H$75,Definitions_ProdLang!$A28+1,FALSE) -> This category includes synthetic crude oil from tar sands, shale oil, etc., liquids from coal liquefaction, (see the Annual coal questionnaire), output of liquids from natural gas conversion into gasoline (see the Annual natural gas questionnaire), hydrogen and emulsified oils (e.g. Orimulsion).
C37: =HLOOKUP(LangChoice,Definitions_ProdLang!$C$2:$E$75,Definitions_ProdLang!$A29+1,FALSE) -> Oil products | D37: :
C38: =HLOOKUP(LangChoice,Definitions_ProdLang!$C$2:$E$75,Definitions_ProdLang!$A30+1,FALSE) -> Refinery gas | D38: : | E38: =HLOOKUP(LangChoice,Definitions_ProdLang!$F$2:$H$75,Definitions_ProdLang!$A30+1,FALSE) -> Refinery gas includes a mixture of non-condensed gases mainly consisting of hydrogen, methane, ethane and olefins obtained during distillation of crude oil or treatment of oil products (e.g. cracking) in refineries. It also includes gases which are returned from the petrochemical industry. Refinery gas production refers to gross production. Own consumption is shown separately under oil refineries in energy industry own use.
C39: =HLOOKUP(LangChoice,Definitions_ProdLang!$C$2:$E$75,Definitions_ProdLang!$A31+1,FALSE) -> Ethane | D39: : | E39: =HLOOKUP(LangChoice,Definitions_ProdLang!$F$2:$H$75,Definitions_ProdLang!$A31+1,FALSE) -> A naturally gaseous straight–chain hydrocarbon, (C2H6) extracted from natural gas and refinery gas streams.
C40: =HLOOKUP(LangChoice,Definitions_ProdLang!$C$2:$E$75,Definitions_ProdLang!$A32+1,FALSE) -> Liquefied petroleum gases (LPG) | D40: : | E40: =HLOOKUP(LangChoice,Definitions_ProdLang!$F$2:$H$75,Definitions_ProdLang!$A32+1,FALSE) -> LPG are light paraffinic hydrocarbons derived from the refinery processes, crude oil stabilisation and natural gas processing plants. They consist mainly of propane (C3H8) and butane (C4H10) or a combination of the two. They could also include propylene, butylene, isobutene and isobutylene. LPG are normally liquefied under pressure for transportation and storage.
C41: =HLOOKUP(LangChoice,Definitions_ProdLang!$C$2:$E$75,Definitions_ProdLang!$A33+1,FALSE) -> Motor gasoline excl. biofuels | D41: : | E41: =HLOOKUP(LangChoice,Definitions_ProdLang!$F$2:$H$75,Definitions_ProdLang!$A33+1,FALSE) -> Motor gasoline is light hydrocarbon oil for use in internal combustion engines such as motor vehicles, excluding aircraft. Motor gasoline is distilled between 35°C and 215°C and is used as a fuel for land based spark ignition engines. Motor gasoline may include additives, oxygenates and octane enhancers, including lead compounds such as TEL (tetraethyl lead) and TML (tetramethyl lead). Motor gasoline excluding biofuels does not include the liquid biofuels or ethanol blended with gasoline - see liquid biofuels. This differs from the presentation of motor gasoline in the Oil Information publication.
C42: =HLOOKUP(LangChoice,Definitions_ProdLang!$C$2:$E$75,Definitions_ProdLang!$A34+1,FALSE) -> Aviation gasoline | D42: : | E42: =HLOOKUP(LangChoice,Definitions_ProdLang!$F$2:$H$75,Definitions_ProdLang!$A34+1,FALSE) -> Aviation gasoline is motor spirit prepared especially for aviation piston engines, with an octane number suited to the engine, a freezing point of -60°C, and a distillation range usually within the limits of 30°C and 180°C.
C43: =HLOOKUP(LangChoice,Definitions_ProdLang!$C$2:$E$75,Definitions_ProdLang!$A35+1,FALSE) -> Gasoline type jet fuel | D43: : | E43: =HLOOKUP(LangChoice,Definitions_ProdLang!$F$2:$H$75,Definitions_ProdLang!$A35+1,FALSE) -> Gasoline type jet fuel includes all light hydrocarbon oils for use in aviation turbine power units, distilling between 100°C and 250°C. This fuel is obtained by blending kerosene and gasoline or naphtha in such a way that the aromatic content does not exceed 25% in volume, and the vapour pressure is between 13.7 kPa and 20.6 kPa. Additives can be included to improve fuel stability and combustibility.
C44: =HLOOKUP(LangChoice,Definitions_ProdLang!$C$2:$E$75,Definitions_ProdLang!$A36+1,FALSE) -> Kerosene type jet fuel excl. biofuels | D44: : | E44: =HLOOKUP(LangChoice,Definitions_ProdLang!$F$2:$H$75,Definitions_ProdLang!$A36+1,FALSE) -> Kerosene type jet fuel is a medium distillate used for aviation turbine power units. It has the same distillation characteristics and flash point as kerosene (between 150°C and 300°C but not generally above 250°C). In addition, it has particular specifications (such as freezing point) which are established by the International Air Transport Association (IATA). It includes kerosene blending components. Kerosene type jet fuel excluding biofuels does not include the liquid biofuels blended with jet kerosene.
C45: =HLOOKUP(LangChoice,Definitions_ProdLang!$C$2:$E$75,Definitions_ProdLang!$A37+1,FALSE) -> Other kerosene | D45: : | E45: =HLOOKUP(LangChoice,Definitions_ProdLang!$F$2:$H$75,Definitions_ProdLang!$A37+1,FALSE) -> Kerosene (other than kerosene used for aircraft transport which is included with aviation fuels) comprises refined petroleum distillate intermediate in volatility between gasoline and gas/diesel oil. It is a medium oil distillate between 150°C and 300°C.
C46: =HLOOKUP(LangChoice,Definitions_ProdLang!$C$2:$E$75,Definitions_ProdLang!$A38+1,FALSE) -> Gas/diesel oil excluding biofuels | D46: : | E46: =HLOOKUP(LangChoice,Definitions_ProdLang!$F$2:$H$75,Definitions_ProdLang!$A38+1,FALSE) -> Gas/diesel oil includes heavy gas oils. Gas oils are obtained from the lowest fraction from atmospheric distillation of crude oil, while heavy gas oils are obtained by vacuum redistillation of the residual from atmospheric distillation. Gas/diesel oil distils between 180°C and 380°C. Several grades are available depending on uses: diesel oil for diesel compression ignition (cars, trucks, marine, etc.), light heating oil for industrial and commercial uses, and other gas oil including heavy gas oils which distil between 380°C and 540°C and which are used as petrochemical feedstocks. Gas/diesel oil excluding biofuels does not include the liquid biofuels blended with gas/diesel oil – see liquid biofuels. This differs from the presentation of gas/diesel oil in the Oil Information publication.
C47: =HLOOKUP(LangChoice,Definitions_ProdLang!$C$2:$E$75,Definitions_ProdLang!$A39+1,FALSE) -> Fuel oil | D47: : | E47: =HLOOKUP(LangChoice,Definitions_ProdLang!$F$2:$H$75,Definitions_ProdLang!$A39+1,FALSE) -> Fuel oil defines oils that make up the distillation residue. It comprises all residual fuel oils, including those obtained by blending. Its kinematic viscosity is above 10 cSt at 80°C. The flash point is always above 50°C and the density is always higher than 0.90 kg/l.
C48: =HLOOKUP(LangChoice,Definitions_ProdLang!$C$2:$E$75,Definitions_ProdLang!$A40+1,FALSE) -> Naphtha | D48: : | E48: =HLOOKUP(LangChoice,Definitions_ProdLang!$F$2:$H$75,Definitions_ProdLang!$A40+1,FALSE) -> Naphtha is a feedstock destined either for the petrochemical industry (e.g. ethylene manufacture or aromatics production) or for gasoline production by reforming or isomerisation within the refinery. Naphtha comprises material that distils between 30°C and 210°C. Naphtha imported for blending is shown as an import of naphtha, and then shown in the transfers row as a negative entry for naphtha and a positive entry for the corresponding finished product (e.g. gasoline).
C49: =HLOOKUP(LangChoice,Definitions_ProdLang!$C$2:$E$75,Definitions_ProdLang!$A41+1,FALSE) -> White spirit & SBP | D49: : | E49: =HLOOKUP(LangChoice,Definitions_ProdLang!$F$2:$H$75,Definitions_ProdLang!$A41+1,FALSE) -> White spirit and SBP are refined distillate intermediates with a distillation in the naphtha/kerosene range. i. White Spirit has a flash point above 30°C and a distillation range of 135°C to 200°C. ii. Industrial Spirit (SBP) comprises light oils distilling between 30°C and 200°C, with a temperature difference between 5% volume and 90% volume distillation points, including losses, of not more than 60°C. In other words, SBP is a light oil of narrower cut than motor spirit. There are seven or eight grades of industrial spirit, depending on the position of the cut in the distillation range defined above.
C50: =HLOOKUP(LangChoice,Definitions_ProdLang!$C$2:$E$75,Definitions_ProdLang!$A42+1,FALSE) -> Lubricants | D50: : | E50: =HLOOKUP(LangChoice,Definitions_ProdLang!$F$2:$H$75,Definitions_ProdLang!$A42+1,FALSE) -> Lubricants are hydrocarbons produced from distillate or residue; they are mainly used to reduce friction between bearing surfaces. This category includes all finished grades of lubricating oil, from spindle oil to cylinder oil, and those used in greases, including motor oils and all grades of lubricating oil base stocks.
C51: =HLOOKUP(LangChoice,Definitions_ProdLang!$C$2:$E$75,Definitions_ProdLang!$A43+1,FALSE) -> Bitumen | D51: : | E51: =HLOOKUP(LangChoice,Definitions_ProdLang!$F$2:$H$75,Definitions_ProdLang!$A43+1,FALSE) -> Bitumen is a solid, semi-solid or viscous hydrocarbon with a colloidal structure that is brown to black in colour. It is obtained by vacuum distillation of oil residues from atmospheric distillation of crude oil. Bitumen is often referred to as asphalt and is primarily used for surfacing of roads and for roofing material. This category includes fluidised and cut back bitumen.
C52: =HLOOKUP(LangChoice,Definitions_ProdLang!$C$2:$E$75,Definitions_ProdLang!$A44+1,FALSE) -> Paraffin waxes | D52: : | E52: =HLOOKUP(LangChoice,Definitions_ProdLang!$F$2:$H$75,Definitions_ProdLang!$A44+1,FALSE) -> Paraffin waxes are saturated aliphatic hydrocarbons. These waxes are residues extracted when dewaxing lubricant oils, and they have a crystalline structure which is more or less fine according to the grade. Their main characteristics are that they are colourless, odourless and translucent, with a melting point above 45°C.
C53: =HLOOKUP(LangChoice,Definitions_ProdLang!$C$2:$E$75,Definitions_ProdLang!$A45+1,FALSE) -> Petroleum coke | D53: : | E53: =HLOOKUP(LangChoice,Definitions_ProdLang!$F$2:$H$75,Definitions_ProdLang!$A45+1,FALSE) -> Petroleum coke is defined as a black solid by-product, obtained mainly by cracking and carbonising of petroleum derived feedstocks, vacuum bottoms, tar and pitches in processes such as delayed coking or fluid coking. It consists mainly of carbon (90 to 95%) and has a low ash content. It is used as a feedstock in coke ovens for the steel industry, for heating purposes, for electrode manufacture and for production of chemicals. The two most important qualities are "green coke" and "calcined coke". This category also includes "catalyst coke" deposited on the catalyst during refining processes: this coke is not recoverable and is usually burned as refinery fuel.
C54: =HLOOKUP(LangChoice,Definitions_ProdLang!$C$2:$E$75,Definitions_ProdLang!$A46+1,FALSE) -> Non-specified oil products | D54: : | E54: =HLOOKUP(LangChoice,Definitions_ProdLang!$F$2:$H$75,Definitions_ProdLang!$A46+1,FALSE) -> Other oil products not classified above (e.g. tar, sulphur and grease) are included here. This category also includes aromatics (e.g. BTX or benzene, toluene and xylene) and olefins (e.g. propylene) produced within refineries.
C55: =HLOOKUP(LangChoice,Definitions_ProdLang!$C$2:$E$75,Definitions_ProdLang!$A47+1,FALSE) -> Natural gas | D55: :
C56: =HLOOKUP(LangChoice,Definitions_ProdLang!$C$2:$E$75,Definitions_ProdLang!$A48+1,FALSE) -> Natural gas | D56: : | E56: =HLOOKUP(LangChoice,Definitions_ProdLang!$F$2:$H$75,Definitions_ProdLang!$A48+1,FALSE) -> Natural gas comprises gases, occurring in underground deposits, whether liquefied or gaseous, consisting mainly of methane. It includes both "non-associated" gas originating from fields producing hydrocarbons only in gaseous form, and "associated" gas produced in association with crude oil as well as methane recovered from coal mines (colliery gas) or from coal seams (coal seam gas). Production represents dry marketable production within national boundaries, including offshore production and is measured after purification and extraction of NGL and sulphur. In other words, quantities of gas that are re-injected, vented or flared are excluded. It includes gas consumed by gas processing plants and gas transported by pipeline. Biogases produced by anaerobic digestion of biomass (e.g. municipal or sewage gas) should be reported in the Renewables annual questionnaire, while gas works gas production should be reported in the Coal annual questionnaire. Transfers of such production to the natural gas network will be reported as “Receipts from other sources”.
C57: =HLOOKUP(LangChoice,Definitions_ProdLang!$C$2:$E$75,Definitions_ProdLang!$A49+1,FALSE) -> Biofuels and waste | D57: :
C58: =HLOOKUP(LangChoice,Definitions_ProdLang!$C$2:$E$75,Definitions_ProdLang!$A50+1,FALSE) -> Industrial waste | D58: : | E58: =HLOOKUP(LangChoice,Definitions_ProdLang!$F$2:$H$75,Definitions_ProdLang!$A50+1,FALSE) -> Industrial waste of non-renewable origin consists of solid and liquid products (e.g. tyres) combusted directly, usually in specialised plants, to produce heat and/or power. The quantity of fuel used should be reported on a net calorific value basis. Renewable industrial waste should be reported in the Solid biofuels, Biogases and/or Liquid biofuels categories.
C59: =HLOOKUP(LangChoice,Definitions_ProdLang!$C$2:$E$75,Definitions_ProdLang!$A51+1,FALSE) -> Municipal waste (renewable) | D59: : | E59: =HLOOKUP(LangChoice,Definitions_ProdLang!$F$2:$H$75,Definitions_ProdLang!$A51+1,FALSE) -> Municipal waste consists of that portion of waste produced by households, industry, hospitals and the tertiary sector which is biological material collected by local authorities and incinerated at specific installations. The quantity of fuel used should be reported on a net calorific value basis.
C60: =HLOOKUP(LangChoice,Definitions_ProdLang!$C$2:$E$75,Definitions_ProdLang!$A52+1,FALSE) -> Municipal waste (non-renewable) | D60: : | E60: =HLOOKUP(LangChoice,Definitions_ProdLang!$F$2:$H$75,Definitions_ProdLang!$A52+1,FALSE) -> Municipal waste consists of that portion of waste produced by households, industry, hospitals and the tertiary sector which is non-biological material collected by local authorities and incinerated at specific installations. The quantity of fuel used should be reported on a net calorific value basis.
C61: =HLOOKUP(LangChoice,Definitions_ProdLang!$C$2:$E$75,Definitions_ProdLang!$A53+1,FALSE) -> Primary solid biofuels | D61: : | E61: =HLOOKUP(LangChoice,Definitions_ProdLang!$F$2:$H$75,Definitions_ProdLang!$A53+1,FALSE) -> Primary solid biofuels is defined as any plant matter used directly as fuel or converted into other forms before combustion. This covers a multitude of woody materials generated by industrial process or provided directly by forestry and agriculture (firewood, wood chips, bark, sawdust, shavings, chips, sulphite lyes also known as black liquor, animal materials/wastes and other solid biofuels). Note that for biofuels, only the amounts of biomass specifically used for energy purposes (a small part of the total) are included in the energy statistics. Therefore, the non-energy use of biomass is not taken into consideration and the quantities are null by definition.
C62: =HLOOKUP(LangChoice,Definitions_ProdLang!$C$2:$E$75,Definitions_ProdLang!$A54+1,FALSE) -> Biogases | D62: : | E62: =HLOOKUP(LangChoice,Definitions_ProdLang!$F$2:$H$75,Definitions_ProdLang!$A54+1,FALSE) -> Biogases are gases arising from the anaerobic fermentation of biomass and the gasification of solid biomass (including biomass in wastes). The biogases from anaerobic fermentation are composed principally of methane and carbon dioxide and comprise landfill gas, sewage sludge gas and other biogases from anaerobic fermentation. Biogases can also be produced from thermal processes (by gasification or pyrolysis of biomass) and are mixtures containing hydrogen and carbon monoxide (usually known as syngas) along with other components. These gases may be further processed to modify their composition and can be further processed to produce substitute natural gas. Biogases are used mainly as a fuel but can be used as a chemical feedstock.
C63: =HLOOKUP(LangChoice,Definitions_ProdLang!$C$2:$E$75,Definitions_ProdLang!$A55+1,FALSE) -> Biogasoline | D63: : | E63: =HLOOKUP(LangChoice,Definitions_ProdLang!$F$2:$H$75,Definitions_ProdLang!$A55+1,FALSE) -> Biogasoline includes bioethanol (ethanol produced from biomass and/or the biodegradable fraction of waste), biomethanol (methanol produced from biomass and/or the biodegradable fraction of waste), bioETBE (ethyl-tertio-butyl-ether produced on the basis of bioethanol; the percentage by volume of bioETBE that is calculated as biofuel is 47%) and bioMTBE (methyl-tertio-butyl-ether produced on the basis of biomethanol: the percentage by volume of bioMTBE that is calculated as biofuel is 36%). Biogasoline includes the amounts that are blended into the gasoline - it does not include the total volume of gasoline into which the biogasoline is blended.
C64: =HLOOKUP(LangChoice,Definitions_ProdLang!$C$2:$E$75,Definitions_ProdLang!$A56+1,FALSE) -> Bio jet kerosene | D64: : | E64: =HLOOKUP(LangChoice,Definitions_ProdLang!$F$2:$H$75,Definitions_ProdLang!$A56+1,FALSE) -> Liquid biofuels derived from biomass and blended with or replacing jet kerosene.
C65: =HLOOKUP(LangChoice,Definitions_ProdLang!$C$2:$E$75,Definitions_ProdLang!$A57+1,FALSE) -> Biodiesels | D65: : | E65: =HLOOKUP(LangChoice,Definitions_ProdLang!$F$2:$H$75,Definitions_ProdLang!$A57+1,FALSE) -> Biodiesels includes biodiesel (a methyl-ester produced from vegetable or animal oil, of diesel quality), biodimethylether (dimethylether produced from biomass), Fischer-Tropsch (Fischer-Tropsch produced from biomass), cold pressed bio-oil (oil produced from oil seed through mechanical processing only) and all other liquid biofuels which are added to, blended with or used straight as transport diesel or in electricity and heat generation. Biodiesels includes the amounts that are blended into the diesel - it does not include the total volume of diesel into which the biodiesel is blended.
C66: =HLOOKUP(LangChoice,Definitions_ProdLang!$C$2:$E$75,Definitions_ProdLang!$A58+1,FALSE) -> Other liquid biofuels | D66: : | E66: =HLOOKUP(LangChoice,Definitions_ProdLang!$F$2:$H$75,Definitions_ProdLang!$A58+1,FALSE) -> Other liquid biofuels includes liquid biofuels, used directly as fuel, not included in the definitions of biogasoline, biodiesel or bio jet kerosene and liquid biofuels consumption that cannot be reported under the right category because of missing information.
C67: =HLOOKUP(LangChoice,Definitions_ProdLang!$C$2:$E$75,Definitions_ProdLang!$A59+1,FALSE) -> Non-specified primary biofuels/ waste | D67: : | E67: =HLOOKUP(LangChoice,Definitions_ProdLang!$F$2:$H$75,Definitions_ProdLang!$A59+1,FALSE) -> This item is used when the detailed breakdown for primary biofuels and waste is not available.
C68: =HLOOKUP(LangChoice,Definitions_ProdLang!$C$2:$E$75,Definitions_ProdLang!$A60+1,FALSE) -> Charcoal | D68: : | E68: =HLOOKUP(LangChoice,Definitions_ProdLang!$F$2:$H$75,Definitions_ProdLang!$A60+1,FALSE) -> It covers the solid residue of the destructive distillation and pyrolysis of wood and other vegetal material.
C69: =HLOOKUP(LangChoice,Definitions_ProdLang!$C$2:$E$75,Definitions_ProdLang!$A61+1,FALSE) -> Electricity and heat | D69: :
C70: =HLOOKUP(LangChoice,Definitions_ProdLang!$C$2:$E$75,Definitions_ProdLang!$A62+1,FALSE) -> Nuclear | D70: : | E70: =HLOOKUP(LangChoice,Definitions_ProdLang!$F$2:$H$75,Definitions_ProdLang!$A62+1,FALSE) -> Energy released by nuclear fission or nuclear fusion.
C71: =HLOOKUP(LangChoice,Definitions_ProdLang!$C$2:$E$75,Definitions_ProdLang!$A63+1,FALSE) -> Hydro | D71: : | E71: =HLOOKUP(LangChoice,Definitions_ProdLang!$F$2:$H$75,Definitions_ProdLang!$A63+1,FALSE) -> Potential and kinetic energy of water converted into electricity in hydroelectric plants. Pumped storage from mixed and pure pumped storage plants should be included.
C72: =HLOOKUP(LangChoice,Definitions_ProdLang!$C$2:$E$75,Definitions_ProdLang!$A64+1,FALSE) -> Geothermal | D72: : | E72: =HLOOKUP(LangChoice,Definitions_ProdLang!$F$2:$H$75,Definitions_ProdLang!$A64+1,FALSE) -> Energy available as heat emitted from within the earth’s crust, usually in the form of hot water or steam. It is exploited at suitable sites: -for electricity generation using dry steam or high enthalpy brine after flashing -directly as heat for district heating, agriculture, etc.
C73: =HLOOKUP(LangChoice,Definitions_ProdLang!$C$2:$E$75,Definitions_ProdLang!$A65+1,FALSE) -> Solar photovoltaic | D73: : | E73: =HLOOKUP(LangChoice,Definitions_ProdLang!$F$2:$H$75,Definitions_ProdLang!$A65+1,FALSE) -> Converts sunlight into electricity by the use of solar cells usually made of semi-conducting material which exposed to light will generate electricity.
C74: =HLOOKUP(LangChoice,Definitions_ProdLang!$C$2:$E$75,Definitions_ProdLang!$A66+1,FALSE) -> Solar thermal | D74: : | E74: =HLOOKUP(LangChoice,Definitions_ProdLang!$F$2:$H$75,Definitions_ProdLang!$A66+1,FALSE) -> Solar thermal can consist of -solar thermal-electric plants; -equipment for the production of heat for sale (hot water or steam) Passive solar energy for the direct heating, cooling and lighting of dwellings or other buildings is not included.
C75: =HLOOKUP(LangChoice,Definitions_ProdLang!$C$2:$E$75,Definitions_ProdLang!$A67+1,FALSE) -> Tide/ wave/ ocean | D75: : | E75: =HLOOKUP(LangChoice,Definitions_ProdLang!$F$2:$H$75,Definitions_ProdLang!$A67+1,FALSE) -> Tide, wave and ocean represents the mechanical energy derived from tidal movement, wave motion or ocean current and exploited for electricity generation.
C76: =HLOOKUP(LangChoice,Definitions_ProdLang!$C$2:$E$75,Definitions_ProdLang!$A68+1,FALSE) -> Wind | D76: : | E76: =HLOOKUP(LangChoice,Definitions_ProdLang!$F$2:$H$75,Definitions_ProdLang!$A68+1,FALSE) -> Wind energy represents the kinetic energy of wind exploited for electricity generation in wind turbines.
C77: =HLOOKUP(LangChoice,Definitions_ProdLang!$C$2:$E$75,Definitions_ProdLang!$A69+1,FALSE) -> Heat pumps | D77: : | E77: =HLOOKUP(LangChoice,Definitions_ProdLang!$F$2:$H$75,Definitions_ProdLang!$A69+1,FALSE) -> Heat pumps should include the inputs and outputs to heat pumps corresponding to the amount of heat that is sold to third parties.
C78: =HLOOKUP(LangChoice,Definitions_ProdLang!$C$2:$E$75,Definitions_ProdLang!$A70+1,FALSE) -> Electric boilers | D78: : | E78: =HLOOKUP(LangChoice,Definitions_ProdLang!$F$2:$H$75,Definitions_ProdLang!$A70+1,FALSE) -> Electric boilers should include the inputs and outputs to electric boilers corresponding to the amount of heat that is sold to third parties.
C79: =HLOOKUP(LangChoice,Definitions_ProdLang!$C$2:$E$75,Definitions_ProdLang!$A71+1,FALSE) -> Heat from chemical sources | D79: : | E79: =HLOOKUP(LangChoice,Definitions_ProdLang!$F$2:$H$75,Definitions_ProdLang!$A71+1,FALSE) -> Report only the heat originating from processes without input energy, such as a chemical reaction (e.g. the treatment of zinc oxide ore with hydrochloric acid). Note that waste heat originating from energy driven processes is not considered as a primary energy source. Therefore, it should be reported as heat produced from the corresponding fuel.
C80: =HLOOKUP(LangChoice,Definitions_ProdLang!$C$2:$E$75,Definitions_ProdLang!$A72+1,FALSE) -> Other sources | D80: : | E80: =HLOOKUP(LangChoice,Definitions_ProdLang!$F$2:$H$75,Definitions_ProdLang!$A72+1,FALSE) -> Report electricity production from sources other than those listed, e.g. from fuel cells.
C81: =HLOOKUP(LangChoice,Definitions_ProdLang!$C$2:$E$75,Definitions_ProdLang!$A73+1,FALSE) -> Electricity | D81: : | E81: =HLOOKUP(LangChoice,Definitions_ProdLang!$F$2:$H$75,Definitions_ProdLang!$A73+1,FALSE) -> Gross electricity production is measured at the terminals of all alternator sets in a station; it therefore includes the energy taken by station auxiliaries and losses in transformers that are considered integral parts of the station. The difference between gross and net production is generally estimated as 7% for conventional thermal stations, 1% for hydro stations, and 6% for nuclear, geothermal and solar stations. Production in hydro stations includes production from pumped storage plants.
C82: =HLOOKUP(LangChoice,Definitions_ProdLang!$C$2:$E$75,Definitions_ProdLang!$A74+1,FALSE) -> Heat | D82: : | E82: =HLOOKUP(LangChoice,Definitions_ProdLang!$F$2:$H$75,Definitions_ProdLang!$A74+1,FALSE) -> Heat production includes all heat produced by main activity producer CHP and heat plants, as well as heat sold by autoproducer CHP and heat plants to third parties. Fuels used to produce quantities of heat for sale are included in the transformation processes under the rows CHP plants and Heat plants. The use of fuels for heat which is not sold is included under the sectors in which the fuel use occurs.
C83: =HLOOKUP(LangChoice,Definitions_ProdLang!$C$2:$E$75,Definitions_ProdLang!$A75+1,FALSE) -> Heat output from non-specified combustible fuels | D83: : | E83: =HLOOKUP(LangChoice,Definitions_ProdLang!$F$2:$H$75,Definitions_ProdLang!$A75+1,FALSE) -> This item is only used if the detailed breakdown is not available.
A85: =CONCATENATE(HLOOKUP(LangChoice,Definitions_FlowLang!$C$2:$E$156,Definitions_FlowLang!$A3+1,FALSE),":") -> FLOW DEFINITIONS: | E85: Link to IRES: https://unstats.un.org/unsd/energy/ires/
C86: =HLOOKUP(LangChoice,Definitions_FlowLang!$C$2:$E$156,Definitions_FlowLang!$A4+1,FALSE) -> Supply | D86: :
C87: =HLOOKUP(LangChoice,Definitions_FlowLang!$C$2:$E$156,Definitions_FlowLang!$A5+1,FALSE) -> Production | D87: : | E87: =HLOOKUP(LangChoice,Definitions_FlowLang!$F$2:$H$156,Definitions_FlowLang!$A5+1,FALSE) -> In the balances, production refers to the quantities of fuels extracted or produced, calculated after any operation for removal of inert matter or impurities (e.g. sulphur from natural gas). In the energy statistics, production of secondary products is also included. Production of secondary oil products represents the gross refinery output. Secondary coal products and gases represent the output from coke ovens, gas works, blast furnaces and other transformation processes.
C88: =HLOOKUP(LangChoice,Definitions_FlowLang!$C$2:$E$156,Definitions_FlowLang!$A6+1,FALSE) -> From other sources | D88: : | E88: =HLOOKUP(LangChoice,Definitions_FlowLang!$F$2:$H$156,Definitions_FlowLang!$A6+1,FALSE) -> All inputs of origin other than primary energy sources explicitly recognised in the tables are listed under inputs from other sources, e.g. under crude oil: inputs of origin other than crude oil and NGL such as hydrogen, synthetic crude oil (including mineral oil extracted from bituminous minerals such as shales, bituminous sand, etc.); under additives: benzol, alcohol and methanol produced from natural gas; under refinery feedstocks: backflows from the petrochemical industry used as refinery feedstocks; under hard coal: recovered slurries, middlings, recuperated coal dust and other low-grade coal products that cannot be classified according to type of coal from which they are obtained; under gas works gas: natural gas, refinery gas, and LPG, that are treated or mixed in gas works (i.e. gas works gas produced from sources other than coal).
C89: =HLOOKUP(LangChoice,Definitions_FlowLang!$C$2:$E$156,Definitions_FlowLang!$A12+1,FALSE) -> Imports | D89: : | E89: =HLOOKUP(LangChoice,Definitions_FlowLang!$F$2:$H$156,Definitions_FlowLang!$A12+1,FALSE) -> Comprise amounts having crossed the national territorial boundaries of the country whether or not customs clearance has taken place. For coal: Imports comprise the amount of fuels obtained from other countries, whether or not there is an economic or customs union between the relevant countries. Coal in transit should not be included. For oil and natural gas: Quantities of crude oil and oil products imported under processing agreements (i.e. refining on account) are included. Quantities of oil in transit are excluded. Crude oil, NGL and natural gas are reported as coming from the country of origin; refinery feedstocks and oil products are reported as coming from the country of last consignment. For electricity: Amounts are considered as imported when they have crossed the national territorial boundaries of the country. If electricity is “wheeled” or transited through a country, the amount is shown as both an import and an export.
C90: =HLOOKUP(LangChoice,Definitions_FlowLang!$C$2:$E$156,Definitions_FlowLang!$A13+1,FALSE) -> Exports | D90: : | E90: =HLOOKUP(LangChoice,Definitions_FlowLang!$F$2:$H$156,Definitions_FlowLang!$A13+1,FALSE) -> Comprise amounts having crossed the national territorial boundaries of the country whether or not customs clearance has taken place. ● For coal: Exports comprise the amount of fuels supplied to other countries, whether or not there is an economic or customs union between the relevant countries. Coal in transit should not be included. ● For oil and natural gas: Quantities of crude oil and oil products exported under processing agreements (i.e. refining on account) are included. Re-exports of oil imported for processing within bonded areas are shown as an export of product from the processing country to the final destination. ● For electricity: Amounts are considered as exported when they have crossed the national territorial boundaries of the country. If electricity is “wheeled” or transited through a country, the amount is shown as both an import and an export.
C91: =HLOOKUP(LangChoice,Definitions_FlowLang!$C$2:$E$156,Definitions_FlowLang!$A14+1,FALSE) -> International marine bunkers | D91: : | E91: =HLOOKUP(LangChoice,Definitions_FlowLang!$F$2:$H$156,Definitions_FlowLang!$A14+1,FALSE) -> Report the quantities of oil delivered to ships of all flags that are engaged in international navigation. The international navigation may take place at sea, on inland lakes and waterways, and in coastal waters. Exclude consumption by ships engaged in domestic navigation (see domestic navigation). The domestic/international split should be determined on the basis of port of departure and port of arrival, and not by the flag or nationality of the ship. Exclude consumption by fishing vessels (see Fishing – Other sectors) and consumption by military forces (see Not elsewhere specified – Other sectors).
C92: =HLOOKUP(LangChoice,Definitions_FlowLang!$C$2:$E$156,Definitions_FlowLang!$A15+1,FALSE) -> International aviation bunkers | D92: : | E92: =HLOOKUP(LangChoice,Definitions_FlowLang!$F$2:$H$156,Definitions_FlowLang!$A15+1,FALSE) -> Includes deliveries of aviation fuels to aircraft for international aviation. Fuels used by airlines for their road vehicles are excluded. The domestic/international split should be determined on the basis of departure and landing locations and not by the nationality of the airline. For many countries this incorrectly excludes fuel used by domestically owned carriers for their international departures;
C93: =HLOOKUP(LangChoice,Definitions_FlowLang!$C$2:$E$156,Definitions_FlowLang!$A16+1,FALSE) -> Stock changes | D93: : | E93: =HLOOKUP(LangChoice,Definitions_FlowLang!$F$2:$H$156,Definitions_FlowLang!$A16+1,FALSE) -> Reflects the difference between opening stock levels on the first day of the year and closing levels on the last day of the year of stocks on national territory held by producers, importers, energy transformation industries and large consumers. A stock build is shown as a negative number, and a stock draw as a positive number.
C94: =HLOOKUP(LangChoice,Definitions_FlowLang!$C$2:$E$156,Definitions_FlowLang!$A17+1,FALSE) -> Domestic supply | D94: : | E94: =HLOOKUP(LangChoice,Definitions_FlowLang!$F$2:$H$156,Definitions_FlowLang!$A17+1,FALSE) -> Domestic supply is defined as production + inputs from other sources + imports - exports - international marine bunkers - international aviation bunkers ± stock changes.
C95: =HLOOKUP(LangChoice,Definitions_FlowLang!$C$2:$E$156,Definitions_FlowLang!$A18+1,FALSE) -> Total energy supply (TES) | D95: : | E95: =HLOOKUP(LangChoice,Definitions_FlowLang!$F$2:$H$156,Definitions_FlowLang!$A18+1,FALSE) -> Total energy supply (TES) is made up of production + imports - exports - international marine bunkers - international aviation bunkers ± stock changes.
C96: =HLOOKUP(LangChoice,Definitions_FlowLang!$C$2:$E$156,Definitions_FlowLang!$A19+1,FALSE) -> Transfers | D96: : | E96: =HLOOKUP(LangChoice,Definitions_FlowLang!$F$2:$H$156,Definitions_FlowLang!$A19+1,FALSE) -> Transfers comprise interproduct transfers, products transferred and recycled products. Interproduct transfers result from reclassification of products either because their specification has changed or because they are blended into another product, e.g. kerosene may be reclassified as gasoil after blending with the latter in order to meet its winter diesel specification. The net balance of interproduct transfers is zero. Products transferred is intended for oil products imported for further processing in refineries. For example, fuel oil imported for upgrading in a refinery is transferred to the feedstocks category. Recycled products are finished products which pass a second time through the marketing network, after having been once delivered to final consumers (e.g. used lubricants which are reprocessed).
C97: =HLOOKUP(LangChoice,Definitions_FlowLang!$C$2:$E$156,Definitions_FlowLang!$A20+1,FALSE) -> Statistical differences | D97: : | E97: =HLOOKUP(LangChoice,Definitions_FlowLang!$F$2:$H$156,Definitions_FlowLang!$A20+1,FALSE) -> Statistical difference is defined as deliveries to final consumption + use for transformation processes and consumption by energy industry own use + losses – domestic supply – transfers. Statistical differences arise because the data for the individual components of supply are often derived from different data sources by the national administration. Furthermore, the inclusion of changes in some large consumers' stocks in the supply part of the balance introduces distortions which also contribute to the statistical differences.
C98: =HLOOKUP(LangChoice,Definitions_FlowLang!$C$2:$E$156,Definitions_FlowLang!$A21+1,FALSE) -> Transformation processes | D98: :
C99: =HLOOKUP(LangChoice,Definitions_FlowLang!$C$2:$E$156,Definitions_FlowLang!$A22+1,FALSE) -> Transformation processes | D99: : | E99: =HLOOKUP(LangChoice,Definitions_FlowLang!$F$2:$H$156,Definitions_FlowLang!$A22+1,FALSE) -> Transformation processes comprises the conversion of primary forms of energy to secondary and further transformation (e.g. coking coal to coke, crude oil to oil products, and fuel oil to electricity).
C100: =HLOOKUP(LangChoice,Definitions_FlowLang!$C$2:$E$156,Definitions_FlowLang!$A23+1,FALSE) -> Main activity electricity plants | D100: : | E100: =HLOOKUP(LangChoice,Definitions_FlowLang!$F$2:$H$156,Definitions_FlowLang!$A23+1,FALSE) -> Refers to plants which are designed to produce electricity only. If one or more units of the plant is a CHP unit (and the inputs and outputs can not be distinguished on a unit basis) then the whole plant is designated as a CHP plant. Main activity producers generate electricity for sale to third parties, as their primary activity. They may be privately or publicly owned. Note that the sale need not take place through the public grid.
C101: =HLOOKUP(LangChoice,Definitions_FlowLang!$C$2:$E$156,Definitions_FlowLang!$A24+1,FALSE) -> Autoproducer electricity plants | D101: : | E101: =HLOOKUP(LangChoice,Definitions_FlowLang!$F$2:$H$156,Definitions_FlowLang!$A24+1,FALSE) -> Refers to plants which are designed to produce electricity only. If one or more units of the plant is a CHP unit (and the inputs and outputs can not be distinguished on a unit basis) then the whole plant is designated as a CHP plant. Autoproducer undertakings generate electricity wholly or partly for their own use as an activity which supports their primary activity. They may be privately or publicly owned.
C102: =HLOOKUP(LangChoice,Definitions_FlowLang!$C$2:$E$156,Definitions_FlowLang!$A25+1,FALSE) -> Main activity producer CHP plants | D102: : | E102: =HLOOKUP(LangChoice,Definitions_FlowLang!$F$2:$H$156,Definitions_FlowLang!$A25+1,FALSE) -> Refers to plants which are designed to produce both heat and electricity (sometimes referred to as co-generation power stations). If possible, fuel inputs and electricity/‌heat outputs are on a unit basis rather than on a plant basis. However, if data are not available on a unit basis, the convention for defining a CHP plant noted above should be adopted. Main activity producers generate electricity and/or heat for sale to third parties, as their primary activity. They may be privately or publicly owned. Note that the sale need not take place through the public grid.
C103: =HLOOKUP(LangChoice,Definitions_FlowLang!$C$2:$E$156,Definitions_FlowLang!$A26+1,FALSE) -> Autoproducer CHP plants | D103: : | E103: =HLOOKUP(LangChoice,Definitions_FlowLang!$F$2:$H$156,Definitions_FlowLang!$A26+1,FALSE) -> Refers to plants which are designed to produce both heat and electricity (sometimes referred to as co-generation power stations). If possible, fuel inputs and electricity/heat outputs are on a unit basis rather than on a plant basis. However, if data are not available on a unit basis, the convention for defining a CHP plant noted above should be adopted. Note that for autoproducer CHP plants, all fuel inputs to electricity production are taken into account, while only the part of fuel inputs to heat sold is shown. Fuel inputs for the production of heat consumed within the autoproducer's establishment are not included here but are included with figures for the final consumption of fuels in the appropriate consuming sector. Autoproducer undertakings generate electricity and/or heat, wholly or partly for their own use as an activity which supports their primary activity. They may be privately or publicly owned.
C104: =HLOOKUP(LangChoice,Definitions_FlowLang!$C$2:$E$156,Definitions_FlowLang!$A27+1,FALSE) -> Main activity producer heat plants | D104: : | E104: =HLOOKUP(LangChoice,Definitions_FlowLang!$F$2:$H$156,Definitions_FlowLang!$A27+1,FALSE) -> Refers to plants (including heat pumps and electric boilers) designed to produce heat only and who sell heat to a third party (e.g. residential, commercial or industrial consumers) under the provisions of a contract. Main activity producers generate heat for sale to third parties, as their primary activity. They may be privately or publicly owned. Note that the sale need not take place through the public grid.
C105: =HLOOKUP(LangChoice,Definitions_FlowLang!$C$2:$E$156,Definitions_FlowLang!$A28+1,FALSE) -> Autoproducer heat plants | D105: : | E105: =HLOOKUP(LangChoice,Definitions_FlowLang!$F$2:$H$156,Definitions_FlowLang!$A28+1,FALSE) -> Refers to plants (including heat pumps and electric boilers) designed to produce heat only and who sell heat to a third party (e.g. residential, commercial or industrial consumers) under the provisions of a contract. Autoproducer undertakings generate heat, wholly or partly for their own use as an activity which supports their primary activity. They may be privately or publicly owned.
C106: =HLOOKUP(LangChoice,Definitions_FlowLang!$C$2:$E$156,Definitions_FlowLang!$A29+1,FALSE) -> Heat pumps | D106: : | E106: =HLOOKUP(LangChoice,Definitions_FlowLang!$F$2:$H$156,Definitions_FlowLang!$A29+1,FALSE) -> Includes heat produced by heat pumps in the transformation sector. Heat pumps that are operated within the residential sector where the heat is not sold are not considered a transformation process and are not included here – the electricity consumption would appear as residential use.
C107: =HLOOKUP(LangChoice,Definitions_FlowLang!$C$2:$E$156,Definitions_FlowLang!$A30+1,FALSE) -> Electric boilers | D107: : | E107: =HLOOKUP(LangChoice,Definitions_FlowLang!$F$2:$H$156,Definitions_FlowLang!$A30+1,FALSE) -> Includes electric boilers used to produce heat.
C108: =HLOOKUP(LangChoice,Definitions_FlowLang!$C$2:$E$156,Definitions_FlowLang!$A31+1,FALSE) -> Chemical heat for electricity production | D108: : | E108: =HLOOKUP(LangChoice,Definitions_FlowLang!$F$2:$H$156,Definitions_FlowLang!$A31+1,FALSE) -> Report only the heat originating from processes without input energy, such as a chemical reaction (e.g. the treatment of zinc oxide ore with hydrochloric acid). Note that waste heat originating from energy driven processes is not considered as a primary energy source. Therefore, it should be reported as heat produced from the corresponding fuel.
C109: =HLOOKUP(LangChoice,Definitions_FlowLang!$C$2:$E$156,Definitions_FlowLang!$A32+1,FALSE) -> Patent fuel plants | D109: : | E109: =HLOOKUP(LangChoice,Definitions_FlowLang!$F$2:$H$156,Definitions_FlowLang!$A32+1,FALSE) -> Includes the manufacture of patent fuels.
C110: =HLOOKUP(LangChoice,Definitions_FlowLang!$C$2:$E$156,Definitions_FlowLang!$A33+1,FALSE) -> Coke ovens | D110: : | E110: =HLOOKUP(LangChoice,Definitions_FlowLang!$F$2:$H$156,Definitions_FlowLang!$A33+1,FALSE) -> Includes the manufacture of coke and coke oven gas.
C111: =HLOOKUP(LangChoice,Definitions_FlowLang!$C$2:$E$156,Definitions_FlowLang!$A34+1,FALSE) -> Gas works | D111: : | E111: =HLOOKUP(LangChoice,Definitions_FlowLang!$F$2:$H$156,Definitions_FlowLang!$A34+1,FALSE) -> Includes the manufacture of town gas.
C112: =HLOOKUP(LangChoice,Definitions_FlowLang!$C$2:$E$156,Definitions_FlowLang!$A35+1,FALSE) -> Blast furnaces | D112: : | E112: =HLOOKUP(LangChoice,Definitions_FlowLang!$F$2:$H$156,Definitions_FlowLang!$A35+1,FALSE) -> Includes the production of recovered gases (e.g. blast furnace gas and oxygen steel furnace gas). The production of pig-iron from iron ore in blast furnaces uses fuels for supporting the blast furnace charge and providing heat and carbon for the reduction of the iron ore. Accounting for the calorific content of the fuels entering the process is a complex matter as transformation (into blast furnace gas) and consumption (heat of combustion) occur simultaneously. Some carbon is also retained in the pigiron; almost all of this reappears later in the oxygen steel furnace gas (or converter gas) when the pig-iron is converted to steel. In the 1992/1993 annual questionnaires, Member Countries were asked for the first time to report in transformation processes the quantities of all fuels (e.g. pulverised coal injection [PCI] coal, coke oven coke, natural gas and oil) entering blast furnaces and the quantity of blast furnace gas and oxygen steel furnace gas produced. The Secretariat then needed to split these inputs into the transformation and consumption components. The transformation component is shown in the row blast furnaces in the column appropriate for the fuel, and the consumption component is shown in the row iron and steel, in the column appropriate for the fuel. The Secretariat decided to assume a transformation efficiency such that the carbon input into the blast furnaces should equal the carbon output. This is roughly equivalent to assuming an energy transformation efficiency of 40%.
C113: =HLOOKUP(LangChoice,Definitions_FlowLang!$C$2:$E$156,Definitions_FlowLang!$A36+1,FALSE) -> Petrochemical plants | D113: : | E113: =HLOOKUP(LangChoice,Definitions_FlowLang!$F$2:$H$156,Definitions_FlowLang!$A36+1,FALSE) -> Covers backflows returned from the petrochemical industry. Note that backflows from oil products that are used for non-energy purposes (i.e. white spirit and lubricants) are not included here, but in non-energy use.
C114: =HLOOKUP(LangChoice,Definitions_FlowLang!$C$2:$E$156,Definitions_FlowLang!$A37+1,FALSE) -> BKB / peat briquette plants | D114: : | E114: =HLOOKUP(LangChoice,Definitions_FlowLang!$F$2:$H$156,Definitions_FlowLang!$A37+1,FALSE) -> Includes the use of fuels for the manufacture of BKB and peat briquettes.
C115: =HLOOKUP(LangChoice,Definitions_FlowLang!$C$2:$E$156,Definitions_FlowLang!$A38+1,FALSE) -> Oil refineries | D115: : | E115: =HLOOKUP(LangChoice,Definitions_FlowLang!$F$2:$H$156,Definitions_FlowLang!$A38+1,FALSE) -> Includes the manufacture of finished oil products.
C116: =HLOOKUP(LangChoice,Definitions_FlowLang!$C$2:$E$156,Definitions_FlowLang!$A39+1,FALSE) -> Coal liquefaction plants | D116: : | E116: =HLOOKUP(LangChoice,Definitions_FlowLang!$F$2:$H$156,Definitions_FlowLang!$A39+1,FALSE) -> Includes coal, oil and tar sands used to produce synthetic oil.
C117: =HLOOKUP(LangChoice,Definitions_FlowLang!$C$2:$E$156,Definitions_FlowLang!$A40+1,FALSE) -> Gas-to-liquids (GTL) plants | D117: : | E117: =HLOOKUP(LangChoice,Definitions_FlowLang!$F$2:$H$156,Definitions_FlowLang!$A40+1,FALSE) -> Includes natural gas used as feedstock for the conversion to liquids, e.g. the quantities of fuel entering the methanol product process for transformation into methanol.
C118: =HLOOKUP(LangChoice,Definitions_FlowLang!$C$2:$E$156,Definitions_FlowLang!$A41+1,FALSE) -> For blended natural gas | D118: : | E118: =HLOOKUP(LangChoice,Definitions_FlowLang!$F$2:$H$156,Definitions_FlowLang!$A41+1,FALSE) -> Includes other gases that are blended with natural gas.
C119: =HLOOKUP(LangChoice,Definitions_FlowLang!$C$2:$E$156,Definitions_FlowLang!$A42+1,FALSE) -> Charcoal production plants | D119: : | E119: =HLOOKUP(LangChoice,Definitions_FlowLang!$F$2:$H$156,Definitions_FlowLang!$A42+1,FALSE) -> Includes the transformation of solid biofuels into charcoal.
C120: =HLOOKUP(LangChoice,Definitions_FlowLang!$C$2:$E$156,Definitions_FlowLang!$A43+1,FALSE) -> Non-specified (transformation) | D120: : | E120: =HLOOKUP(LangChoice,Definitions_FlowLang!$F$2:$H$156,Definitions_FlowLang!$A43+1,FALSE) -> Includes other non-specified transformation.
C121: =HLOOKUP(LangChoice,Definitions_FlowLang!$C$2:$E$156,Definitions_FlowLang!$A44+1,FALSE) -> Energy industry own use and losses | D121: :
C122: =HLOOKUP(LangChoice,Definitions_FlowLang!$C$2:$E$156,Definitions_FlowLang!$A45+1,FALSE) -> Energy industry own use | D122: : | E122: =HLOOKUP(LangChoice,Definitions_FlowLang!$F$2:$H$156,Definitions_FlowLang!$A45+1,FALSE) -> Energy industry own use covers the amount of fuels used by the energy producing industries (e.g. for heating, lighting and operation of all equipment used in the extraction process, for traction and for distribution). It includes energy consumed by energy industries for heating, pumping, traction and lighting purposes [ISIC Rev. 4 Divisions 05, 06, 19 and 35, Group 091 and Classes 0892 and 0721].
C123: =HLOOKUP(LangChoice,Definitions_FlowLang!$C$2:$E$156,Definitions_FlowLang!$A46+1,FALSE) -> Coal mines | D123: : | E123: =HLOOKUP(LangChoice,Definitions_FlowLang!$F$2:$H$156,Definitions_FlowLang!$A46+1,FALSE) -> Represents the energy which is used directly within the coal industry for hard coal and lignite mining. It excludes coal burned in pithead power stations (included under electricity plants in the transformation sector) and free allocations to miners and their families (considered as part of household consumption and therefore included under residential).
C124: =HLOOKUP(LangChoice,Definitions_FlowLang!$C$2:$E$156,Definitions_FlowLang!$A47+1,FALSE) -> Oil and gas extraction | D124: : | E124: =HLOOKUP(LangChoice,Definitions_FlowLang!$F$2:$H$156,Definitions_FlowLang!$A47+1,FALSE) -> Represents the energy which is used for oil and gas extraction. Flared gas is not included.
C125: =HLOOKUP(LangChoice,Definitions_FlowLang!$C$2:$E$156,Definitions_FlowLang!$A48+1,FALSE) -> Patent fuel plants | D125: : | E125: =HLOOKUP(LangChoice,Definitions_FlowLang!$F$2:$H$156,Definitions_FlowLang!$A48+1,FALSE) -> Represents the energy used in patent fuel plants.
C126: =HLOOKUP(LangChoice,Definitions_FlowLang!$C$2:$E$156,Definitions_FlowLang!$A49+1,FALSE) -> Coke ovens | D126: : | E126: =HLOOKUP(LangChoice,Definitions_FlowLang!$F$2:$H$156,Definitions_FlowLang!$A49+1,FALSE) -> Represents the energy used in coke ovens.
C127: =HLOOKUP(LangChoice,Definitions_FlowLang!$C$2:$E$156,Definitions_FlowLang!$A50+1,FALSE) -> Gas works | D127: : | E127: =HLOOKUP(LangChoice,Definitions_FlowLang!$F$2:$H$156,Definitions_FlowLang!$A50+1,FALSE) -> Represents the energy which is used in gas works.
C128: =HLOOKUP(LangChoice,Definitions_FlowLang!$C$2:$E$156,Definitions_FlowLang!$A51+1,FALSE) -> Gasification plants for biogases | D128: : | E128: =HLOOKUP(LangChoice,Definitions_FlowLang!$F$2:$H$156,Definitions_FlowLang!$A51+1,FALSE) -> Represents own consumption of biogas necessary to support temperatures needed for anaerobic fermentation.
C129: =HLOOKUP(LangChoice,Definitions_FlowLang!$C$2:$E$156,Definitions_FlowLang!$A52+1,FALSE) -> Blast furnaces | D129: : | E129: =HLOOKUP(LangChoice,Definitions_FlowLang!$F$2:$H$156,Definitions_FlowLang!$A52+1,FALSE) -> Represents the energy which is used in blast furnaces.
C130: =HLOOKUP(LangChoice,Definitions_FlowLang!$C$2:$E$156,Definitions_FlowLang!$A53+1,FALSE) -> BKB / peat briquette plants | D130: : | E130: =HLOOKUP(LangChoice,Definitions_FlowLang!$F$2:$H$156,Definitions_FlowLang!$A53+1,FALSE) -> Represents the energy used in BKB and peat briquette plants.
C131: =HLOOKUP(LangChoice,Definitions_FlowLang!$C$2:$E$156,Definitions_FlowLang!$A54+1,FALSE) -> Oil refineries | D131: : | E131: =HLOOKUP(LangChoice,Definitions_FlowLang!$F$2:$H$156,Definitions_FlowLang!$A54+1,FALSE) -> Represents the energy used in oil refineries.
C132: =HLOOKUP(LangChoice,Definitions_FlowLang!$C$2:$E$156,Definitions_FlowLang!$A55+1,FALSE) -> Coal liquefaction plants | D132: : | E132: =HLOOKUP(LangChoice,Definitions_FlowLang!$F$2:$H$156,Definitions_FlowLang!$A55+1,FALSE) -> Represents the energy used in coal liquefaction plants.
C133: =HLOOKUP(LangChoice,Definitions_FlowLang!$C$2:$E$156,Definitions_FlowLang!$A56+1,FALSE) -> Liquefaction (LNG) / regasification plants | D133: : | E133: =HLOOKUP(LangChoice,Definitions_FlowLang!$F$2:$H$156,Definitions_FlowLang!$A56+1,FALSE) -> Represents the energy used in LNG and regasification plants.
C134: =HLOOKUP(LangChoice,Definitions_FlowLang!$C$2:$E$156,Definitions_FlowLang!$A57+1,FALSE) -> Gas-to-liquids (GTL) plants | D134: : | E134: =HLOOKUP(LangChoice,Definitions_FlowLang!$F$2:$H$156,Definitions_FlowLang!$A57+1,FALSE) -> Represents the energy used in gas-to-liquids plants.
C135: =HLOOKUP(LangChoice,Definitions_FlowLang!$C$2:$E$156,Definitions_FlowLang!$A58+1,FALSE) -> Own use in electricity, CHP and heat plants | D135: : | E135: =HLOOKUP(LangChoice,Definitions_FlowLang!$F$2:$H$156,Definitions_FlowLang!$A58+1,FALSE) -> Represents the energy used in main activity producer electricity, CHP and heat plants.
C136: =HLOOKUP(LangChoice,Definitions_FlowLang!$C$2:$E$156,Definitions_FlowLang!$A59+1,FALSE) -> Used for pumped storage | D136: : | E136: =HLOOKUP(LangChoice,Definitions_FlowLang!$F$2:$H$156,Definitions_FlowLang!$A59+1,FALSE) -> Represents electricity consumed in hydro-electric plants for pumped storage.
C137: =HLOOKUP(LangChoice,Definitions_FlowLang!$C$2:$E$156,Definitions_FlowLang!$A60+1,FALSE) -> Nuclear industry | D137: : | E137: =HLOOKUP(LangChoice,Definitions_FlowLang!$F$2:$H$156,Definitions_FlowLang!$A60+1,FALSE) -> Represents the energy used in the nuclear industry.
C138: =HLOOKUP(LangChoice,Definitions_FlowLang!$C$2:$E$156,Definitions_FlowLang!$A61+1,FALSE) -> Charcoal production plants | D138: : | E138: =HLOOKUP(LangChoice,Definitions_FlowLang!$F$2:$H$156,Definitions_FlowLang!$A61+1,FALSE) -> Represents the energy used in charcoal production plants.
C139: =HLOOKUP(LangChoice,Definitions_FlowLang!$C$2:$E$156,Definitions_FlowLang!$A62+1,FALSE) -> Non-specified (Energy) | D139: : | E139: =HLOOKUP(LangChoice,Definitions_FlowLang!$F$2:$H$156,Definitions_FlowLang!$A62+1,FALSE) -> Represents use in non-specified energy industries.
C140: =HLOOKUP(LangChoice,Definitions_FlowLang!$C$2:$E$156,Definitions_FlowLang!$A63+1,FALSE) -> Losses | D140: : | E140: =HLOOKUP(LangChoice,Definitions_FlowLang!$F$2:$H$156,Definitions_FlowLang!$A63+1,FALSE) -> Losses in energy distribution, transmission and transport.
C141: =HLOOKUP(LangChoice,Definitions_FlowLang!$C$2:$E$156,Definitions_FlowLang!$A64+1,FALSE) -> Final consumption | D141: :
C142: =HLOOKUP(LangChoice,Definitions_FlowLang!$C$2:$E$156,Definitions_FlowLang!$A65+1,FALSE) -> Final consumption | D142: : | E142: =HLOOKUP(LangChoice,Definitions_FlowLang!$F$2:$H$156,Definitions_FlowLang!$A65+1,FALSE) -> Equal to the sum of the consumption in the end-use sectors. Energy used for transformation processes and for own use of the energy producing industries is excluded. Final consumption reflects for the most part deliveries to consumers (see note on stock changes). Backflows from the petrochemical industry are not included in final consumption (see from other sources under supply and petrochemical plants in transformation processes).
C143: =HLOOKUP(LangChoice,Definitions_FlowLang!$C$2:$E$156,Definitions_FlowLang!$A66+1,FALSE) -> Industry | D143: : | E143: =HLOOKUP(LangChoice,Definitions_FlowLang!$F$2:$H$156,Definitions_FlowLang!$A66+1,FALSE) -> Report the fuel, electricity or purchased heat consumption by the industrial undertaking in support of its primary activities in the appropriate sub-sectors: Report quantities of fuels consumed in heat or CHP plants for the production of heat used by the plant itself. Quantities of fuels consumed for the production of heat that is sold, and for the production of electricity should be reported under the appropriate Transformation sector.
C144: =HLOOKUP(LangChoice,Definitions_FlowLang!$C$2:$E$156,Definitions_FlowLang!$A67+1,FALSE) -> Iron and steel | D144: : | E144: =HLOOKUP(LangChoice,Definitions_FlowLang!$F$2:$H$156,Definitions_FlowLang!$A67+1,FALSE) -> [ISIC Rev. 4 Group 241 + Class 2431 (NACE Groups 24.1, 24.2, 24.3, Classes 24.51 and 24.52)]. To avoid double counting, energy used in blast furnaces should be reported in the Energy sector.
C145: =HLOOKUP(LangChoice,Definitions_FlowLang!$C$2:$E$156,Definitions_FlowLang!$A68+1,FALSE) -> Chemical and petrochemical | D145: : | E145: =HLOOKUP(LangChoice,Definitions_FlowLang!$F$2:$H$156,Definitions_FlowLang!$A68+1,FALSE) -> [ISIC Rev. 4 Divisions 20 and 21] Excluding petrochemical feedstocks.
C146: =HLOOKUP(LangChoice,Definitions_FlowLang!$C$2:$E$156,Definitions_FlowLang!$A69+1,FALSE) -> Non-ferrous metals | D146: : | E146: =HLOOKUP(LangChoice,Definitions_FlowLang!$F$2:$H$156,Definitions_FlowLang!$A69+1,FALSE) -> ISIC Group 242 + Class 2432 (NACE Group 24.4, Classes 24.53 and 24.54).
C147: =HLOOKUP(LangChoice,Definitions_FlowLang!$C$2:$E$156,Definitions_FlowLang!$A70+1,FALSE) -> Non-metallic minerals | D147: : | E147: =HLOOKUP(LangChoice,Definitions_FlowLang!$F$2:$H$156,Definitions_FlowLang!$A70+1,FALSE) -> [ISIC Rev. 4 and NACE Division 23.] Report glass, ceramic, cement, and other building materials industries.
C148: =HLOOKUP(LangChoice,Definitions_FlowLang!$C$2:$E$156,Definitions_FlowLang!$A71+1,FALSE) -> Transport equipment | D148: : | E148: =HLOOKUP(LangChoice,Definitions_FlowLang!$F$2:$H$156,Definitions_FlowLang!$A71+1,FALSE) -> [ISIC Rev. 4 and NACE Divisions 29 and 30.]
C149: =HLOOKUP(LangChoice,Definitions_FlowLang!$C$2:$E$156,Definitions_FlowLang!$A72+1,FALSE) -> Machinery | D149: : | E149: =HLOOKUP(LangChoice,Definitions_FlowLang!$F$2:$H$156,Definitions_FlowLang!$A72+1,FALSE) -> [ISIC Rev. 4 and NACE Divisions 25, 26, 27 and 28.] Report fabricated metal products, machinery and equipment other than transport equipment.
C150: =HLOOKUP(LangChoice,Definitions_FlowLang!$C$2:$E$156,Definitions_FlowLang!$A73+1,FALSE) -> Mining and quarrying | D150: : | E150: =HLOOKUP(LangChoice,Definitions_FlowLang!$F$2:$H$156,Definitions_FlowLang!$A73+1,FALSE) -> [ISIC Rev. 4 Divisions 07 and 08 + Group 099 (NACE Divisions 07 and 08 + Group 09.9)]
C151: =HLOOKUP(LangChoice,Definitions_FlowLang!$C$2:$E$156,Definitions_FlowLang!$A74+1,FALSE) -> Food, beverages and tobacco | D151: : | E151: =HLOOKUP(LangChoice,Definitions_FlowLang!$F$2:$H$156,Definitions_FlowLang!$A74+1,FALSE) -> [ISIC Rev. 4 and NACE Divisions 10, 11 and 12.]
C152: =HLOOKUP(LangChoice,Definitions_FlowLang!$C$2:$E$156,Definitions_FlowLang!$A75+1,FALSE) -> Paper, pulp and print | D152: : | E152: =HLOOKUP(LangChoice,Definitions_FlowLang!$F$2:$H$156,Definitions_FlowLang!$A75+1,FALSE) -> [ISIC Rev. 4 and NACE Divisions 17 and 18.] Includes reproduction of recorded media.
C153: =HLOOKUP(LangChoice,Definitions_FlowLang!$C$2:$E$156,Definitions_FlowLang!$A76+1,FALSE) -> Wood and wood products | D153: : | E153: =HLOOKUP(LangChoice,Definitions_FlowLang!$F$2:$H$156,Definitions_FlowLang!$A76+1,FALSE) -> [ISIC Rev. 4 and NACE Division 16] Wood and wood products other than pulp and paper.
C154: =HLOOKUP(LangChoice,Definitions_FlowLang!$C$2:$E$156,Definitions_FlowLang!$A77+1,FALSE) -> Construction | D154: : | E154: =HLOOKUP(LangChoice,Definitions_FlowLang!$F$2:$H$156,Definitions_FlowLang!$A77+1,FALSE) -> [ISIC Rev. 4 and NACE Division 41, 42 and 43]
C155: =HLOOKUP(LangChoice,Definitions_FlowLang!$C$2:$E$156,Definitions_FlowLang!$A78+1,FALSE) -> Textiles and leather | D155: : | E155: =HLOOKUP(LangChoice,Definitions_FlowLang!$F$2:$H$156,Definitions_FlowLang!$A78+1,FALSE) -> [ISIC and NACE Divisions 13, 14 and 15.]
C156: =HLOOKUP(LangChoice,Definitions_FlowLang!$C$2:$E$156,Definitions_FlowLang!$A79+1,FALSE) -> Non-specified (Industry) | D156: : | E156: =HLOOKUP(LangChoice,Definitions_FlowLang!$F$2:$H$156,Definitions_FlowLang!$A79+1,FALSE) -> [ISIC and NACE Divisions 22, 31 and 32.] If your country's industrial classification consumption of fuels/electricity does not correspond to the above ISIC or NACE codes, please estimate the breakdown by industry and include in Not elsewhere specified (Industry) only consumption in sectors which is not covered above.
C157: =HLOOKUP(LangChoice,Definitions_FlowLang!$C$2:$E$156,Definitions_FlowLang!$A80+1,FALSE) -> Transport | D157: : | E157: =HLOOKUP(LangChoice,Definitions_FlowLang!$F$2:$H$156,Definitions_FlowLang!$A80+1,FALSE) -> [ISIC Rev. 4 and NACE categories: Divisions 49, 50 and 51.] Report fuels / electricity used for all transport activity irrespective of the economic sector, in which the activity occurs (except military fuel use, see Not elsewhere specified - Other). Electricity and purchased heat used for heating and lighting at railway and bus stations and airports should be reported in Commercial and public services. The transport sector is divided into the following sub-sectors:
C158: =HLOOKUP(LangChoice,Definitions_FlowLang!$C$2:$E$156,Definitions_FlowLang!$A81+1,FALSE) -> Domestic aviation | D158: : | E158: =HLOOKUP(LangChoice,Definitions_FlowLang!$F$2:$H$156,Definitions_FlowLang!$A81+1,FALSE) -> Report quantities of aviation fuels delivered to aircraft for Domestic aviation – commercial, private, agricultural, etc. Include fuel used for purposes other than flying, e.g. bench testing of engines. The domestic/international split should be determined on the basis of departure and landing locations and not by the nationality of the airline. Note that this may include journeys of considerable length between two airports in a country (e.g. San Francisco to Honolulu). Exclude fuels used by airlines for their road vehicles (see Not elsewhere specified – Transport sector) and military use of aviation fuels (see Not elsewhere specified – Other sectors). For many countries this incorrectly includes fuel used by domestically owned carriers for outbound international traffic.
C159: =HLOOKUP(LangChoice,Definitions_FlowLang!$C$2:$E$156,Definitions_FlowLang!$A82+1,FALSE) -> Road | D159: : | E159: =HLOOKUP(LangChoice,Definitions_FlowLang!$F$2:$H$156,Definitions_FlowLang!$A82+1,FALSE) -> Report oil for use in road vehicles. Include fuel used by agricultural vehicles on highways and lubricants for use in road vehicles. Exclude motor gasoline and diesel used in stationary engines (see Not elsewhere specified – Other sectors), diesel oil for non–highway use in tractors (see Agriculture/forestry – Other sectors), military use (see Not elsewhere specified – Other sectors) and gasoil used in engines at construction sites (see Construction – Industry sector).
C160: =HLOOKUP(LangChoice,Definitions_FlowLang!$C$2:$E$156,Definitions_FlowLang!$A83+1,FALSE) -> Rail | D160: : | E160: =HLOOKUP(LangChoice,Definitions_FlowLang!$F$2:$H$156,Definitions_FlowLang!$A83+1,FALSE) -> Includes quantities used in rail traffic, including industrial railways. It includes oil used in rail transport as part of urban or suburban transport systems.
C161: =HLOOKUP(LangChoice,Definitions_FlowLang!$C$2:$E$156,Definitions_FlowLang!$A84+1,FALSE) -> Pipeline transport | D161: : | E161: =HLOOKUP(LangChoice,Definitions_FlowLang!$F$2:$H$156,Definitions_FlowLang!$A84+1,FALSE) -> Report oil used as energy in the support and operation of pipelines transporting gases, liquids, slurries and other commodities, including the energy used for pump stations and maintenance of the pipeline. Oil used as energy for the pipeline distribution of natural or manufactured gas, hot water or steam (ISIC Rev. 4 Division 35) from the distributor to final users is excluded and should be reported in the Energy sector, while the oil used for the final distribution of water (ISIC 36) to household, industrial, commercial and other users should be included in the Commercial/public sector. Losses occurring during this transport between distributor and final users should be reported as Distribution losses.
C162: =HLOOKUP(LangChoice,Definitions_FlowLang!$C$2:$E$156,Definitions_FlowLang!$A85+1,FALSE) -> Domestic navigation | D162: : | E162: =HLOOKUP(LangChoice,Definitions_FlowLang!$F$2:$H$156,Definitions_FlowLang!$A85+1,FALSE) -> Report fuels delivered to vessels of all flags not engaged in international navigation (see international marine bunkers). The domestic/international split should be determined on the basis of port of departure and port of arrival and not by the flag or nationality of the ship. Note that this may include journeys of considerable length between two ports in a country (e.g. San Francisco to Honolulu).
C163: =HLOOKUP(LangChoice,Definitions_FlowLang!$C$2:$E$156,Definitions_FlowLang!$A86+1,FALSE) -> Non-specified (transport) | D163: : | E163: =HLOOKUP(LangChoice,Definitions_FlowLang!$F$2:$H$156,Definitions_FlowLang!$A86+1,FALSE) -> Report fuels used for transport activities not included elsewhere. Include fuels used by airlines for their road vehicles. Note: International marine bunkers and International aviation bunkers are shown in supply and are not included in the transport sector as part of final consumption.
C164: =HLOOKUP(LangChoice,Definitions_FlowLang!$C$2:$E$156,Definitions_FlowLang!$A87+1,FALSE) -> Other | D164: : | E164: =HLOOKUP(LangChoice,Definitions_FlowLang!$F$2:$H$156,Definitions_FlowLang!$A87+1,FALSE) -> Includes residential, commercial/public services, agriculture/‌forestry, fishing and non-specified (other).
C165: =HLOOKUP(LangChoice,Definitions_FlowLang!$C$2:$E$156,Definitions_FlowLang!$A88+1,FALSE) -> Residential | D165: : | E165: =HLOOKUP(LangChoice,Definitions_FlowLang!$F$2:$H$156,Definitions_FlowLang!$A88+1,FALSE) -> Report fuels/electricity consumed by all households including "households with employed persons" (ISIC and NACE Divisions 97 and 98).
C166: =HLOOKUP(LangChoice,Definitions_FlowLang!$C$2:$E$156,Definitions_FlowLang!$A89+1,FALSE) -> Commercial and public services | D166: : | E166: =HLOOKUP(LangChoice,Definitions_FlowLang!$F$2:$H$156,Definitions_FlowLang!$A89+1,FALSE) -> [ISIC Rev. 4 Divisions and NACE Divisions 33, 36, 37, 38, 39, 45, 46, 47, 52, 53, 55, 56, 58, 59, 60, 61, 62, 63, 64, 65, 66, 68, 69, 70, 71, 72, 73, 74, 75, 77, 78, 79, 80, 81, 82, 84 (exclude Class 8422), 85, 86, 87, 88, 90, 91, 92, 93, 94, 95, 96 and 99.] Consumption by businesses and offices in the public and private sectors. Note that consumption at railway, bus stations, shipping piers and airports should be reported in this category and not shown in the Transport sector.
C167: =HLOOKUP(LangChoice,Definitions_FlowLang!$C$2:$E$156,Definitions_FlowLang!$A90+1,FALSE) -> Agriculture/forestry | D167: : | E167: =HLOOKUP(LangChoice,Definitions_FlowLang!$F$2:$H$156,Definitions_FlowLang!$A90+1,FALSE) -> [ISIC Rev. 4 and NACE Divisions 01 and 02]. Includes deliveries to users classified as agriculture, hunting and forestry by the ISIC, and therefore includes energy consumed by such users whether for traction (excluding agricultural highway use), power or heating (agricultural and domestic).
C168: =HLOOKUP(LangChoice,Definitions_FlowLang!$C$2:$E$156,Definitions_FlowLang!$A91+1,FALSE) -> Fishing | D168: : | E168: =HLOOKUP(LangChoice,Definitions_FlowLang!$F$2:$H$156,Definitions_FlowLang!$A91+1,FALSE) -> Report fuels used for inland, coastal and deep–sea fishing. Fishing should cover fuels delivered to ships of all flags that have refuelled in the country (include international fishing). Also include energy used in the fishing industry as specified in ISIC Division 03 and NACE Division 03. Prior to 2007 edition, fishing was included with agriculture/forestry and this may continue to be the case for some countries.
C169: =HLOOKUP(LangChoice,Definitions_FlowLang!$C$2:$E$156,Definitions_FlowLang!$A92+1,FALSE) -> Non-specified (other) | D169: : | E169: =HLOOKUP(LangChoice,Definitions_FlowLang!$F$2:$H$156,Definitions_FlowLang!$A92+1,FALSE) -> Report activities not included elsewhere. This category includes military fuel use for all mobile and stationary consumption (e.g. ships, aircraft, road and energy used in living quarters), regardless of whether the fuel delivered is for the military of that country or for the military of another country.
C170: =HLOOKUP(LangChoice,Definitions_FlowLang!$C$2:$E$156,Definitions_FlowLang!$A93+1,FALSE) -> Non-energy use | D170: : | E170: =HLOOKUP(LangChoice,Definitions_FlowLang!$F$2:$H$156,Definitions_FlowLang!$A93+1,FALSE) -> Non-energy use covers those fuels that are used as raw materials in the different sectors and are not consumed as a fuel or transformed into another fuel. Non-energy use is shown separately in final consumption under the heading non-energy use.
C171: =HLOOKUP(LangChoice,Definitions_FlowLang!$C$2:$E$156,Definitions_FlowLang!$A94+1,FALSE) -> Non-energy use industry/transformation/energy | D171: : | E171: =HLOOKUP(LangChoice,Definitions_FlowLang!$F$2:$H$156,Definitions_FlowLang!$A94+1,FALSE) -> Non-energy in industry, transformation processes and energy industry own use.
C172: =HLOOKUP(LangChoice,Definitions_FlowLang!$C$2:$E$156,Definitions_FlowLang!$A95+1,FALSE) -> Non-energy use in transport | D172: : | E172: =HLOOKUP(LangChoice,Definitions_FlowLang!$F$2:$H$156,Definitions_FlowLang!$A95+1,FALSE) -> Non-energy use in transport.
C173: =HLOOKUP(LangChoice,Definitions_FlowLang!$C$2:$E$156,Definitions_FlowLang!$A96+1,FALSE) -> Non-energy use in other | D173: : | E173: =HLOOKUP(LangChoice,Definitions_FlowLang!$F$2:$H$156,Definitions_FlowLang!$A96+1,FALSE) -> Non-energy use in Commercial and public services, Residential, Agriculture and Not elsewhere specified - Other sectors.
C174: =HLOOKUP(LangChoice,Definitions_FlowLang!$C$2:$E$156,Definitions_FlowLang!$A97+1,FALSE) -> Memo: Non-energy use chemical/petrochemical | D174: : | E174: =HLOOKUP(LangChoice,Definitions_FlowLang!$F$2:$H$156,Definitions_FlowLang!$A97+1,FALSE) -> Report quantities used in the petrochemical industry for the purpose of producing ethylene, propylene, butylene, synthesis gas, aromatics, butadiene and other hydrocarbon–based raw materials in processes such as steam cracking, aromatics plants and steam reforming [part of ISIC Rev. 4 Group 201]. Exclude amounts of oil used for fuel purposes.
C175: =HLOOKUP(LangChoice,Definitions_FlowLang!$C$2:$E$156,Definitions_FlowLang!$A98+1,FALSE) -> Electricity and heat output | D175: :
C176: =HLOOKUP(LangChoice,Definitions_FlowLang!$C$2:$E$156,Definitions_FlowLang!$A99+1,FALSE) -> Electricity output in GWh | D176: : | E176: =HLOOKUP(LangChoice,Definitions_FlowLang!$F$2:$H$156,Definitions_FlowLang!$A99+1,FALSE) -> Shows the total number of GWh generated by power plants separated into electricity plants and CHP plants.
C177: =HLOOKUP(LangChoice,Definitions_FlowLang!$C$2:$E$156,Definitions_FlowLang!$A108+1,FALSE) -> Heat output in TJ | D177: : | E177: =HLOOKUP(LangChoice,Definitions_FlowLang!$F$2:$H$156,Definitions_FlowLang!$A108+1,FALSE) -> Shows the total amount of TJ generated by power plants separated into CHP plants and heat plants.

Sheet Definitions_ProdLang (hidden)
C1: Product language | F1: Product definition | I1: Product unit (for commodity balance) | N1: Text for various sheets
C2: English | D2: Pусский | E2: 中文 | F2: =C2 -> English | G2: =D2 -> Pусский | H2: =E2 -> 中文 | I2: English | J2: Pусский | K2: 中文 | N2: English | O2: Pусский | P2: 中文 | Q2: Comments
A3: 1 | C3: PRODUCT DEFINITIONS | D3: ОПРЕДЕЛЕНИЯ ПРОДУКТА | E3: 产品定义 | M3: 1 | N3: Coal gases | O3: Угольные газы | P3: 煤气（太焦耳 - 毛量） | Q3: Text for 'Data in physical units'
A4: 2 | C4: Coal, peat, oilshale and oil sands | D4: Уголь, tорф и Горючие сланцы и битуминозные пески | E4: 煤、泥煤、油页岩和油砂 | M4: 2 | N4: Data in physical units | O4: Данные в физических единицах | P4: 物理单位数据 | Q4: Text for 'Data in physical units'
A5: 3 | B5: ANTCOAL | C5: Anthracite | D5: Антрацит | E5: 无烟煤 | F5: High rank coal used for industrial and residential applications. It has generally less than 10% volatile matter and a high carbon content (about 90% fixed carbon). Its gross calorific value is equal to or greater than 24 000 kJ/kg on an ash-free but moist basis. | G5: уголь высшего качества, используемый для промышленного и бытового применения. Обычно имеет менее 10% летучих веществ и высокое содержание углерода (приблизительно 90% связанного углерода). Высшая теплотворная способность не менее 24 000 кДж/кг на беззольной, но влажной основе. | H5: 无烟煤是一种用于工业和民用用途的高级煤。通常情况下，其挥发物含量低于10%，碳含量较高（固定碳含量约90%）。无烟煤的恒湿无灰基高位发热量大于或等于24000千焦/千克。 | I5: kt | J5: тыс. тонн | K5: 千吨 | M5: 3 | N5: Disaggregated balance | O5: Дезагрегированный баланс | P5: 分类平衡表 | Q5: Text for 'Disaggregated balance'
A6: 4 | B6: COKCOAL | C6: Coking coal | D6: Коксующийся уголь | E6: 焦煤 | F6: Bituminous coal with a quality that allows the production of a coke suitable to support a blast furnace charge. Its gross calorific value is equal to or greater than 24 000 kJ/kg on an ash-free but moist basis. | G6: битуминозный уголь, качество которого позволяет производить кокс, пригодный для поддержки загрузки доменной печи. Высшая теплотворная способность не менее 24 000 кДж/кг на беззольной, но влажной основе. | H6: 焦煤是一种烟煤，用于生产适合支撑高炉炉料的焦炭。焦煤的恒湿无灰基高位发热量大于或等于24000千焦/千克。 | I6: kt | J6: тыс. тонн | K6: 千吨 | M6: 4 | N6: Total of all energy sources | O6: Сумма для вех источников энергии | P6: 总计 | Q6: Text for 'Disaggregated balance'
A7: 5 | B7: BITCOAL | C7: Other bituminous coal | D7: Прочий битуминозный уголь | E7: 其它烟煤 | F7: Coal mainly used for steam raising purposes and includes all bituminous coal that is not included under coking coal nor anthracite. It is characterized by higher volatile matter than anthracite (more than 10%) and lower carbon content (less than 90% fixed carbon). Its gross calorific value is equal to or greater than 24 000 kJ/kg on an ash-free but moist basis. If bituminous coal is used in coke ovens it should be reported as coking coal. | G7: уголь, используемый в основном для производства пара. Включает все виды битуминозного угля, не включенные в коксующийся уголь и антрацит. Характеризуется более высоким содержанием летучих веществ, чем антрацит (более 10%), и более низким содержанием углерода (менее 90% связанного углерода). Его высшая теплотворная способность не менее 24 000 кДж/кг на беззольной, но влажной основе. Если битуминозный уголь используется в коксовых печах, то его следует указать как коксующийся уголь. | H7: 其它烟煤主要用于锅炉升火和空间采暖，包括未归入焦煤和无烟煤的所有其它烟煤，其具有挥发物含量高于无烟煤（10%以上）、碳含量较低（固定碳含量低于90%）的特征，恒湿无灰基高位发热量大于或等于24000千焦/千克。 | I7: kt | J7: тыс. тонн | K7: 千吨 | M7: 5 | N7: Efficiencies | O7: Показатели эффективности | P7: 效率 | Q7: Text for 'Disaggregated balance'
A8: 6 | B8: SUBCOAL | C8: Sub-bituminous coal | D8: Полубитуминозный уголь | E8: 次烟煤 | F8: Non-agglomerating coal with a gross calorific value equal to or greater than 20 000 kJ/kg and less than 24 000 kJ/kg containing more than 31% volatile matter on a dry mineral matter free basis. | G8: Неагломерированный уголь с высшей теплотворной способностью, равной или превышающей 20 000 кДж/кг и менее 24 000 кДж/кг, содержащий более 31% летучих веществ на сухой безминеральной основе. | H8: 次烟煤属于一种不粘结煤，干燥无矿物质基高位发热量在20 000千焦/千克和24 000千焦/千克之间，挥发物含量高于31%。 | I8: kt | J8: тыс. тонн | K8: 千吨 | M8: 6 | N8: Aggregated balance | O8: Агрегированный баланс | P8: 汇总平衡表 | Q8: Text for 'Aggregated balance'
A9: 7 | B9: LIGNITE | C9: Lignite | D9: Лигнит | E9: 褐煤 | F9: Non-agglomerating coal with a gross calorific value less than 20 000 kJ/kg and greater than 31% volatile matter on a dry mineral matter free basis. | G9: Неагломерированный уголь с высшей теплотворной способностью менее 20 000 кДж/кг, с содержанием летучих веществ более 31% на сухой безминеральной основе. | H9: 褐煤是一种不粘结煤，干燥无矿物质基高位发热量低于20 000千焦/千克，挥发物含量高于31%。 | I9: kt | J9: тыс. тонн | K9: 千吨 | M9: 7 | N9: Total | O9: Всего | P9: 总计 | Q9: Text for 'Aggregated balance'
A10: 8 | B10: PATFUEL | C10: Patent fuel | D10: Каменноугольные брикеты | E10: 专利燃料 | F10: A composition fuel manufactured from hard coal fines with the addition of a binding agent. The amount of patent fuel produced may, therefore, be slightly higher than the actual amount of coal consumed in the transformation process. | G10: Топливная смесь, изготовляемая из мелких частиц каменного угля, с добавкой связующего материала. Поэтому общее количество готовых каменноугольных брикетов может немного превышать количество угля, фактически потребленного в процессе преобразования. | H10: 专利燃料是使用硬煤粉和粘合剂制造的一种合成燃料。因此，生产出来的专利燃料数量可能略高于转换过程中煤的实际消费量。专利燃料制造过程中专利燃料的消费量列入能源行业自用项目。 | I10: kt | J10: тыс. тонн | K10: 千吨 | M10: 8 | N10: Solar, Wind, Others | O10: Солнечная, ветровая, иное | P10: 生物燃料和废弃物 | Q10: Text for 'Aggregated balance'
A11: 9 | B11: OVENCOKE | C11: Coke oven coke | D11: Кокс из коксовых печей | E11: 焦炉焦炭 | F11: The solid product obtained from carbonization of coal, principally coking coal, at high temperature, it is low in moisture and volatile matter. Coke oven coke is used mainly in the iron and steel industry acting as energy source and chemical agent. Coke breeze and foundry coke are included in this category. Semi-coke (a solid product obtained from carbonization of coal at low temperature) should be included in this category. Semi-coke is used as a domestic fuel or by the transformation plant itself. This heading also includes coke, coke breeze and semi-coke made from lignite/brown coal. | G11: Твердый продукт, получаемый при высокотемпературной карбонизации угля, в основном коксующегося угля, имеющий низкое содержание влаги и летучих веществ. Кокс из коксовых печей используется в основном в черной металлургии как источник энергии и химический реагент. В эту категорию входят также коксовая мелочь и литейный кокс. В эту категорию следует включить полукокс (твердый продукт, получаемый с помощью низкотемпературной карбонизации угля). Полукокс используется как бытовое топливо или непосредственно станцией преобразования. Эта категория включает также кокс, коксовую мелочь и полукокс, получаемые из лигнита/бурого угля. | H11: 焦炉焦炭是将煤（主要是炼焦煤）高温碳化形成的一种固体产物，水分和挥发物含量低。焦炉焦炭主要用于钢铁业，作为能源和化学试剂。同时，焦炉焦炭还包括半焦炭（煤低温碳化形成的一种固体产物）、褐煤焦炭（褐煤形成的一种半焦炭）、焦炭屑和铸造用焦炭。能源行业自用标题项下包括炼焦厂自身的焦炉焦炭消费量。钢铁业消费的焦炉焦炭不包括转换成高炉煤气的焦炭。在计算钢铁业的焦炉焦炭消费总量时，应当加上转换成高炉煤气的焦炭数量（这些焦炭数量列入高炉项目）。 | I11: kt | J11: тыс. тонн | K11: 千吨 | M11: 9 | N11: Coal transformation | O11: Преобразование угля | P11: 煤转换 | Q11: Text for 'Aggregated balance'
A12: 10 | B12: GASCOKE | C12: Gas coke | D12: Газовый кокс | E12: 煤气焦炭 | F12: By-product of hard coal used for production of town gas in gas works. Gas coke is used for heating purposes. | G12: Побочный продукт каменного угля, используемого для производства бытового газа на газовых заводах. Газовый кокс используется для отопления. | H12: 煤气焦炭是硬煤的一种副产品，用于煤气厂生产民用煤气。煤气焦炭用于采暖。能源行业自用包括煤气厂的煤气焦炭消费量。 | I12: kt | J12: тыс. тонн | K12: 千吨 | M12: 10 | N12: Liquefaction plants | O12: Заводы по сжижению | P12: 液化厂 | Q12: Text for 'Aggregated balance'
A13: 11 | B13: COALTAR | C13: Coal tar | D13: Каменноугольная смола | E13: 煤焦油 | F13: A result of the destructive distillation of bituminous coal or of the low-temperature carbonisation of brown coal. Coal tar from bituminous coal is the liquid by-product of the distillation of coal to make coke in the coke oven process. Coal tar can be further distilled into different organic products (e.g. benzene, toluene, naphthalene), which normally would be reported as a feedstock to the petrochemical industry. | G13: Результат сухой перегонки битуминозного угля или низкотемпературной карбонизации бурого угля. Каменноугольная смола из битуминозного угля - это жидкий побочный продукт перегонки угля с целью получения кокса в коксовых печах. Каменноугольная смола может подвергаться дальнейшей перегонке для получения разных органических продуктов (например, бензола, толуола, нафталина), которые обычно указывают в отчетности как сырье для нефтехимической промышленности. | H13: 煤焦油是烟煤干馏或褐煤低温碳化的产物。烟煤形成的煤焦油是在焦炉炼焦过程中，对烟煤进行蒸馏生成的液体副产品。煤焦油可进一步蒸馏提炼成不同的有机产品（例如：苯、甲苯、萘），一般情况下，这些有机产品可作为石油化工行业原料进行报送。 | I13: kt | J13: тыс. тонн | K13: 千吨 | M13: 11 | N13: Conversion factors | O13: Коэффициенты пересчета | P13: 换算因子 | Q13: Text for 'Conversion factors'
A14: 12 | B14: BKB | C14: BKB (Brown coal briquettes) | D14: Буроугольные брикеты (БУБ) | E14: 褐煤型煤 | F14: BKB is a composition fuel manufactured from lignite or sub-bituminous coal, produced by briquetting under high pressure without the addition of a binding agent. | G14: Буроугольные брикеты – это топливная смесь, получаемая из лигнита или полубитуминозного угля посредством брикетирования под высоким давлением, без добавления связующего материала. | H14: 褐煤型煤是使用褐煤，在添加或不添加粘合剂的情况下，通过高压压块制作而成的合成燃料。 | I14: kt | J14: тыс. тонн | K14: 千吨 | M14: 12 | N14: Net calorific values (kJ/kg) | O14: Значения низшей теплоты сгорания (кДж/кг) | P14: 净热值（千焦/千克） | Q14: Text for 'Conversion factors'
A15: 13 | B15: GASWKSGS | C15: Gas works gas | D15: Заводской газ | E15: 煤气厂煤气 | F15: Covers all types of gases produced in public utility or private plants, whose main purpose is manufacture, transport and distribution of gas. It includes gas produced by carbonization (including gas produced by coke ovens and transferred to gas works gas), by total gasification with or without enrichment with oil products (LPG, residual fuel oil, etc.), and by reforming and simple mixing of gases and/or air, reported under the rows, From other sources. Under the transformation sector identify amounts of gas work gas transferred to blended natural gas which will be distributed and consumed through the natural gas grid. The quantity of fuel should be reported on a gross calorific value basis. The production of other coal gases (i.e. coke oven gas, blast furnace gas and other recovered gases) should be reported in the columns concerning such gases, and not as production of gas works gas. The coal gases transferred to gas works plants should then be reported (in their own column) in the transformation sector in the gas works plants row. The total amount of gas works gas resulting from transfers of other coal gases should appear in the production line for gas works gas. | G15: Эта категория включает все газы, вырабатываемые на коммунальных или частных предприятиях, основным видом деятельности которых является производство, транспортировка и распределение газа. В эту категорию входит газ, производимый путем карбонизации (в том числе газ, производимый в коксовых печах и передаваемый в заводской газ), путем полной газификации с обогащением нефтепродуктами (сжиженным нефтяным газом, топочным мазутом и др.) или без него, а также путем реформинга и простого смешивания газов и/или воздуха, указываемый в строках «Из прочих источников». В Секторе преобразования укажите объемы заводского газа, переданного для смешивания с природным газом, который будет распределяться и употребляться через сеть природного газа. Объем топлива следует указать на основе высшей теплотворной способности. Производство других газов из угля (коксового, доменного и других восстановленных газов) должно быть указано в колонках, относящихся к таким газам, а не как производство заводского газа. Газы из угля, переданные на газовые заводы, должны быть потом представлены (в своей колонке) в Cекторе преобразования в строке, относящейся к газовым заводам. Общий объем заводского газа, созданный в результате передачи других газов из угля, следует указать в строке производства заводского газа. | H15: 煤气厂煤气包括以煤气制造、运输和配送为主营业务的公用或私营煤气厂生产的各种煤气。煤气厂煤气包括通过碳化生成的煤气（包括焦炉生产的并传输给煤气厂的煤气）、完全气化（无论是否添加石油产品）生成的煤气，及通过重整和简单混合煤气和/或空气生成的煤气 。 | I15: TJ-gross | J15: ТДж - ВТС | K15: 太焦耳 - 毛值 | M15: 13 | N15: Share of renewables in supply (%) | O15: Доля ВИЭ в предложении (%) | P15: [missing_Chinese] | Q15: Text for 'Disaggregated balance'
A16: 14 | B16: COKEOVGS | C16: Coke oven gas | D16: Коксовый газ | E16: 焦炉煤气 | F16: Obtained as a by-product from the manufacture of coke oven coke for the production of iron and steel. The quantity of fuel should be reported on a gross calorific value basis. | G16: Образуется как побочный продукт производства кокса в коксовых печах для использования в производстве железа и стали. Объем топлива должен быть указан на основе высшей теплотворной способности. | H16: 焦炉煤气是在炼制用于钢铁生产的焦炉焦炭过程中生成的副产品。 | I16: TJ-gross | J16: ТДж - ВТС | K16: 太焦耳 - 毛值 | M16: 14
A17: 15 | B17: BLFURGS | C17: Blast furnace gas | D17: Доменный газ | E17: 高炉煤气 | F17: Produced during the combustion of coke in blast furnaces in the iron and steel industry. It is recovered and used as a fuel partly within the plant and partly in other steel industry processes or in power stations equipped to burn it. The quantity of recuperated fuel should be reported on a gross calorific value basis. In addition, off-gases from all iron-production reduction processes utilising air as the oxygen source (such as Direct reduced iron) should be reported here. | G17: Производится при сжигании кокса в доменных печах на предприятиях черной металлургии. Этот газ извлекается и используется в качестве топлива, частично на предприятии, частично в других процессах черной металлургии или на электростанциях, которые могут его сжигать. Объем рекуперируемого топлива следует указать на основе высшей теплотворной способности. К тому же, здесь следует указать отходящие газы всех восстановительных металлургических процессов, использующих воздух как источник кислорода (например, прямое восстановление железа). | H17: 高炉煤气在钢铁业高炉焦炭的燃烧过程中产生。高炉煤气一部分在厂内回收并用作燃料，一部分在其他钢铁业工艺中或具备燃烧设备的发电站回收并用作燃料。 | I17: TJ-gross | J17: ТДж - ВТС | K17: 太焦耳 - 毛值 | M17: 15
A18: 16 | B18: OGASES | C18: Other recovered gases | D18: Прочие восстановленные газы | E18: 其他回收煤气 | F18: By-product of the production of steel in an oxygen furnace, recovered on leaving the furnace. The gases are also known as converter gas, LD gas or BOS gas. The quantity of recuperated fuel should be reported on a gross calorific value basis. Also covers non-specified manufactured gases not mentioned above, such as combustible gases of solid carbonaceous origin recovered from manufacturing and chemical processes not elsewhere defined. | G18: Побочный продукт производства стали в кислородно-конвертерной печи, который улавливается на выходе. Эти газы известны также как конвертерный газ, ЛД-газ или кислородно-конвертерный газ. Объем рекуперируемого топлива следует указать на основе высшей теплотворной способности. Эта подгруппа включает также неспецифические синтез-газы, не указанные выше, такие как горючие газы твердого углеродного происхождения, улавливаемые при производственных или химических процессах и не включенные в другие подгруппы. | H18: 其他回收煤气是利用吹氧炉生产钢铁时生成的副产品，在出炉时回收。这些气体也被称作转炉煤气、LD煤气或BOS煤气。 回收燃料的数量应基于高位发热量进行报送。此外，其他回收煤气还应包括未在上文提及的未列明的人造煤气，例如：在生产和化学过程中回收的固体碳源易燃气体（未另行予以定义）。 | I18: TJ-gross | J18: ТДж - ВТС | K18: 太焦耳 - 毛值 | M18: 16
A19: 17 | B19: MANGAS | C19: Elec/heat output from non-spec. manufactured gases | D19: Производство электроэнергии/тепла из неуказанных конкретно произведенных газов | E19: 未列明的人造煤气产生的电力/热力 | F19: This item is only used if the detailed breakdown is not available. It includes coke oven gas, blast furnace gas and other recovered gases. Gas works gas is not included here. | G19: Этот пункт используется только в случае отсутствия подробной разбивки. Включает в себя коксовый газ, доменный газ и другие виды извлеченных газов, кроме газа, произведенного на газовых заводах. | H19: 该项仅在具体明细信息无法获得的情况下使用。它包括焦炉煤气、高炉煤气和其他回收煤气，但不包括煤气厂煤气。 | I19: TJ-gross | J19: ТДж - ВТС | K19: 太焦耳 - 毛值 | M19: 17
A20: 18 | B20: PEAT | C20: Peat | D20: Торф | E20: 泥煤 | F20: A combustible soft, porous or compressed, fossil sedimentary deposit of plant origin with high water content (up to 90 percent in the raw state), easily cut, and of light to dark brown colour. Peat used for non-energy purposes should not included here. Milled peat is included here. | G20: Мягкое горючее, пористое или сжатое, ископаемое осадочное отложение растительного происхождения с высоким содержанием воды (до 90% в сыром состоянии), легко режется, от светло-коричневого до темно-коричневого цвета. Торф для неэнергетического использования указывать не следует. Фрезерный торф входит в эту подгруппу. | H20: 泥煤是一种易燃的柔软、多孔或压缩的植物源化石沉积物，水分含量高（在原始状态下高达90%），容易切割，颜色从浅褐色到深褐色不等。此项不包括出于非能源用途使用的泥煤，但包括碎泥煤。 | I20: kt | J20: тыс. тонн | K20: 千吨 | M20: 18
A21: 19 | B21: PEATPROD | C21: Peat products | D21: Продукты переработки торфа | E21: 泥煤产品 | F21: Products such as peat briquettes derived directly or indirectly from sod peat and milled peat. | G21: Эта категория включает такие продукты, как торфяные брикеты, полученные прямо или косвенно из торфяного дерна или фрезерного торфа. | H21: 泥煤产品包括直接或间接使用草泥煤和碎泥煤制成的泥煤砖等产品。 | I21: kt | J21: тыс. тонн | K21: 千吨 | M21: 19
A22: 20 | B22: OILSHALE | C22: Oil shale and oil sands | D22: Горючие сланцы и битуминозные пески | E22: 油页岩和油砂 | F22: Oil shale and oil sands are sedimentary rock which contains organic matter in the form of kerogen. Kerogen is a waxy hydrocarbon-rich material regarded as a precursor of petroleum. Oil shale may be burned directly or processed by heating to extract shale oil. Oil shale and tar sands used as inputs for other transformation processes are also included here (this includes the portion consumed in the transformation process). Shale oil and other products derived from liquefaction are included in from other sources under crude oil (other hydrocarbons). | G22: Горючие сланцы и битуминозные пески – это осадочная порода, которая состоит из органического вещества в форме керогена. Кероген – это парафинистый, богатый углеводородом материал, который рассматривается в качестве предшественника нефти. Горючие сланцы могут сжигаться непосредственно или проходить термическую обработку для извлечения сланцевого масла. Сланцевое масло и прочие продукты, извлеченные в процессе сжижения, следует указать в «Годовом вопроснике по нефти» в подгруппе «Прочие углеводороды». | H22: 油页岩和油砂是含有油母页岩有机质的沉积岩。油母页岩是 一种光滑的、富含碳氢化合物的物质，被视作石油前体。油页岩可直接燃烧，或者通过加热分解提炼岩页油。此项还包括被用作其他转换过程输入原料的油页岩和焦油砂（包括在转换过程中消费的部分）。页岩油和因溶解生产的其他产品列入原油项下其他能源项目（其他碳氢化合物）。 | I22: kt | J22: тыс. тонн | K22: 千吨 | M22: 20
A23: 21 | C23: Crude, NGL, refinery feedstocks | D23: Нефть, ПГК и Сырьё для нефтепереработки | E23: 原油、天然气凝析液、炼油厂原料 | I23: kt | J23: тыс. тонн | M23: 21
A24: 22 | B24: CRUDEOIL | C24: Crude oil | D24: Сырая нефть | E24: 原油 | F24: Crude oil is a mineral oil of natural origin comprising a mixture of hydrocarbons and associated impurities, such as sulphur. It exists in the liquid phase under normal surface temperature and pressure and its physical characteristics (density, viscosity, etc.) are highly variable. This category includes field or lease condensate recovered from associated and non–associated gas where it is commingled with the commercial crude oil stream. | G24: Сырая нефть является минеральным топливом природного происхождения состоящим из углеводородов и связанных примесей, таких как сера. Сырая нефть при нормальной температуре и давлении существует в жидком виде и её физические свойства (плотность, вязкость и т.д.) сильно переменчивы. В эту категорию включена жидкость изъятая из газоконденсатного месторождения или промысловый конденсат изъятый из попутного или непопутного газа, там, где он смешанный с коммерческим потоком сырой нефти. | H24: 原油是一种天然矿物质油，由碳氢化合物和伴生杂质（如硫磺）混合而成。原油在正常地表温度和压力下呈液体状态，其物理特征（密度、粘度等）有较大的可变性。该项包括从与商业原油流相混合的伴生和非伴生气体中回收的油田凝析油或矿场气凝析油（分离液）。 | I24: kt | J24: тыс. тонн | K24: 千吨 | M24: 22
A25: 23 | B25: NGL | C25: Natural gas liquids (NGL) | D25: Природный газоконденсат (ПГК) | E25: 天然气凝析液 | F25: NGL are liquid or liquefied hydrocarbons recovered from natural gas in separation facilities or gas processing plants. Natural gas liquids include ethane, propane, butane (normal and iso–), (iso) pentane and pentanes plus (sometimes referred to as natural gasoline or plant condensate). | G25: Природный газоконденсат это жидкие или сжиженные углеводороды, извлекаемые из природного газа в сепараторных установках или на газоперерабатывающих станциях. В состав природного газоконденсата входят этан, пропан, бутан (нормальный и изобутан), (изо)пентан и плюс пентаны (пентаны и более тяжёлые углеводороды, которые иногда упоминаются как природный бензин или производственный конденсат). | H25: 天然气凝析液是从分离设施或气体加工厂的天然气中回收的液体或液化碳氢化合物。天然气凝析液包括乙烷、丙烷、丁烷（正丁烷和异丁烷）、（异）戊烷和戊烷以上的烃（有时也被称作天然汽油或加工厂凝析油）。 | I25: kt | J25: тыс. тонн | K25: 千吨
A26: 24 | B26: REFFEEDS | C26: Refinery feedstocks | D26: Сырьё для нефтепереработки | E26: 炼油厂原料 | F26: A refinery feedstock is a processed oil destined for further processing (e.g. straight run fuel oil or vacuum gas oil) excluding blending. With further processing, it will be transformed into one or more components and/or finished products. This definition also covers returns from the petrochemical industry to the refining industry (e.g. pyrolysis gasoline, C4 fractions, gasoil and fuel oil fractions). | G26: Сырьё для нефтепереработки это переработанная нефть, которая предназначается для дальнейшей обработки (например мазут первой перегонки или вакуумный газойль), исключая смешивание. В дальнейших этапах переработки, сырьё для нефтепереработки преобразуется в один или несколько компонентов и/или конечных продуктов. Данное определение охватывает также возвратные продукты из нефтехимической промышленности в нефтеперерабатывающую промышленность (например пиролизный бензин, фракции С4 и фракции газойля и мазута). | H26: 炼油厂原料是一种加工油，在炼油工业用作调配以外的其他加工目的（例如：直馏燃料油或减压轻柴油）。经过进一步的加工，炼油厂原料将转化成一种或多种组分和/或成品。本定义还涵盖从石油化工行业返回至炼油行业的产品（例如：裂解汽油、碳四馏分、汽油和燃料油馏分）。 | I26: kt | J26: тыс. тонн | K26: 千吨
A27: 25 | B27: ADDITIVE | C27: Additives/ blending components | D27: Присадки/оксигенаты | E27: 添加剂/调合组分 | F27: Additives are non-hydrocarbon compounds added to or blended with a product to modify fuel properties (octane, cetane, cold properties, etc.): i. Oxygenates, such as alcohols (methanol, ethanol); ethers, such as MTBE (methyl tertiary butyl ether), ETBE (ethyl tertiary butyl ether), TAME (tertiary amyl methyl ether); ii. Esters (e.g. rapeseed or dimethylester, etc.); iii. Chemical compounds (such as TML, TEL and detergents). The biofuel fractions of biogasoline, biodiesel and ethanol are not included here, but under liquid biofuels. This differs from the presentation of additives in the Oil Information publication. | G27: Присадки это неуглеводородные соединения, которые добавляются или смешиваются с продуктами нефтепереработки для изменения свойств топлива (таких как октановое и цетановое число, устойчивость при низких температурах, и т.д.): i. Оксигенаты, такие как алкоголи (метанол, этанол), эфиры (например МТБЭ (метил-трет-бутиловый эфир), ЭТБЭ (этил-трет-бутиловый эфир), ТАМЭ (третичный амил метиловый эфир); ii. Сложные эфиры (например репсовое масло или диметиловый эфир и т.д.); iii. Химические соединения (такие как тетраметилсвинец, тетраэтилсвинец и детергенты). | H27: 添加剂是加入某一产品或与其相调合以改进该产品的特性（例如，改进燃烧特性）的非碳氢化合物。该项包括醇类和乙醚（MTBE，即甲基叔丁基醚）和四乙基铅等化学合金。但是生物汽油、生物柴油和乙醇的生物燃料馏分不包含在内，而列入液体生物燃料。本定义有别于石油信息公告中有关添加剂的说明。 | I27: kt | J27: тыс. тонн | K27: 千吨
A28: 26 | B28: NONCRUDE | C28: Other hydro-carbons | D28: Прочие углеводороды | E28: 其它碳氢化合物 | F28: This category includes synthetic crude oil from tar sands, shale oil, etc., liquids from coal liquefaction, (see the Annual coal questionnaire), output of liquids from natural gas conversion into gasoline (see the Annual natural gas questionnaire), hydrogen and emulsified oils (e.g. Orimulsion). | G28: Эта категория включает синтетическую сырую нефть получаемую из битуминозных песков, горючих сланцев и т.д., жидкие продукты получаемые при сжижении угля (см. Годовой вопросник по углю), жидкие продукты переработки природного газа в бензин (см. Годовой вопросник по природному газу), водород и эмульсированные масла (например водно-битумная эмульсия – ориэмульсия). | H28: 此类碳氢化合物包括从油砂、页岩油等中提炼的合成原油，煤液化生成的液体，以及在天然气转换成汽油、氢、乳化油（例如：沥青乳油）过程中产生的液体。 | I28: kt | J28: тыс. тонн | K28: 千吨
A29: 27 | C29: Oil products | D29: Нефтепродукты | E29: 石油产品 | I29: kt | J29: тыс. тонн
A30: 28 | B30: REFINGAS | C30: Refinery gas | D30: Нефтезаводской газ | E30: 炼厂气 | F30: Refinery gas includes a mixture of non-condensed gases mainly consisting of hydrogen, methane, ethane and olefins obtained during distillation of crude oil or treatment of oil products (e.g. cracking) in refineries. It also includes gases which are returned from the petrochemical industry. Refinery gas production refers to gross production. Own consumption is shown separately under oil refineries in energy industry own use. | G30: Нефтезаводской газ включает смесь неконденсированных газов, состоящую главным образом из водорода, метана, этана, а также олефинов, полученных при перегонке сырой нефти или переработке нефтепродуктов (например при крекинге) на НПЗах. Эта категория включает также газы возвращённые из нефтехимической промышленности. | H30: 炼厂气包括非冷凝性气体的混合物，非冷凝性气体主要包括炼油厂原油提炼或石油产品处理（例如：分裂）过程中获取的氢气、甲烷、乙烷和烯烃等。炼厂气还包括从石化行业返回的气体。炼厂气产量系指毛产量。自用消费量单独列入能源行业自用项下的炼油厂项目。 | I30: kt | J30: тыс. тонн | K30: 千吨
A31: 29 | B31: ETHANE | C31: Ethane | D31: Этан | E31: 乙烷 | F31: A naturally gaseous straight–chain hydrocarbon, (C2H6) extracted from natural gas and refinery gas streams. | G31: Естественно газообразный неразветвленный углеводород (C2H6), извлекаемый из потоков природного и нефтезаводского газа. | H31: 乙烷是一种自然状况下为气态的直链烷烃（C2H6），从天然气和炼厂气流中提炼而成。 | I31: kt | J31: тыс. тонн | K31: 千吨
A32: 30 | B32: LPG | C32: Liquefied petroleum gases (LPG) | D32: Сжиженные нефтяные газы (СНГ) | E32: 液化石油气（LPG） | F32: LPG are light paraffinic hydrocarbons derived from the refinery processes, crude oil stabilisation and natural gas processing plants. They consist mainly of propane (C3H8) and butane (C4H10) or a combination of the two. They could also include propylene, butylene, isobutene and isobutylene. LPG are normally liquefied under pressure for transportation and storage. | G32: СНГ это лёгкие парафиновые углеводороды, полученные в процессах перегонки, стабилизации сырой нефти и заводах по переработке природного газа. Они состоят в основном из пропана (C3H8) и бутана (C4H10) или их смеси, но могут также включать пропилен, бутилен, изобутан и изобутилен. Для транспортировки и хранения СНГ обычно подвергаются сжижению под давлением. | H32: 液化石油气是在炼油过程、原油稳定处理厂和天然气加工厂形成的轻质石蜡族碳氢化合物，主要包括丙烷（C3H8）、丁烷（C4H10）或丙烷丁烷混合气体。液化石油气还包括丙烯、丁烯和异丁烯。运输和存储时，液化石油气通常进行加压液化。 | I32: kt | J32: тыс. тонн | K32: 千吨
A33: 31 | B33: NONBIOGASO | C33: Motor gasoline excl. biofuels | D33: Моторный бензин | E33: 车用汽油（生物燃料除外） | F33: Motor gasoline is light hydrocarbon oil for use in internal combustion engines such as motor vehicles, excluding aircraft. Motor gasoline is distilled between 35°C and 215°C and is used as a fuel for land based spark ignition engines. Motor gasoline may include additives, oxygenates and octane enhancers, including lead compounds such as TEL (tetraethyl lead) and TML (tetramethyl lead). Motor gasoline excluding biofuels does not include the liquid biofuels or ethanol blended with gasoline - see liquid biofuels. This differs from the presentation of motor gasoline in the Oil Information publication. | G33: Моторный бензин это смесь лёгких углеводородов с температурой перегонки в пределах от 35°C до 215°C. Мотобензин используется как топливо для наземных двигателей с искровым зажиганием. Он может содержать присадки, оксигенаты и октановые усилители, включая соединения свинца, такие как ТЭС (тетраэтилсвинец) и ТМС (тетраметилсвинец). Эта категория включает компоненты для смешивания с автомобильным бензином (за исключением Присадок/оксигенатов), например алкилаты, изомеризат, реформат, крекинг-бензин для использования как конечный автомобильный бензин. | H33: 车用汽油是一种轻质石蜡族碳氢化合物，用于内燃机，如机动车，但不包括飞机。车用汽油的沸程为35°C至215°C，而且车用汽油用作陆基点燃式发动机的燃料。车用汽油中可包含添加剂、充氧剂和辛烷值提高剂，包括例如TEL（四乙基铅）和TML（四甲基铅）等铅化合物。车用汽油（生物燃料除外）不包括液体生物燃料或乙醇汽油 - 参见液体生物燃料。本定义有别于石油信息公告中有关车用汽油的说明。 | I33: kt | J33: тыс. тонн | K33: 千吨
A34: 32 | B34: AVGAS | C34: Aviation gasoline | D34: Авиационный бензин | E34: 航空汽油 | F34: Aviation gasoline is motor spirit prepared especially for aviation piston engines, with an octane number suited to the engine, a freezing point of -60°C, and a distillation range usually within the limits of 30°C and 180°C. | G34: Это моторный бензин подготовлен специально для авиационных поршневых двигателей, с октановым числом подобранным для использования в двигателях этого типа, и имеющий точку замерзания –60°C.Температурный интервал перегонки находится обычно в пределах от 30°C до 180°C. | H34: 航空汽油是专门为航空活塞发动机配制的发动机燃料，其辛烷值适用于该发动机，冰点为-60°C，沸程通常为30°C至180°C。 | I34: kt | J34: тыс. тонн | K34: 千吨
A35: 33 | B35: JETGAS | C35: Gasoline type jet fuel | D35: Бензин для реактивных двигателей (нафта для реактивных двигателей или JP4) | E35: 汽油型喷气燃料 | F35: Gasoline type jet fuel includes all light hydrocarbon oils for use in aviation turbine power units, distilling between 100°C and 250°C. This fuel is obtained by blending kerosene and gasoline or naphtha in such a way that the aromatic content does not exceed 25% in volume, and the vapour pressure is between 13.7 kPa and 20.6 kPa. Additives can be included to improve fuel stability and combustibility. | G35: Эта категория включает все виды лёгкого углеводородного топлива, используемые в авиационных турбинных установках и имеющие температуру перегонки от 100°C до 250°C. Этот бензин производится с помощью смешивания керосина и бензина или нафты в такой пропорции, чтобы содержание ароматических соединений не превышало 25% по объёму, а давление насыщенных паров бензина находилось в пределах от 13.7кПа до 20.6кПa. | H35: 汽油型喷气燃料包括用于航空涡轮动力机组的所有轻烃油，沸程为100°C至250°C。该燃料是由柴油和汽油或挥发油调合而成，其芳烃含量不超过25%，蒸汽压在13.7 千帕和20.6千帕之间。该燃料中可加入添加剂，以提高燃料的稳定性和易燃性。 | I35: kt | J35: тыс. тонн | K35: 千吨
A36: 34 | B36: NONBIOJETK | C36: Kerosene type jet fuel excl. biofuels | D36: Керосин для реактивных двигателей | E36: 煤油型喷气燃料（生物燃料除外） | F36: Kerosene type jet fuel is a medium distillate used for aviation turbine power units. It has the same distillation characteristics and flash point as kerosene (between 150°C and 300°C but not generally above 250°C). In addition, it has particular specifications (such as freezing point) which are established by the International Air Transport Association (IATA). It includes kerosene blending components. Kerosene type jet fuel excluding biofuels does not include the liquid biofuels blended with jet kerosene. | G36: Это продукт перегонки, используемый в авиационных турбинных установках. Он имеет такие же характеристики перегонки в диапазоне от 150°C до 300°C (обычно не выше 250°C) и точку возгорания, как и керосин. Кроме того, он имеет ряд особых свойств (таких как точка замерзания), утверждённых Международной ассоциацией воздушного транспорта (ИАТА). | H36: 煤油型喷气燃料是一种用于航空涡轮动力机组的中间馏分油，具有与柴油相同的沸程特性和闪点（沸程为150°C至300°C，但一般不超过250°C）。此外，煤油型喷气燃料具有国际航空运输协会（IATA）规定的专门规格（例如冰点等）。煤油型喷气燃料包括煤油调合组分。煤油型喷气燃料（生物燃料除外）不包括与航空煤油调合的液体生物燃料。 | I36: kt | J36: тыс. тонн | K36: 千吨
A37: 35 | B37: OTHKERO | C37: Other kerosene | D37: Прочие керосины | E37: 其他煤油 | F37: Kerosene (other than kerosene used for aircraft transport which is included with aviation fuels) comprises refined petroleum distillate intermediate in volatility between gasoline and gas/diesel oil. It is a medium oil distillate between 150°C and 300°C. | G37: Прочие керосины включают в себя очищенные продукты перегонки нефти и используются в различных секторах, кроме авиационного транспорта. Температура их перегонки заключается в пределах от 150°C до 300°C. | H37: 煤油（航空运输所用的属于航空燃料的煤油除外）包括挥发度介于汽油和轻柴油/柴油之间的精制石油中间馏分油。其属于一种中间馏分油，沸程为 150°C至300°C。 | I37: kt | J37: тыс. тонн | K37: 千吨
A38: 36 | B38: NONBIODIES | C38: Gas/diesel oil excluding biofuels | D38: Газойль/ дизельное топливо (дистиллятный мазут) | E38: 轻柴油/柴油（生物燃料除外） | F38: Gas/diesel oil includes heavy gas oils. Gas oils are obtained from the lowest fraction from atmospheric distillation of crude oil, while heavy gas oils are obtained by vacuum redistillation of the residual from atmospheric distillation. Gas/diesel oil distils between 180°C and 380°C. Several grades are available depending on uses: diesel oil for diesel compression ignition (cars, trucks, marine, etc.), light heating oil for industrial and commercial uses, and other gas oil including heavy gas oils which distil between 380°C and 540°C and which are used as petrochemical feedstocks. Gas/diesel oil excluding biofuels does not include the liquid biofuels blended with gas/diesel oil – see liquid biofuels. This differs from the presentation of gas/diesel oil in the Oil Information publication. | G38: Газойль/дизельное топливо – это в основном средний дистиллят перегонки нефти при температурах от 180°C до 380°C. В зависимости от использования, существует несколько его сортов: | H38: 轻柴油/柴油（生物燃料除外）包括重轻柴油。轻柴油生成于原油常压蒸馏的最低馏分，而重轻柴油生成于对常压蒸馏的渣油进一步的真空蒸馏。轻柴油/柴油的沸程为180°C至380°C。根据不同的用途，轻柴油/柴油分为若干个级别：用于柴油压缩点火装置（汽车、卡车、船舶）的柴油、用于工业和商业用途的轻取暖用油，以及其他轻柴油（包括沸程为 380°C至540°C，并用作石化原料的重轻柴油）。轻柴油/柴油（生物燃料除外）不包括与轻柴油/柴油进行调合的液体生物燃料 – 参见液体生物燃料。本定义有别于石油信息公告中有关轻柴油/柴油的说明。 | I38: kt | J38: тыс. тонн | K38: 千吨
A39: 37 | B39: RESFUEL | C39: Fuel oil | D39: Мазут | E39: 燃料油 | F39: Fuel oil defines oils that make up the distillation residue. It comprises all residual fuel oils, including those obtained by blending. Its kinematic viscosity is above 10 cSt at 80°C. The flash point is always above 50°C and the density is always higher than 0.90 kg/l. | G39: Эта категория включает все виды остаточных (тяжёлых) мазутов, в том числе полученных с помощью смешивания. Кинематическая вязкость выше 10 сСт при 80oC. Точка возгорания всегда выше 50oC, а плотность всегда превышает 0.90 кг/л | H39: 燃料油是指原油经蒸馏后留下的残余物，涵盖所有残余燃料油，包括通过调合取得的燃料油。在温度为80°C的条件下，燃料油的动力粘度在10 厘斯以上。燃料油的闪点始终保持在50°C以上，且密度始终保持在0.90 千克/升以上。 | I39: kt | J39: тыс. тонн | K39: 千吨
A40: 38 | B40: NAPHTHA | C40: Naphtha | D40: Нафта | E40: 石脑油 | F40: Naphtha is a feedstock destined either for the petrochemical industry (e.g. ethylene manufacture or aromatics production) or for gasoline production by reforming or isomerisation within the refinery. Naphtha comprises material that distils between 30°C and 210°C. Naphtha imported for blending is shown as an import of naphtha, and then shown in the transfers row as a negative entry for naphtha and a positive entry for the corresponding finished product (e.g. gasoline). | G40: Нафта это сырьё для нефтехимической промышленности (например производства этилена или ароматических углеводородов), а также для производства бензина с помощью реформинга или изомеризации внутри НПЗа. Нафта включает фракции с температурой перегонки в диапазоне от 30°C до 210 °C или в части этого диапазона. Нафта импортируемая для смешивания должна быть указана как импорт нафты, а затем указана в графе «Межпродуктовая передача» с отрицательным знаком для Нафты и положительным знаком для соответствующего конечного продукта. | H40: 石脑油作为一种原料，可用于石油化工行业（例如乙烯或芳香剂生产），也可用于炼油厂通过重整或异构化进行生产汽油，石脑油组分的沸程为30°C至210°C。进口用于调合用途的石脑油列示为石脑油进口，并在转换产出量行中，在石脑油项下记为负值，在相应成品（如汽油）项下记为正值。 | I40: kt | J40: тыс. тонн | K40: 千吨
A41: 39 | B41: WHITESP | C41: White spirit & SBP | D41: Уайт-спирит и бензин для промышленно-технических целей (SBP) | E41: 工业用白油和溶剂油 | F41: White spirit and SBP are refined distillate intermediates with a distillation in the naphtha/kerosene range. i. White Spirit has a flash point above 30°C and a distillation range of 135°C to 200°C. ii. Industrial Spirit (SBP) comprises light oils distilling between 30°C and 200°C, with a temperature difference between 5% volume and 90% volume distillation points, including losses, of not more than 60°C. In other words, SBP is a light oil of narrower cut than motor spirit. There are seven or eight grades of industrial spirit, depending on the position of the cut in the distillation range defined above. | G41: Уайт-спирит и бензин для промышленно-технических целей являются промежуточными продуктами перегонки с температурами перегонки в диапазоне перегонки нафты и керосина. Они подразделяются на: i. Бензин для промышленно-технических целей (SBP): Лёгкие нефтепродукты с температурой перегонки от 30° до 200°C. Различаем 7-8 сортов бензина для промышленно-технических целей, в зависимости от крайних температурных значений по шкале перегонки. Эти сорта определяются согласно разнице температур в пределах от 5% до 90% объёма дистилляционных пунктов (которая не больше, чем 60°C). ii. Уайт-спирит: Бензин-растворитель с точкой возгорания свыше 30oC. Диапазон температур перегонки уайт-спирита заключается в пределах от 135 °C до 200°C. | H41: 工业用白油和溶剂油是沸程在石脑油/煤油区间内的精制中间馏分油。工业用白油的闪点在30°C以上，沸程为135°C至200°C。工业用溶剂油（SBP）包括沸程为30°C至200°C的轻质油，温度差异为5%-90%体积蒸馏点（包括损失，不高于60ºC）之间。换言之，工业用溶剂油是一种沸程比车用汽油更窄的轻质油。根据上述确定的沸程的不同切割位置，工业用溶剂油可分为七至八个级别。 | I41: kt | J41: тыс. тонн | K41: 千吨
A42: 40 | B42: LUBRIC | C42: Lubricants | D42: Смазочные материалы | E42: 润滑油 | F42: Lubricants are hydrocarbons produced from distillate or residue; they are mainly used to reduce friction between bearing surfaces. This category includes all finished grades of lubricating oil, from spindle oil to cylinder oil, and those used in greases, including motor oils and all grades of lubricating oil base stocks. | G42: Смазочные материалы это углеводороды, получаемые из побочных продуктов перегонки нефти. Они в основном используются для уменьшения трения между соприкасающимися поверхностями. Эта категория включает все готовые сорта смазочных масел от веретённого до цилиндрового масла, а также масла, используемые в консистентных смазках, включая моторные масла и все сорта основных компонентов смазочных масел. | H42: 润滑油是利用蒸馏物或残余物生成的碳氢化合物，主要用于减少支撑面的摩擦。该类别包括锭子油、汽缸油等所有成品级别的润滑油，用作润滑油脂的所有润滑油（包括机油），以及所有级别的润滑油基础油。 | I42: kt | J42: тыс. тонн | K42: 千吨
A43: 41 | B43: BITUMEN | C43: Bitumen | D43: Битум | E43: 沥青 | F43: Bitumen is a solid, semi-solid or viscous hydrocarbon with a colloidal structure that is brown to black in colour. It is obtained by vacuum distillation of oil residues from atmospheric distillation of crude oil. Bitumen is often referred to as asphalt and is primarily used for surfacing of roads and for roofing material. This category includes fluidised and cut back bitumen. | G43: Битум является твёрдым, полутвёрдым или вязким углеводородным веществом, имеющим коллоидную структуру, тёмно-коричневого или чёрного цвета, образующимся как остаток при перегонке сырой нефти путём вакуумной перегонки нефтяных остатков при атмосферном давлении. Битум часто называют асфальтом и используют, в основном, в строительстве дорог и в качестве кровельного материала. Эта категория включает псевдоожиженный и жидкий битум. | H43: 沥青是一种呈褐色至黑色胶状结构的固体、半固体或粘性碳氢化合物。它是利用原油常压蒸馏后产生的渣油，进行进一步真空蒸馏后取得的。 沥青通常被称作柏油，主要用作路面和屋顶铺设材料。沥青包括流化沥青和稀释沥青。 | I43: kt | J43: тыс. тонн | K43: 千吨
A44: 42 | B44: PARWAX | C44: Paraffin waxes | D44: Твёрдые парафины | E44: 固体石蜡 | F44: Paraffin waxes are saturated aliphatic hydrocarbons. These waxes are residues extracted when dewaxing lubricant oils, and they have a crystalline structure which is more or less fine according to the grade. Their main characteristics are that they are colourless, odourless and translucent, with a melting point above 45°C. | G44: Твёрдые парафины это насыщённые алифатические углеводороды. Парафины являются остатками, извлечёнными при депарафинизации смазочных материалов. Они имеют кристаллическую структуру, более или менее тонкую в зависимости от сорта. Парафины представляют собой полупрозрачные вещества без цвета и запаха, с температурой плавления выше 45oC. | H44: 固体石蜡为饱和脂肪烃，是在润滑油脱蜡过程中提炼出的残余物，呈晶体结构，根据不同的等级，晶体结构的粗细程度也不同。固体石蜡的主要特征是无色、无味、半透明，熔点在45°C以上。 | I44: kt | J44: тыс. тонн | K44: 千吨
A45: 43 | B45: PETCOKE | C45: Petroleum coke | D45: Нефтяной кокс | E45: 石油焦 | F45: Petroleum coke is defined as a black solid by-product, obtained mainly by cracking and carbonising of petroleum derived feedstocks, vacuum bottoms, tar and pitches in processes such as delayed coking or fluid coking. It consists mainly of carbon (90 to 95%) and has a low ash content. It is used as a feedstock in coke ovens for the steel industry, for heating purposes, for electrode manufacture and for production of chemicals. The two most important qualities are "green coke" and "calcined coke". This category also includes "catalyst coke" deposited on the catalyst during refining processes: this coke is not recoverable and is usually burned as refinery fuel. | G45: Нефтяной кокс это чёрный, твёрдый побочный продукт, полученный главным образом при крекинге и карбонизации производных нефтянного сырья, гудрона, смолы и пеков в таких процессах, как замедлённое коксование и коксование в псевдоожиженном слое. Этот кокс состоит в основном из угля (от 90% до 95%) и имеет низкую зольность. Нефтяной кокс используется как сырьё в коксующих печах для сталелитейной промышленности, для обогревания, при производстве электродов и химических веществ. Двумя наиболее важными сортами являются неготовый кокс (недопал) и кальцинированный кокс. Эта категория включает также «каталический кокс», отлагающийся на катализаторах при перегонке нефтепродуктов; этот кокс не возмещается и обычно сжигается в качестве топлива при перегонке нефти. | H45: 石油焦是指在延迟焦化或液体焦化等过程中主要通过对石油衍生原料、真空残渣油、焦油和沥青进行裂解和碳化而生成的黑色固体副产品。石油焦的主要成分为碳（含量为90至95%），此外还含有少量的灰份。石油焦在炼钢业、采暖、电极制造和化工品生产过程中用作焦炉原料。石油焦两个最重要的特质是“生焦”和“煅烧石油焦”。该类别还包括炼油过程中放置在催化剂上的“催化焦”，“催化焦”不可回收，通常用作炼厂燃料进行燃烧。 | I45: kt | J45: тыс. тонн | K45: 千吨
A46: 44 | B46: ONONSPEC | C46: Non-specified oil products | D46: Прочие нефтепродукты | E46: 未列明的石油产品 | F46: Other oil products not classified above (e.g. tar, sulphur and grease) are included here. This category also includes aromatics (e.g. BTX or benzene, toluene and xylene) and olefins (e.g. propylene) produced within refineries. | G46: Все прочие продукты, неупомянутые выше, например: смола и сера. Эта категория включает также ароматические углеводороды (например: БТК или бензол, толуол и ксилол) и олефины (например: пропилен), производимые на НПЗах. | H46: 本定义涵盖了未被纳入上述类别的其他石油产品（例如：焦油、硫磺和油脂）。该类别还包括在炼油厂内生产的芳香烃产品（例如BTX，又称苯-甲苯-二甲苯混合物）和烯烃产品（例如：丙烯）。 | I46: kt | J46: тыс. тонн | K46: 千吨
A47: 45 | C47: Natural gas | D47: Природный газ | E47: 天然气
A48: 46 | B48: NATGAS | C48: Natural gas | D48: Природный газ | E48: 天然气 | F48: Natural gas comprises gases, occurring in underground deposits, whether liquefied or gaseous, consisting mainly of methane. It includes both "non-associated" gas originating from fields producing hydrocarbons only in gaseous form, and "associated" gas produced in association with crude oil as well as methane recovered from coal mines (colliery gas) or from coal seams (coal seam gas). Production represents dry marketable production within national boundaries, including offshore production and is measured after purification and extraction of NGL and sulphur. In other words, quantities of gas that are re-injected, vented or flared are excluded. It includes gas consumed by gas processing plants and gas transported by pipeline. Biogases produced by anaerobic digestion of biomass (e.g. municipal or sewage gas) should be reported in the Renewables annual questionnaire, while gas works gas production should be reported in the Coal annual questionnaire. Transfers of such production to the natural gas network will be reported as “Receipts from other sources”. | G48: В состав природного газа входят газы, которые встречаются в подземных месторождениях в сжиженном или газообразном виде, состоящие в основном из метана. Природный газ состоит как из «непопутного» газа, который добывается из месторождений, дающих углеводороды только в газообразном виде, так и «попутного» газа, добыча которого связана с сырой нефтью. Природный газ – это также метан из угольных шахт (шахтный газ) или угольных пластов (газ угольных пластов). Биогазы, полученные в процессе анаэробного сбраживания биомассы (например, газ из городских отходов или из осадка сточных вод), следует указывать в «Годовом вопроснике по возобновляемым источникам энергии», в то время как производство заводского газа – в «Годовом вопроснике по углю». Поставки такой продукции в сеть природного газа следует указать как «Поступления из других источников». | H48: 天然气包括地下矿床中生成的、以甲烷作为主要成分的液态或气态气体。它包括从仅生产气态烃的油气田获取的“非伴生”气体，原油开采过程中产生的“伴生”气体，以及从煤矿中回收的甲烷（煤矿瓦斯）或从煤层中回收的甲烷（煤层瓦斯）。天然气的产量为国内（包括境外生产）可销售的干气产量，在提纯和提炼天然气凝析液及硫磺后进行计算。该项包括气体加工厂消费的天然气和通过管道运输的天然气，但不包括重新注入、放空或作为火炬气燃烧的天然气数量 。注：自2011年版本起，煤气厂煤气列入煤项目。2011年之前，煤气厂煤气列入天然气项目。 | I48: TJ-gross | J48: ТДж - ВТС | K48: 太焦耳 - 毛值
A49: 47 | C49: Biofuels and waste | D49: Возобновляемые источники энергии и отходы | E49: 生物燃料和废弃物
A50: 48 | B50: INDWASTE | C50: Industrial waste | D50: Промышленные отходы (невозобновляемые) | E50: 工业废弃物 | F50: Industrial waste of non-renewable origin consists of solid and liquid products (e.g. tyres) combusted directly, usually in specialised plants, to produce heat and/or power. The quantity of fuel used should be reported on a net calorific value basis. Renewable industrial waste should be reported in the Solid biofuels, Biogases and/or Liquid biofuels categories. | G50: Укажите отходы промышленного невозобновляемого происхождения (твердые или жидкие), сжигаемые непосредственно для производства электричества и/или тепла. Объем использованного топлива следует указывать на основе низшей теплотворной способности. Возобновляемые промышленные отходы должны быть указаны в категориях «Твердая биомасса», «Биогазы» и/или «Жидкое биотопливо». | H50: 不可再生的工业废弃物包括为生产热力和/或电力而通常在专业工厂内直接燃烧的固体和液体产品（例如，轮胎）。可再生的工业废弃物未包括在内，而列入固体生物燃料、生物质气或液体生物燃料。 | I50: TJ-net | J50: ТДж - HТС | K50: 太焦耳 - 净值
A51: 49 | B51: MUNWASTER | C51: Municipal waste (renewable) | D51: Коммунальные отходы (Возобновляемые) | E51: 城市废弃物（可再生） | F51: Municipal waste consists of that portion of waste produced by households, industry, hospitals and the tertiary sector which is biological material collected by local authorities and incinerated at specific installations. The quantity of fuel used should be reported on a net calorific value basis. | G51: Укажите ту часть отходов, образовавшихся в домашних хозяйствах, промышленности, медицинских учреждениях и третичном секторе, которая является биологическим материалом, собранным местными муниципальными органами и сожженным в специальных установках. Объем топлива следует указать на основе низшей теплотворной способности. | H51: 城市废弃物由为生产热力和/或电力而直接燃料的产品组成，包括及家庭、工厂、医院和第三产业生成的，由当地主管部门收集并在特定设施内焚烧的废弃物。城市废弃物分为可再生和不可再生两种。 | I51: TJ-net | J51: ТДж - HТС | K51: 太焦耳 - 净值
A52: 50 | B52: MUNWASTEN | C52: Municipal waste (non-renewable) | D52: Коммунальные отходы (Невозобновляемые) | E52: 城市废弃物（不可再生） | F52: Municipal waste consists of that portion of waste produced by households, industry, hospitals and the tertiary sector which is non-biological material collected by local authorities and incinerated at specific installations. The quantity of fuel used should be reported on a net calorific value basis. | G52: Укажите ту часть отходов, образовавшихся в домашних хозяйствах, промышленности, медицинских учреждениях и третичном секторе, которая является небиологическим материалом, собранным местными муниципальными властями и сожженным в специальных установках. Объем топлива следует указать на основе низшей теплотворной способности. | H52: 城市废弃物由为生产热力和/或电力而直接燃料的产品组成，包括及家庭、工厂、医院和第三产业生成的，由当地主管部门收集并在特定设施内焚烧的废弃物。城市废弃物分为可再生和不可再生两种。 | I52: TJ-net | J52: ТДж - HТС | K52: 太焦耳 - 净值
A53: 51 | B53: PRIMSBIO | C53: Primary solid biofuels | D53: Твердые виды биотоплива | E53: 初级固体生物燃料 | F53: Primary solid biofuels is defined as any plant matter used directly as fuel or converted into other forms before combustion. This covers a multitude of woody materials generated by industrial process or provided directly by forestry and agriculture (firewood, wood chips, bark, sawdust, shavings, chips, sulphite lyes also known as black liquor, animal materials/wastes and other solid biofuels). Note that for biofuels, only the amounts of biomass specifically used for energy purposes (a small part of the total) are included in the energy statistics. Therefore, the non-energy use of biomass is not taken into consideration and the quantities are null by definition. | G53: Включает органическое неископаемое сырье биологического происхождения, которое можно использовать в виде топлива для производства тепла или электричества. | H53: 初级固体生物燃料是指直接用作燃料或在转换成其他形式燃料后进行燃烧的任何植物物质。它包括通过工业加工生成的或林业和农业直接提供的大量木质材料（木柴、木片、树皮、锯屑、木屑、碎木片、亚硫酸盐碱液（也称为黑液）、动物材料/粪便和其他固体生物燃料）。请注意，只有明确用于能源用途的生物质数量（仅占总量的一小部分）才纳入生物燃料的能源统计。因此，用于非能源使用的生物质未予以考虑，而且用于非能源使用的生物质数量按照定义为零。 | I53: TJ-net | J53: ТДж - HТС | K53: 太焦耳 - 净值
A54: 52 | B54: BIOGASES | C54: Biogases | D54: Биогазы | E54: 生物质气 | F54: Biogases are gases arising from the anaerobic fermentation of biomass and the gasification of solid biomass (including biomass in wastes). The biogases from anaerobic fermentation are composed principally of methane and carbon dioxide and comprise landfill gas, sewage sludge gas and other biogases from anaerobic fermentation. Biogases can also be produced from thermal processes (by gasification or pyrolysis of biomass) and are mixtures containing hydrogen and carbon monoxide (usually known as syngas) along with other components. These gases may be further processed to modify their composition and can be further processed to produce substitute natural gas. Biogases are used mainly as a fuel but can be used as a chemical feedstock. | G54: Газы, состоящие в основном из метана и двуокиси углерода, производимые путем анаэробной ферментации биомассы или термических процессов. | H54: 生物质气是生物质厌氧发酵和固体生物质气化（包括废弃物中的生物质）生成的气体。厌氧发酵生成的生物质气主要由甲烷和二氧化碳构成，包括填埋气、污水污泥气和厌氧发酵产生的其他生物质气。生物质气还可通过热处理（生物质气化或热解）生成，是氢气和一氧化碳以及其他成分的混合物（又称作合成气）。这些气体可经过进一步加工，改变其成分；也可进一步加工，生产天然气替代品。生物质气主要用作燃料，但也可用作化学原料。 | I54: TJ-net | J54: ТДж - HТС | K54: 太焦耳 - 净值
A55: 53 | B55: BIOGASOL | C55: Biogasoline | D55: Биобензин | E55: 生物汽油 | F55: Biogasoline includes bioethanol (ethanol produced from biomass and/or the biodegradable fraction of waste), biomethanol (methanol produced from biomass and/or the biodegradable fraction of waste), bioETBE (ethyl-tertio-butyl-ether produced on the basis of bioethanol; the percentage by volume of bioETBE that is calculated as biofuel is 47%) and bioMTBE (methyl-tertio-butyl-ether produced on the basis of biomethanol: the percentage by volume of bioMTBE that is calculated as biofuel is 36%). Biogasoline includes the amounts that are blended into the gasoline - it does not include the total volume of gasoline into which the biogasoline is blended. | G55: эта категория включает биоэтанол (этанол полученный из биомассы и/или биоразлагаемой фракции отходов), биометанол (метанол полученный из биомассы и/или биоразлагаемой фракции отходов), биоЭТБЭ (этил-трет-бутиловый эфир, произведенный на основе биоэтанола: с процентным соотношением объема биоЭТБЭ, рассчитанного как биотопливо, равным 47%) и биоМТБЭ (метил-трет-бутиловый эфир, произведенный на основе биометанола: с процентным соотношением объема биоМТБЭ, рассчитанного как биотопливо, равным 36%). | H55: 生物汽油包括生物乙醇（利用生物质和/或废物中可降解的部分生成的乙醇）、生物甲醇（利用生物质和/或废物中可降解的部分生成的甲醇）、生物ETBE（基于生物乙醇生成的乙基叔丁基醚；作为生物燃料计算的生物ETBE占比为37%）和生物MTBE（基于生物甲醇生成的甲基叔丁基醚；作为生物燃料计算的生物MTBE的占比为22%）。生物汽油包括掺入汽油中的生物汽油数量，但不包括掺有生物汽油的汽油总量。 | I55: kt | J55: тыс. тонн | K55: 千吨
A56: 54 | B56: BIOJETKERO | C56: Bio jet kerosene | D56: Биокeросин для реактивных двигателей | E56: 生物航空煤油 | F56: Liquid biofuels derived from biomass and blended with or replacing jet kerosene. | G56: жидкое биотопливо, извлеченные из биомассы и смешанное с керосином для реактивных двигателей, либо заменяющее его. | H56: 由生物质生成的液体生物燃料，用作调合或替代航空煤油。 | I56: kt | J56: тыс. тонн | K56: 千吨
A57: 55 | B57: BIODIESEL | C57: Biodiesels | D57: Биодизель | E57: 生物柴油 | F57: Biodiesels includes biodiesel (a methyl-ester produced from vegetable or animal oil, of diesel quality), biodimethylether (dimethylether produced from biomass), Fischer-Tropsch (Fischer-Tropsch produced from biomass), cold pressed bio-oil (oil produced from oil seed through mechanical processing only) and all other liquid biofuels which are added to, blended with or used straight as transport diesel or in electricity and heat generation. Biodiesels includes the amounts that are blended into the diesel - it does not include the total volume of diesel into which the biodiesel is blended. | G57: эта категория включает биодизель (метиловый эфир, произведенный из растительного или животного масла, дизельного качества), биодиметиловый эфир (диметиловый эфир, произведенный из биомассы), Процесс Фишера-Тропша (его использование для биомассы), биомасло холодного отжима (масло, произведенное из семян путем только механической обработки). | H57: 生物柴油包括生物柴油（利用植物或动物油生成的、具有柴油品质的甲酯），生物二甲醚（利用生物质生成的二甲醚），费托（利用生物质生成的费托），冷榨生物油（仅包括使用油籽通过机械加工生成的油），以及掺入运输用柴油，或与之进行调配，或直接用作运输柴油或用于发电或发热的所有其他液体生物油。生物柴油包括掺入柴油中的生物柴油数量，但不包括掺有生物柴油的柴油总量。 | I57: kt | J57: тыс. тонн | K57: 千吨
A58: 56 | B58: OBIOLIQ | C58: Other liquid biofuels | D58: Прочие виды жидкого биотоплива | E58: 其他液体生物燃料 | F58: Other liquid biofuels includes liquid biofuels, used directly as fuel, not included in the definitions of biogasoline, biodiesel or bio jet kerosene and liquid biofuels consumption that cannot be reported under the right category because of missing information. | G58: эта категория включает жидкие виды биотоплива, используемые непосредственно в качестве топлива, которое не попадает под определение биобензина, биодизеля или биокеросина для реактивных двигателей, и потребление жидкого биотоплива, которое невозможно указать в правильной категории из-за нехватки информации. | H58: 其他液体生物燃料包括生物汽油或生物柴油项下未报送的直接用作燃料的的液体生物燃料。 | I58: kt | J58: тыс. тонн | K58: 千吨
A59: 57 | B59: RENEWNS | C59: Non-specified primary biofuels/ waste | D59: Неуказанные конкретно виды первичного биотоплива / отходов | E59: 未列明的初级生物燃料/废弃物 | F59: This item is used when the detailed breakdown for primary biofuels and waste is not available. | G59: Этот пункт используется в случае отсутствия подробной разбивки для видов первичного биотоплива и отходов. | H59: 该项在有关初级生物燃料和废弃物的具体明细信息无法获得的情况下使用。 | I59: TJ-net | J59: ТДж - HТС | K59: 太焦耳 - 净值
A60: 58 | B60: CHARCOAL | C60: Charcoal | D60: Древесный уголь | E60: 木碳 | F60: It covers the solid residue of the destructive distillation and pyrolysis of wood and other vegetal material. | G60: охватывает твердые отходы сухой перегонки и пиролиза древесины и прочих растительных материалов. | H60: 木炭包括木头和其他植物材料经干馏和高温分解后的固体残留物。 | I60: kt | J60: тыс. тонн | K60: 千吨
A61: 59 | C61: Electricity and heat | D61: Электричество и тепло | E61: 电力和热力
A62: 60 | B62: NUCLEAR | C62: Nuclear | D62: Атомная энергия | E62: 核能 | F62: Energy released by nuclear fission or nuclear fusion. | G62: Энергия, выработанная в результате ядерного распада или ядерного синтеза. | H62: 通过核裂变和核聚变释放的能量。 | I62: GWh | J62: ГВт.ч | K62: 吉瓦时
A63: 61 | B63: HYDRO | C63: Hydro | D63: Гидроэнергия | E63: 水能 | F63: Potential and kinetic energy of water converted into electricity in hydroelectric plants. Pumped storage from mixed and pure pumped storage plants should be included. | G63: Потенциальная и кинетическая энергия воды, преобразованная в электричество на гидроэлектростанциях. Гидроаккумулирующие электростанции смешанного и чистого типа следует включить в эту подгруппу. | H63: 水能是指在水电站转换成电力的水体潜能和动能。 | I63: GWh | J63: ГВт.ч | K63: 吉瓦时
A64: 62 | B64: GEOTHERM | C64: Geothermal | D64: Геотермальная энергия | E64: 地热能 | F64: Energy available as heat emitted from within the earth’s crust, usually in the form of hot water or steam. It is exploited at suitable sites: -for electricity generation using dry steam or high enthalpy brine after flashing -directly as heat for district heating, agriculture, etc. | G64: Энергия, доступная в виде тепла, выделенного из земной коры, как правило, в виде горячей воды или пара. Эта энергия эксплуатируется в подходящих для этого местах: i. для выработки электричества путем использования сухого пара или высокоэнтальпийного рассола после вскипания; ii. непосредственно как источник тепла для централизованного теплоснабжения, в сельском хозяйстве и т.д. | H64: 地热能是从地壳中释放出的热力，通常形式为热水或蒸汽。地热能在不同的场所具有不同的用途： • 使用干蒸汽或高焓盐水闪蒸发电 • 直接用作集中供热、农业等。 | I64: TJ | J64: ТДж | K64: 太焦耳
A65: 63 | B65: SOLARPV | C65: Solar photovoltaic | D65: Фотоэлементы | E65: 太阳能光伏能 | F65: Converts sunlight into electricity by the use of solar cells usually made of semi-conducting material which exposed to light will generate electricity. | G65: преобразуют солнечный свет в электричество с помощью солнечных панелей, изготовленных обычно из полупроводникового материала, который при воздействии света вырабатывает электричество. | H65: 光伏电池产生的电力。 | I65: GWh | J65: ГВт.ч | K65: 吉瓦时
A66: 64 | B66: SOLARTH | C66: Solar thermal | D66: Солнечная тепловая станция | E66: 太阳能热能 | F66: Solar thermal can consist of -solar thermal-electric plants; -equipment for the production of heat for sale (hot water or steam) Passive solar energy for the direct heating, cooling and lighting of dwellings or other buildings is not included. | G66: может состоять из: i. солнечных теплоэлектростанций; ii. оборудования для производства тепла на продажу (горячей воды или пара). | H66: 太阳能是指通过以下方式用于生产热水和发电的太阳辐射： • 采用以热虹吸类型为主的平板式太阳能集热器，提供家用热水或对游泳池进行季节性加热 • 太阳能热电厂 该项不包括用于住宅或其他楼宇直接供热、制冷和照明的被动式太阳能。 | I66: TJ | J66: ТДж | K66: 太焦耳
A67: 65 | B67: TIDE | C67: Tide/ wave/ ocean | D67: Энергия приливов /волн /океанских течений | E67: 潮汐/波浪/海洋能 | F67: Tide, wave and ocean represents the mechanical energy derived from tidal movement, wave motion or ocean current and exploited for electricity generation. | G67: Механическая энергия, получаемая от приливов, движения волн или океанических течений, используемая для выработки электричества. | H67: 潮汐、波浪和海洋能是指潮汐运动、波浪运动或海洋流产生的用于发电的能源。 | I67: GWh | J67: ГВт.ч | K67: 吉瓦时
A68: 66 | B68: WIND | C68: Wind | D68: Ветровая энергия | E68: 风能 | F68: Wind energy represents the kinetic energy of wind exploited for electricity generation in wind turbines. | G68: Кинетическая энергия ветра, используемая для выработки электричества в ветровых турбинах. | H68: 风能是指通过风力涡轮机用于发电的风动能。 | I68: GWh | J68: ГВт.ч | K68: 吉瓦时
A69: 67 | B69: HEATPUMP | C69: Heat pumps | D69: Теплонасосы | E69: 热泵 | F69: Heat pumps should include the inputs and outputs to heat pumps corresponding to the amount of heat that is sold to third parties. | G69: Укажите производство тепла теплонасосами только в тех случаях, когда тепло было продано третьим лицам (т.е. когда производство осуществляется в Секторе преобразования). | H69: 热泵应包括与出售给第三方的热量相对应的热泵输入和输出热量。 | I69: TJ | J69: ТДж | K69: 太焦耳
A70: 68 | B70: BOILER | C70: Electric boilers | D70: Электрические котлы | E70: 电热锅炉 | F70: Electric boilers should include the inputs and outputs to electric boilers corresponding to the amount of heat that is sold to third parties. | G70: Укажите производство тепла электрическими котлами, когда тепло было продано третьим лицам. Укажите электричество, потребленное такими котлами, в Таблице 3. | H70: 电热锅炉应包括与出售给第三方的热量相对应的电热锅炉输入和输出热量。 | I70: TJ | J70: ТДж | K70: 太焦耳
A71: 69 | B71: CHEMHEAT | C71: Heat from chemical sources | D71: Тепло, выделяемое химическими процессами | E71: 化学热力 | F71: Report only the heat originating from processes without input energy, such as a chemical reaction (e.g. the treatment of zinc oxide ore with hydrochloric acid). Note that waste heat originating from energy driven processes is not considered as a primary energy source. Therefore, it should be reported as heat produced from the corresponding fuel. | G71: Укажите только тепло, выделяемое химическими процессами без расхода энергии, как например химическая реакция (отработка руды окиси цинка хлористоводородной кислотой). Следует учесть, что отходящее тепло энергетических процессов, не рассматривается как первичный источник энергии. Следовательно, оно должно быть учтено как тепло, выделяемое соответствующим топливом. | H71: 化学热力是指通过化学反应（如氧化锌矿石与盐酸的反应）等未输入能源的过程产生的热力。请注意，能源驱动过程中产生的废热不被视为初级能源，而列入相应燃料产生的热力。 | I71: TJ | J71: ТДж | K71: 太焦耳
A72: 70 | B72: OTHER | C72: Other sources | D72: Прочие источники | E72: 其他能源 | F72: Report electricity production from sources other than those listed, e.g. from fuel cells. | G72: Укажите производство электричества из источников, не упомянутых выше, например из топливных элементов. Опишите, пожалуйста, детально эти источники на «Странице для заметок». | H72: 其他能源包括未被列入其他项目的产量，例如燃料电池。 | I72: GWh | J72: ГВт.ч | K72: 吉瓦时
A73: 71 | B73: ELECTR | C73: Electricity | D73: Электричество | E73: 电力 | F73: Gross electricity production is measured at the terminals of all alternator sets in a station; it therefore includes the energy taken by station auxiliaries and losses in transformers that are considered integral parts of the station. The difference between gross and net production is generally estimated as 7% for conventional thermal stations, 1% for hydro stations, and 6% for nuclear, geothermal and solar stations. Production in hydro stations includes production from pumped storage plants. | G73: Валовое производство электричества – это сумма электрической энергии, произведенной всеми видами соответствующих генерирующих установок (включая гидроаккумулирующие), измеряемая на выходных клеммах основных генераторов. | H73: 电力毛产量以发电站所有交流发电机组终端计量的数据为准；因此，电力毛产量包括电站辅助设备使用的能源，以及视为发电站必要组成部分的变压器损耗的能源。电力毛产量和电力净产量之间的差异，常规热电站一般为7%，水电站为1%，核电站、地热电站和太阳能电站为6%。水电站的电力产量包括抽水蓄能电厂的电力产量。 | I73: GWh | J73: ГВт.ч | K73: 吉瓦时
A74: 72 | B74: HEAT | C74: Heat | D74: Тепло | E74: 热力 | F74: Heat production includes all heat produced by main activity producer CHP and heat plants, as well as heat sold by autoproducer CHP and heat plants to third parties. Fuels used to produce quantities of heat for sale are included in the transformation processes under the rows CHP plants and Heat plants. The use of fuels for heat which is not sold is included under the sectors in which the fuel use occurs. | G74: Валовое производство тепла – это общий объем тепла, произведенного установками, включающий тепло, использованное вспомогательным оборудованием установок, которое использует горячую жидкость (отопление помещения, нагрев жидкого топлива и т.д.); потери при обмене теплом между установкой и сетью, а также тепло химических процессов, использованное в виде первичной энергии. | H74: 热力产量包括公用电联产厂和公用热力厂生产的全部热力，以及自用热电联产厂和自用热力厂向第三方出售的热力。生产进行出售的热力所使用的燃料列入热电联产厂和热力厂行下的转换过程项目。生产不进行出售的热力所使用的燃料，列入使用该燃料的相关部门项下。 | I74: TJ | J74: ТДж | K74: 太焦耳
A75: 73 | B75: HEATNS | C75: Heat output from non-specified combustible fuels | D75: Производство тепла из неуказанных конкретно видов горючего топлива | E75: 未列明的易燃燃料产生的热力 | F75: This item is only used if the detailed breakdown is not available. | G75: Этот пункт используется только в случае отсутствия подробной разбивки. | H75: 该项仅在具体明细信息无法获得的情况下使用。 | I75: TJ | J75: ТДж | K75: 太焦耳
A76: 74
A77: 75

Sheet Definitions_FlowLang (hidden)
C1: Flow Language | F1: Definition
C2: English | D2: Pусский | E2: 中文 | F2: =C2 -> English | G2: =D2 -> Pусский | H2: =E2 -> 中文
A3: 1 | C3: FLOW DEFINITIONS | D3: ОПРЕДЕЛЕНИЯ ПОТОКА | E3: 流量定义
A4: 2 | C4: Supply | D4: Поставка | E4: 供应
A5: 3 | B5: INDPROD | C5: Production | D5: Производство | E5: 产量 | F5: In the balances, production refers to the quantities of fuels extracted or produced, calculated after any operation for removal of inert matter or impurities (e.g. sulphur from natural gas). In the energy statistics, production of secondary products is also included. Production of secondary oil products represents the gross refinery output. Secondary coal products and gases represent the output from coke ovens, gas works, blast furnaces and other transformation processes. | G5: [missing_Russian] | H5: 在平衡表中，产量系指提炼、生产或计算的经去除非活性物质或杂质（例如从天然气中去除硫）后的燃料数量。在能源统计中，次级产品的产量也包含在内。石油次级产品的产量为炼油毛产量。煤次级产品及煤气的产量为焦炉、煤气厂、高炉和其他转换过程的产量。
A6: 4 | C6: From other sources | D6: Из других источников | E6: 其他能源 | F6: All inputs of origin other than primary energy sources explicitly recognised in the tables are listed under inputs from other sources, e.g. under crude oil: inputs of origin other than crude oil and NGL such as hydrogen, synthetic crude oil (including mineral oil extracted from bituminous minerals such as shales, bituminous sand, etc.); under additives: benzol, alcohol and methanol produced from natural gas; under refinery feedstocks: backflows from the petrochemical industry used as refinery feedstocks; under hard coal: recovered slurries, middlings, recuperated coal dust and other low-grade coal products that cannot be classified according to type of coal from which they are obtained; under gas works gas: natural gas, refinery gas, and LPG, that are treated or mixed in gas works (i.e. gas works gas produced from sources other than coal). | G6: [missing_Russian] | H6: 表格中明确认可的初级能源以外的所有原始能源输入量均列入其他能源输入量项下，例如：在原油项下：原油和天然气凝析液以外的氢、合成原油（包括从页岩、沥青砂等沥青矿物中开采的矿物油）等原始能源输入量；在添加剂项下：由天然气生成的苯、乙醇、甲醇；在炼油厂原料项下：从石化行业回流的用作炼油厂原料的产品；在硬煤项下：回收的泥煤浆、中煤、回收的煤粉尘，以及无法根据所属煤的种类进行归类的其他低级煤产品；在煤气厂煤气项下：在煤气厂进行处理或混合的天然气、炼厂气和液化石油气（即，煤以外的其他能源生成的煤气厂煤气）。
A7: 5 | B7: OSCOAL | C7: From other sources - coal | D7: Из других источников – уголь | E7: [missing_Chinese]
A8: 6 | B8: OSNATGAS | C8: From other sources - natural gas | D8: Из других источников – природный газ | E8: [missing_Chinese]
A9: 7 | B9: OSOIL | C9: From other sources - oil products | D9: Из других источников – нефтепродукты | E9: [missing_Chinese]
A10: 8 | B10: OSRENEW | C10: From other sources - renewables | D10: Из других источников – ВИЭ | E10: [missing_Chinese]
A11: 9 | B11: OSNONSPEC | C11: From other sources - non-specified | D11: Из других источников – не указано | E11: [missing_Chinese]
A12: 10 | B12: IMPORTS | C12: Imports | D12: Импорт | E12: 进口量 | F12: Comprise amounts having crossed the national territorial boundaries of the country whether or not customs clearance has taken place. For coal: Imports comprise the amount of fuels obtained from other countries, whether or not there is an economic or customs union between the relevant countries. Coal in transit should not be included. For oil and natural gas: Quantities of crude oil and oil products imported under processing agreements (i.e. refining on account) are included. Quantities of oil in transit are excluded. Crude oil, NGL and natural gas are reported as coming from the country of origin; refinery feedstocks and oil products are reported as coming from the country of last consignment. For electricity: Amounts are considered as imported when they have crossed the national territorial boundaries of the country. If electricity is “wheeled” or transited through a country, the amount is shown as both an import and an export. | G12: [missing_Russian] | H12: 包括已跨过相关国家国境的产品数量，无论是否完成清关。对于煤而言：进口量包括从其他国家取得的燃料数量，无论相关国家之间是否有经济或关税联盟关系；运输途中的煤不包括在内。对于石油和天然气而言：进口量包括根据加工协议（即先精炼后付款）进口的原油和石油产品；运输途中的石油数量不包括在内。原油、天然气凝析液和天然气应按照其原产国进行报告；炼油厂原料和石油产品应按照最后装运国进行报告。对于电力而言：已跨过相关国家国境的电量视为进口量。“横穿”或途径某一国家边境的电量同时列示为进口量和出口量。
A13: 11 | B13: EXPORTS | C13: Exports | D13: Экспорт | E13: 出口量 | F13: Comprise amounts having crossed the national territorial boundaries of the country whether or not customs clearance has taken place. ● For coal: Exports comprise the amount of fuels supplied to other countries, whether or not there is an economic or customs union between the relevant countries. Coal in transit should not be included. ● For oil and natural gas: Quantities of crude oil and oil products exported under processing agreements (i.e. refining on account) are included. Re-exports of oil imported for processing within bonded areas are shown as an export of product from the processing country to the final destination. ● For electricity: Amounts are considered as exported when they have crossed the national territorial boundaries of the country. If electricity is “wheeled” or transited through a country, the amount is shown as both an import and an export. | G13: [missing_Russian] | H13: 包括已跨过相关国家国境的产品数量，无论是否完成清关。对于煤而言：出口量包括向其他国家供应的燃料数量，无论相关国家之间是否有经济或关税联盟关系；运输途中的煤不应包括在内。对于石油和天然气而言：出口量包括根据加工协议（即先精炼后付款）出口的原油和石油产品；保税区进口加工的石油的再出口量，列示为从加工国向最终目的国的产品出口量。对于电力而言：已跨过相关国家国境的电量视为出口量。“横穿”或途径某一国家边境的电量同时列示为进口量和出口量。
A14: 12 | B14: MARBUNK | C14: International marine bunkers | D14: международный бункер водных перевозок | E14: 国际海运船舶燃料 | F14: Report the quantities of oil delivered to ships of all flags that are engaged in international navigation. The international navigation may take place at sea, on inland lakes and waterways, and in coastal waters. Exclude consumption by ships engaged in domestic navigation (see domestic navigation). The domestic/international split should be determined on the basis of port of departure and port of arrival, and not by the flag or nationality of the ship. Exclude consumption by fishing vessels (see Fishing – Other sectors) and consumption by military forces (see Not elsewhere specified – Other sectors). | G14: Укажите объём нефти поставленный на судна всех флагов участвующие в международном судоходстве. Международное судоходство может иметь место в море, на озёрах и речных путях, а также на прибрежных водах. Исключите потребление судов, которые участвуют в судоходстве внутри страны (см. местное судоходство). Разделение международное\местное судоходство производится ссылаясь на информацию о порту отправления и порту прибытия, а не на флаг под которым плавает данное судно или его страну происхождения. Исключите потребление рыболовными суднами (см. рыболовство – прочие секторы) и потребление военно-морскими силами (см. неуказанные в другом месте – прочие секторы). | H14: 包括向从事国际航运的悬挂任何国旗的船舶供应的燃料数量。国际航运可包括海洋、内陆湖泊和水道及沿海运输。从事国内航运的船舶所消费的燃料量不包括在内。国内/国际航运的区分依据是发运港和目的港，而非船舶悬挂的国旗或船籍。渔船和军队消费的燃料量也不包括在内。参见国内航运、渔业和其他未列明的产业。
A15: 13 | B15: AVBUNK | C15: International aviation bunkers | D15: международный бункер авиационных перевозок | E15: 国际航空燃料 | F15: Includes deliveries of aviation fuels to aircraft for international aviation. Fuels used by airlines for their road vehicles are excluded. The domestic/international split should be determined on the basis of departure and landing locations and not by the nationality of the airline. For many countries this incorrectly excludes fuel used by domestically owned carriers for their international departures; | G15: Укажите объёмы авиационных топлив поставленных для воздушных судов в рамках международной авиационной бункеровки (‘известной также как Международная Авиационная Бункеровка’). Разделение международная\местная авиация должно производиться ссылаясь на информацию о месте отправки и посадки, а не на основе страны происхождения авиакомпании. Исключите топлива использованные авиакомпаниями для дорожного транспорта (см. Прочие, неуказанные в другом месте – Транспортный сектор) и военное использование авиационных топлив (см. Прочие, неуказанные в другом месте - Прочие секторы). | H15: 包括向进行国际航空飞行的飞机供应的航空燃料数量，但不包括航空公司陆地车辆使用的燃料。国内/国际航空飞行的区分依据是出发地和抵达地，而非航空公司的国籍。许多国家未将国内航空公司在国际飞行中使用的燃料纳入在内，这一做法是不正确的。
A16: 14 | B16: STOCKCHA | C16: Stock changes | D16: Изменение остатков | E16: 库存变化 | F16: Reflects the difference between opening stock levels on the first day of the year and closing levels on the last day of the year of stocks on national territory held by producers, importers, energy transformation industries and large consumers. A stock build is shown as a negative number, and a stock draw as a positive number. | G16: Изменения запасов должны отражать разницу между уровнем запасов в начале периода и в конце периода для запасов находящихся на национальной территории. Накопление запасов имеет отрицательный знак, а расходование запасов - положительный. (Следует заметить, что изменение запасов, которое указывается в ежемесячном вопроснике по нефти (ЕВН), является разницей между конечным и начальным уровнем запасов.) | H16: 对于生厂商、进口商、能源转换行业和大型消费单位持有的境内库存而言，库存变化是指在某年度第一天的期初库存量与该年度最后一天的期末库存水平之间的差额。库存增加记为负值，库存减少记为正值。
A17: 15 | C17: Domestic supply | D17: Внутреннее снабжение | E17: 国内供应量 | F17: Domestic supply is defined as production + inputs from other sources + imports - exports - international marine bunkers - international aviation bunkers ± stock changes. | G17: [missing_Russian] | H17: 国内供应量的计算公式为：产量 + 其他能源输入量 + 进口量 - 出口量 – 国际海运船舶燃料 – 国际航空燃料 ± 库存变化。
A18: 16 | B18: DOMSUP | C18: Total energy supply (TES) | D18: ОБЩЕЕ ПРЕДЛОЖЕНИЕ ПЕРВИЧНОЙ ЭНЕРГИИ (ОППЭ) | E18: 初级能源供应总量 | F18: Total energy supply (TES) is made up of production + imports - exports - international marine bunkers - international aviation bunkers ± stock changes. | G18: [missing_Russian] | H18: 初级能源供应总量（TPES）的计算公式为：产量 + 进口量 - 出口量 – 国际海运船舶燃料 – 国际航空燃料 ± 库存变化。
A19: 17 | B19: TRANSFER | C19: Transfers | D19: Передачи | E19: 转换产出量 | F19: Transfers comprise interproduct transfers, products transferred and recycled products. Interproduct transfers result from reclassification of products either because their specification has changed or because they are blended into another product, e.g. kerosene may be reclassified as gasoil after blending with the latter in order to meet its winter diesel specification. The net balance of interproduct transfers is zero. Products transferred is intended for oil products imported for further processing in refineries. For example, fuel oil imported for upgrading in a refinery is transferred to the feedstocks category. Recycled products are finished products which pass a second time through the marketing network, after having been once delivered to final consumers (e.g. used lubricants which are reprocessed). | G19: [missing_Russian] | H19: 转换产出量包括产品间转换、转换产品和再生产品。产品间转换是因产品的规格发生变化或者掺入其他产品而重新分类；例如，煤油经与轻柴油调合后符合冬用柴油的规格的，可被重新归类为轻柴油。产品间转换的净差额为零。转换产品旨在使进口石油产品在炼油厂进行进一步的加工；例如，为了在炼油厂进行升级而进口的燃料油，被转换至原料类别。再生产品是指在首次交付给最终消费者使用后，通过营销网络再次交付给最终消费者使用的成品（例如，经重新处理的废润滑剂）。
A20: 18 | B20: STATDIFF | C20: Statistical differences | D20: Статистическое расхождение | E20: 统计差异 | F20: Statistical difference is defined as deliveries to final consumption + use for transformation processes and consumption by energy industry own use + losses – domestic supply – transfers. Statistical differences arise because the data for the individual components of supply are often derived from different data sources by the national administration. Furthermore, the inclusion of changes in some large consumers' stocks in the supply part of the balance introduces distortions which also contribute to the statistical differences. | G20: Это разница между общим потреблением (расчетным) и общим потреблением (наблюдаемым). | H20: 统计差异的计算公式为：终端消费的输送量 + 转换过程的使用量和能源行业自用消费量 + 损耗量 – 国内供应量 – 转换产出量。统计差异产生的原因在于供应量各组成部分的数据通常是由各国管理部门通过不同数据渠道获得。此外，大型消费单位的库存变化列入平衡表中的供应部分引起的数据失真，也会导致统计差异。
A21: 19 | C21: Transformation processes | D21: Сектор преобразования - всего | E21: 转换过程
A22: 20 | B22: TOTTRANF | C22: Transformation processes | D22: Сектор преобразования - всего | E22: 转换过程 | F22: Transformation processes comprises the conversion of primary forms of energy to secondary and further transformation (e.g. coking coal to coke, crude oil to oil products, and fuel oil to electricity). | G22: Укажите объемы топлива, использованного для первичного или вторичного преобразования энергии (например, угля в электричество) или для преобразования полученных энергетических продуктов (например, коксующегося угля в кокс). Сектор преобразования разделен на следующие подсекторы: | H22: 转换过程包括将初级能源转换成次级能源，以及其他进一步的转换（例如：焦煤到焦炭转换，原油到石油产品的转换，以及燃料油到电力的转换）。
A23: 21 | B23: MAINELEC | C23: Main activity electricity plants | D23: Электростанции производителей энергии (основной вид деятельности) | E23: 公用发电厂 | F23: Refers to plants which are designed to produce electricity only. If one or more units of the plant is a CHP unit (and the inputs and outputs can not be distinguished on a unit basis) then the whole plant is designated as a CHP plant. Main activity producers generate electricity for sale to third parties, as their primary activity. They may be privately or publicly owned. Note that the sale need not take place through the public grid. | G23: Укажите объем топлива, потребленного для производства электричества. Топливо, потребленное электростанциями, имеющими хотя бы один блок ТЭЦ, следует указать в категории «ТЭЦ – производители по основному виду деятельности». | H23: 是指仅进行电力生产的工厂。如果发电厂的一个或数个机组为热电联产机组（且机组的输入和输出电量无法逐个进行区分），则整个发电厂被称为热电联产厂。公用发电厂的主营业务是生产电力向第三方出售。公用发电厂可以为私营公司，也可以为公众公司。请注意，电力出售并非必须通过公共电网进行。
A24: 22 | B24: AUTOELEC | C24: Autoproducer electricity plants | D24: Электростанции предприятий, производящих энергию для собственных нужд | E24: 自用发电厂 | F24: Refers to plants which are designed to produce electricity only. If one or more units of the plant is a CHP unit (and the inputs and outputs can not be distinguished on a unit basis) then the whole plant is designated as a CHP plant. Autoproducer undertakings generate electricity wholly or partly for their own use as an activity which supports their primary activity. They may be privately or publicly owned. | G24: Укажите объем топлива, потребленного для производства электричества. Топливо, потребленное станциями, имеющими хотя бы один блок ТЭЦ, следует указать в подгруппе «ТЭЦ – производители для собственных нужд». | H24: 是指仅进行电力生产的工厂。如果发电厂的一个或数个机组为热电联产机组（且机组的输入和输出电量无法逐个进行区分），则整个发电厂被称为热电联产厂。作为其主营业务的一项辅助业务，自用发电厂将生产的电力全部或部分用于其自身使用。自用发电厂可以为私营公司，也可以为公众公司。
A25: 23 | B25: MAINCHP | C25: Main activity producer CHP plants | D25: ТЭЦ производителей энергии (основной вид деятельности) | E25: 公用热电联产厂 | F25: Refers to plants which are designed to produce both heat and electricity (sometimes referred to as co-generation power stations). If possible, fuel inputs and electricity/‌heat outputs are on a unit basis rather than on a plant basis. However, if data are not available on a unit basis, the convention for defining a CHP plant noted above should be adopted. Main activity producers generate electricity and/or heat for sale to third parties, as their primary activity. They may be privately or publicly owned. Note that the sale need not take place through the public grid. | G25: Укажите объем топлива, потребленного для производства электричества и тепла. | H25: 是指同时生产热力和电力的工厂（有时也称作热电站）。在可能的情况下，燃料输入量和电力/热力输出量按机组而非工厂进行计算。但是如果无法获得基于机组的数据，则采用上文所述的确定热电联产厂的惯例。公用热电联产厂的主营业务是生产电力和/或热力向第三方出售。公用热电联产厂可以为私营公司，也可以为公众公司。请注意，电力/热力出售并非必须通过公共电网/公共管网进行。
A26: 24 | B26: AUTOCHP | C26: Autoproducer CHP plants | D26: ТЭЦ предприятий, производящих энергию для собственных нужд | E26: 自用热电联产厂 | F26: Refers to plants which are designed to produce both heat and electricity (sometimes referred to as co-generation power stations). If possible, fuel inputs and electricity/heat outputs are on a unit basis rather than on a plant basis. However, if data are not available on a unit basis, the convention for defining a CHP plant noted above should be adopted. Note that for autoproducer CHP plants, all fuel inputs to electricity production are taken into account, while only the part of fuel inputs to heat sold is shown. Fuel inputs for the production of heat consumed within the autoproducer's establishment are not included here but are included with figures for the final consumption of fuels in the appropriate consuming sector. Autoproducer undertakings generate electricity and/or heat, wholly or partly for their own use as an activity which supports their primary activity. They may be privately or publicly owned. | G26: Укажите объем топлива, соответствующий объему произведенного электричества и проданного тепла. | H26: 指同时生产热和电的工厂（有时也称作热电站）。在可能的情况下，燃料输入量和电力/热力输出量按机组而非工厂进行计算。但是如果无法获得基于机组的数据，则采用上文所述的确定热电联产厂的惯例。请注意，对于自用热电联产厂，虽然用于电力生产的燃料输入量全部纳入考虑，但只有用于生产所出售热力的燃料输入量才予以列示。自用热电联产厂为生产在其设施内消费的热力所用的燃料输入量不包括本项内，而列入相应消费部门的燃料终端消费量数据。作为其主营业务的一项辅助业务，自用热电联产厂将生产的电力和/或热力全部或部分用于其自身使用。自用热电联产厂可以为私营公司，也可以为公众公司。
A27: 25 | B27: MAINHEAT | C27: Main activity producer heat plants | D27: Теплоцентрали производителей энергии (основной вид деятельности) | E27: 公用热力厂 | F27: Refers to plants (including heat pumps and electric boilers) designed to produce heat only and who sell heat to a third party (e.g. residential, commercial or industrial consumers) under the provisions of a contract. Main activity producers generate heat for sale to third parties, as their primary activity. They may be privately or publicly owned. Note that the sale need not take place through the public grid. | G27: Укажите объем топлива, потребленного для производства тепла. | H27: 指仅生产热力，并按照合同的规定将热力出售给第三方（例如：住宅、商业或工业消费者）的工厂（包括热泵和电热锅炉）。公用热力厂的主营业务是生产热力向第三方出售。公用热力厂可以为私营公司，也可以为公众公司。请注意，热力出售并非必须通过公共管网进行。
A28: 26 | B28: AUTOHEAT | C28: Autoproducer heat plants | D28: Теплоцентрали предприятий, производящих энергию для собственных нужд | E28: 自用热力厂 | F28: Refers to plants (including heat pumps and electric boilers) designed to produce heat only and who sell heat to a third party (e.g. residential, commercial or industrial consumers) under the provisions of a contract. Autoproducer undertakings generate heat, wholly or partly for their own use as an activity which supports their primary activity. They may be privately or publicly owned. | G28: Укажите объем топлива, соответствующий объему проданного тепла. | H28: 是指仅生产热力，并按照合同的规定将热力出售给第三方（例如：住宅、商业或工业消费者）的工厂（包括热泵和电热锅炉）。作为其主营业务的一项辅助业务，自用热力厂将生产的热力全部或部分用于其自身使用。自用热力厂可以为私营公司，也可以为公众公司。
A29: 27 | B29: THEAT | C29: Heat pumps | D29: Потребление в теплонасосах | E29: 热泵 | F29: Includes heat produced by heat pumps in the transformation sector. Heat pumps that are operated within the residential sector where the heat is not sold are not considered a transformation process and are not included here – the electricity consumption would appear as residential use. | G29: Укажите производство тепла теплонасосами только в тех случаях, когда тепло было продано третьим лицам (т.е. когда производство осуществляется в Секторе преобразования). | H29: 包括转换部门热泵生产的热力。在居民生活部门，生产不出售热力的热泵，不属于转换过程，也不包含在此项内 -电力消费量列示为居民生活使用量。
A30: 28 | B30: TBOILER | C30: Electric boilers | D30: Потребление в электрокотлах | E30: 电热锅炉 | F30: Includes electric boilers used to produce heat. | G30: Укажите производство тепла электрическими котлами, когда тепло было продано третьим лицам. | H30: 包括用于生产热力的电热锅炉。
A31: 29 | B31: TELE | C31: Chemical heat for electricity production | D31: Теплота из химических процессов | E31: 用于电力生产的化学热力 | F31: Report only the heat originating from processes without input energy, such as a chemical reaction (e.g. the treatment of zinc oxide ore with hydrochloric acid). Note that waste heat originating from energy driven processes is not considered as a primary energy source. Therefore, it should be reported as heat produced from the corresponding fuel. | G31: Укажите только тепло, выделяемое химическими процессами без расхода энергии, как например химическая реакция (отработка руды окиси цинка хлористоводородной кислотой). Следует учесть, что отходящее тепло энергетических процессов, не рассматривается как первичный источник энергии. Следовательно, оно должно быть учтено как тепло, выделяемое соответствующим топливом. | H31: 包括用于发电的化学过程产生的热力。
A32: 30 | B32: TPATFUEL | C32: Patent fuel plants | D32: Агломерационные установки | E32: 专利燃料厂 | F32: Includes the manufacture of patent fuels. | G32: Укажите объем каменного угля, использованного для производства каменноугольных брикетов. | H32: 包括专利燃料的生产。
A33: 31 | B33: TCOKEOVS | C33: Coke ovens | D33: Коксовые печи | E33: 焦炉 | F33: Includes the manufacture of coke and coke oven gas. | G33: Укажите объем коксующегося угля, угольной мелочи и лигнита или полубитуминозного угля, используемого в коксовых печах. Угольные продукты, используемые для отопления и работы устройств в эту категорию включать не следует, но указать как потребление в Секторе энергетики. | H33: 包括焦炭和焦炉煤气的生产。
A34: 32 | B34: TGASWKS | C34: Gas works | D34: Газовые заводы | E34: 煤气厂 | F34: Includes the manufacture of town gas. | G34: Укажите объем угля, угольных продуктов, коксового газа и заменителя природного газа, используемого для производства газа на газовом заводе и на станциях газификации угля. Продукты, используемые для отопления и работы устройств в эту категорию включать не следует, но указать как потребление в Секторе энергетики. | H34: 包括民用煤气的生产。
A35: 33 | B35: TBLASTFUR | C35: Blast furnaces | D35: Доменные печи | E35: 高炉 | F35: Includes the production of recovered gases (e.g. blast furnace gas and oxygen steel furnace gas). The production of pig-iron from iron ore in blast furnaces uses fuels for supporting the blast furnace charge and providing heat and carbon for the reduction of the iron ore. Accounting for the calorific content of the fuels entering the process is a complex matter as transformation (into blast furnace gas) and consumption (heat of combustion) occur simultaneously. Some carbon is also retained in the pigiron; almost all of this reappears later in the oxygen steel furnace gas (or converter gas) when the pig-iron is converted to steel. In the 1992/1993 annual questionnaires, Member Countries were asked for the first time to report in transformation processes the quantities of all fuels (e.g. pulverised coal injection [PCI] coal, coke oven coke, natural gas and oil) entering blast furnaces and the quantity of blast furnace gas and oxygen steel furnace gas produced. The Secretariat then needed to split these inputs into the transformation and consumption components. The transformation component is shown in the row blast furnaces in the column appropriate for the fuel, and the consumption component is shown in the row iron and steel, in the column appropriate for the fuel. The Secretariat decided to assume a transformation efficiency such that the carbon input into the blast furnaces should equal the carbon output. This is roughly equivalent to assuming an energy transformation efficiency of 40%. | G35: Укажите фактические объемы коксующегося угля и/или битуминозного угля (в основном обозначаемого как пульверизованное пылеугольное топливо – ППТ) и кокса, преобразованного в доменных печах. Объемы, использованные для отопления и работы доменных печей (например, доменный газ) в эту категорию включать не следует, но указать как потребление в Секторе энергетики. | H35: 包括回收煤气的生产（例如高炉煤气和吹氧炼钢炉气）。使用铁矿石通过高炉生产生铁时，采用燃料支撑高炉炉料，并提供铁矿石还原所需的热力和炭。计算此过程中所用燃料的热焓是非常复杂的，因为转换（高炉煤气转换）和消耗（燃烧热）同时发生。某些碳还留存在生铁中。随后在生铁转换成钢时，吹氧炼钢炉气（或转化炉气）几乎会再次发生所有这些现象。在1992/1993年度的调查问卷中，成员国首次被要求报送转换过程中高炉使用的全部燃料数量（例如：喷煤[PCI]、煤、焦炉焦炭、天然气和石油），以及所产生的高炉煤气和吹氧炼钢炉气数量。秘书处然后需将这些输入量分成转换和消费两部分。转换部分列示在相应燃料列的高炉行；消费部分则列示在相应燃料列的钢铁行。秘书处决定采用一项转换效率，以便高炉炭输入量等于炭输出量，根据粗略计算，该能源转换效率为40%。
A36: 34 | B36: TPETCHEM | C36: Petrochemical plants | D36: Нефтехимические заводы | E36: 石化厂 | F36: Covers backflows returned from the petrochemical industry. Note that backflows from oil products that are used for non-energy purposes (i.e. white spirit and lubricants) are not included here, but in non-energy use. | G36: [missing_Russian] | H36: 包括从石化行业返回的回流产品。请注意，用于非能源使用的石油产品回流（例如工业用白油和润滑油）不包含在内，而列入非能源使用项下。
A37: 35 | B37: TBKB | C37: BKB / peat briquette plants | D37: Установки по производству брикетов | E37: 褐煤型煤/泥煤砖厂 | F37: Includes the use of fuels for the manufacture of BKB and peat briquettes. | G37: Укажите объем лигнита или полубитуминозного угля, используемого для производства буроугольных брикетов (БУБ), объем торфа для производства торфяных брикетов (ТБ) и прочих продуктов переработки торфа. | H37: 包括为生产褐煤型煤和泥煤砖而使用的燃料。
A38: 36 | B38: TREFINER | C38: Oil refineries | D38: Нефтеперерабатывающие заводы | E38: 炼油厂 | F38: Includes the manufacture of finished oil products. | G38: Загрузка нефтеперерабатывающих заводов определяется как общий объём нефти поступившей в нефтеперерабатывающий процесс. | H38: 包括成品石油产品的生产。
A39: 37 | B39: TCOALLIQ | C39: Coal liquefaction plants | D39: Сжижение угля | E39: 煤液化厂 | F39: Includes coal, oil and tar sands used to produce synthetic oil. | G39: Укажите объемы угля, горючих сланцев и битуминозных песков, используемых для производства синтетической нефти. Сланцевое масло и прочие продукты, полученные в процессе сжижения следует указывать в «Годовом вопроснике по нефти». | H39: 包括用于生产合成油的煤、石油和焦油砂。
A40: 38 | B40: TGTL | C40: Gas-to-liquids (GTL) plants | D40: Газ-в-жидкость | E40: 气转液厂 | F40: Includes natural gas used as feedstock for the conversion to liquids, e.g. the quantities of fuel entering the methanol product process for transformation into methanol. | G40: Укажите объем природного газа, использованного в качестве сырья, для преобразования в жидкость, например объем топлива, поступающего в процессе производства метанола для преобразования в метанол. | H40: 包括在液化过程中作为原料使用的天然气，例如在甲醇产品转换过程中使用的燃料数量。
A41: 39 | B41: TBLENDGAS | C41: For blended natural gas | D41: Для смешанного природного газа | E41: 天然气调合: | F41: Includes other gases that are blended with natural gas. | G41: Укажите объемы, смешанных с природным газом. | H41: 包括与天然气进行调合的其他气体。
A42: 40 | B42: TCHARCOAL | C42: Charcoal production plants | D42: Устан. по произв. древесного угля | E42: 木炭生产厂 | F42: Includes the transformation of solid biofuels into charcoal. | G42: Укажите объемы древесины, использованной для производства древесного угля. | H42: 包括转换成木炭的固体生物燃料。
A43: 41 | B43: TNONSPEC | C43: Non-specified (transformation) | D43: Прочее поставки | E43: 未列明的产业（转换） | F43: Includes other non-specified transformation. | G43: Данные следует указывать здесь только в крайнем случае. | H43: 包括其他未列明的转换。
A44: 42 | C44: Energy industry own use and losses | D44: Собственное использование сектором энергетики и потери | E44: 能源行业自用和损耗
A45: 43 | B45: TOTENGY | C45: Energy industry own use | D45: Собственное использование сектором энергетики | E45: 能源行业自用 | F45: Energy industry own use covers the amount of fuels used by the energy producing industries (e.g. for heating, lighting and operation of all equipment used in the extraction process, for traction and for distribution). It includes energy consumed by energy industries for heating, pumping, traction and lighting purposes [ISIC Rev. 4 Divisions 05, 06, 19 and 35, Group 091 and Classes 0892 and 0721]. | G45: Укажите топливо, потребляемое Сектором энергетики для добычи полезных ископаемых (разработки угольных месторождений, добычи нефти и газа) или работы установок, обеспечивающих процессы преобразования. Например, топливо, используемое для отопления, освещения или работы насосов, или компрессоров, или потребленное для энергетических целей в печах. Сектор энергетики охватывает в классификаторе ISIC разделы 05, 06, 19, 35, группу 091, классы 0892 и 0721 (в классификаторе NACE : разделы 05, 06, 19 и 35, группу 09.1, классы 08.92 и 07.21). | H45: 能源行业自用包括能源生产行业（例如：为了加热、照明、开采过程中所用各项设备的运作、及牵引、配送之目的）使用的燃料数量，还包括能源行业为加热、抽水、牵引和照明之目的消费的能源【《国际标准行业分类》修订本第4版第05、06、19和35部分，第091组和第0892 和0721类】。
A46: 44 | B46: EMINES | C46: Coal mines | D46: Угольные шахты | E46: 煤矿 | F46: Represents the energy which is used directly within the coal industry for hard coal and lignite mining. It excludes coal burned in pithead power stations (included under electricity plants in the transformation sector) and free allocations to miners and their families (considered as part of household consumption and therefore included under residential). | G46: Укажите топливо, потребленное в качестве энергии для поддержки добычи и подготовки угля в угольной промышленности. Уголь, сожженный в шахтных электростанциях, следует указывать в Секторе преобразования. | H46: 指在煤行业内直接用于开采硬煤和褐煤的能源，不包括在坑口电站燃烧的煤（此类煤列入转换部门发电厂项下）及无偿分配给矿工及其家属的煤（此类煤视为家庭消费的一部分，因此列入居民生活项下）。
A47: 45 | B47: EOILGASEX | C47: Oil and gas extraction | D47: Добыча нефти и газа | E47: 石油和天然气开采 | F47: Represents the energy which is used for oil and gas extraction. Flared gas is not included. | G47: Укажите объем природного газа, потребленного в качестве топлива при добыче нефти и газа, и на заводах по переработке природного газа. Потери в трубопроводах следует указывать в категории «Потери при распределении». | H47: 指开采石油和天然气所用的能源，不包括火炬气。
A48: 46 | B48: EPATFUEL | C48: Patent fuel plants | D48: Агломерационные установки | E48: 专利燃料厂 | F48: Represents the energy used in patent fuel plants. | G48: Укажите топливо, потребленное в виде энергии на заводах по производству каменноугольных брикетов. | H48: 指专利燃料厂使用的能源。
A49: 47 | B49: ECOKEOVS | C49: Coke ovens | D49: Коксовые печи | E49: 焦炉 | F49: Represents the energy used in coke ovens. | G49: Укажите топливо, потребленное в качестве энергии в доменных печах. | H49: 指焦炉使用的能源。
A50: 48 | B50: EGASWKS | C50: Gas works | D50: Газовые эаводы | E50: 煤气厂 | F50: Represents the energy which is used in gas works. | G50: Укажите топливо, потребленное в качестве энергии на газовых заводах и станциях газификации угля. | H50: 指煤气厂使用的能源
A51: 49 | B51: EBIOGAS | C51: Gasification plants for biogases | D51: Газификационные установки (биогаз) | E51: 生物质气化厂 | F51: Represents own consumption of biogas necessary to support temperatures needed for anaerobic fermentation. | G51: Укажите объем возобновляемых источников энергии и отходов, потребленных в виде энергии, необходимой для поддержки температуры в процессе анаэробной ферментации. | H51: 指支持厌氧发酵所需的温度所必需的生物气自用消费量。
A52: 50 | B52: EBLASTFUR | C52: Blast furnaces | D52: Доменные печи | E52: 高炉 | F52: Represents the energy which is used in blast furnaces. | G52: Укажите топливо, потребленное в качестве энергии на коксовых заводах. | H52: 指高炉使用的能源。
A53: 51 | B53: EBKB | C53: BKB / peat briquette plants | D53: Установки по производству брикетов | E53: 褐煤型煤/ 泥煤砖厂 | F53: Represents the energy used in BKB and peat briquette plants. | G53: Укажите топливо, потребленное в качестве энергии на заводах по производству БУБ/ТБ. | H53: 指褐煤型煤厂和泥煤砖厂使用的能源。
A54: 52 | B54: EREFINER | C54: Oil refineries | D54: Нефтеперераб. заводы | E54: 炼油厂 | F54: Represents the energy used in oil refineries. | G54: Укажите топливо, потребленное в качестве энергии на нефтеперерабатывающих заводах. | H54: 指炼油厂使用的能源。
A55: 53 | B55: ECOALLIQ | C55: Coal liquefaction plants | D55: Заводы сжижения угля | E55: 煤气化厂 | F55: Represents the energy used in coal liquefaction plants. | G55: Укажите топливо, потребленное в качестве энергии на станциях по сжижению угля. | H55: 指煤气化厂使用的能源。
A56: 54 | B56: ELNG | C56: Liquefaction (LNG) / regasification plants | D56: Сжижение (СПГ) / установки регазификации | E56: 液化（液化天然气）/ 再气化厂 | F56: Represents the energy used in LNG and regasification plants. | G56: Укажите объем природного газа, потребленного в качестве топлива на заводах по сжижению и регазификации газа. | H56: 指液化天然气厂和再气化厂使用的能源。
A57: 55 | B57: EGTL | C57: Gas-to-liquids (GTL) plants | D57: Газ-в-жидкость | E57: 气转液厂 | F57: Represents the energy used in gas-to-liquids plants. | G57: Укажите объем природного газа, потребленного в качестве топлива на заводах, преобразующих газ в жидкость. | H57: 指气转液厂使用的能源。
A58: 56 | B58: EPOWERPLT | C58: Own use in electricity, CHP and heat plants | D58: Электростанции, ТЭЦ и теплоцентрали | E58: 发电厂、热电联产厂和热力厂自用 | F58: Represents the energy used in main activity producer electricity, CHP and heat plants. | G58: Укажите топливо, потребленное в качестве энергии на электростанциях, ТЭЦ и котельных. | H58: 指公用发电厂、热电联产厂和热力厂使用的能源。
A59: 57 | B59: EPUMPST | C59: Used for pumped storage | D59: Электричество для гидроаккумулирования | E59: 抽水蓄能使用 | F59: Represents electricity consumed in hydro-electric plants for pumped storage. | G59: Укажите электричество, потребленное во время работы гидроэлектростанций в насосном режиме. | H59: 指水电站为抽水蓄能消费的电力。
A60: 58 | B60: ENUC | C60: Nuclear industry | D60: Атомная промышленность | E60: 核工业 | F60: Represents the energy used in the nuclear industry. | G60: Укажите электричество и купленное тепло, потребленное атомными электростанциями. | H60: 指核工业使用的能源。
A61: 59 | B61: ECHARCOAL | C61: Charcoal production plants | D61: Устан. по произв. древесного угля | E61: 木炭生产厂 | F61: Represents the energy used in charcoal production plants. | G61: Укажите объем возобновляемых источников энергии и отходов, потребленных в качестве энергии на станциях по производству древесного угля. | H61: 指木炭生产厂使用的能源。
A62: 60 | B62: ENONSPEC | C62: Non-specified (Energy) | D62: Не указанные в других графах | E62: 未列明的产业（能源） | F62: Represents use in non-specified energy industries. | G62: В этой категории укажите топливо, потребленное в качестве энергии для прочих целей, не указанных выше. | H62: 指未列明的能源行业使用的能源。
A63: 61 | B63: DISTLOSS | C63: Losses | D63: Потери | E63: 损耗 | F63: Losses in energy distribution, transmission and transport. | G63: Укажите все потери в результате транспортировки и распределения, а также сжигания синтез-газов в факелах. | H63: 能源配送、传送和运输过程中的损耗。
A64: 62 | C64: Final consumption | D64: Общее потребление | E64: [missing_Chinese]
A65: 63 | B65: FINCONS | C65: Final consumption | D65: Общее потребление | E65: 终端消费量 | F65: Equal to the sum of the consumption in the end-use sectors. Energy used for transformation processes and for own use of the energy producing industries is excluded. Final consumption reflects for the most part deliveries to consumers (see note on stock changes). Backflows from the petrochemical industry are not included in final consumption (see from other sources under supply and petrochemical plants in transformation processes). | G65: [missing_Russian] | H65: [missing_Chinese]
A66: 64 | B66: TOTIND | C66: Industry | D66: Сектор промышленности | E66: 工业部门 | F66: Report the fuel, electricity or purchased heat consumption by the industrial undertaking in support of its primary activities in the appropriate sub-sectors: Report quantities of fuels consumed in heat or CHP plants for the production of heat used by the plant itself. Quantities of fuels consumed for the production of heat that is sold, and for the production of electricity should be reported under the appropriate Transformation sector. | G66: Укажите потребление топлива/ электричества и купленного тепла промышленными предприятиями для поддержки основного вида деятельности. Укажите объемы топлива, потребленного котельными и ТЭЦ для производства тепла для собственных нужд. Объемы топлива, использованного для производства тепла на продажу и для производства электричества следует указать в соответствующем подразделе Сектора преобразования. | H66: 工业部门消费量的明细如下（工业部门运输使用的能源不包括在内，而是在交通运输部门项下报送）：
A67: 65 | B67: IRONSTL | C67: Iron and steel | D67: Черная металлургия | E67: 钢铁 | F67: [ISIC Rev. 4 Group 241 + Class 2431 (NACE Groups 24.1, 24.2, 24.3, Classes 24.51 and 24.52)]. To avoid double counting, energy used in blast furnaces should be reported in the Energy sector. | G67: ISIC: группа 241 и Класс 2431 (NACE: группы 24.1, 24.2, 24.3; классы 24.51 и 24.52). Во избежание двойного учета, энергия, использованное в доменных печах, следует указывать в Секторе энергетики. | H67: 【《国际标准行业分类》修订本第4版第241组和第2431类】
A68: 66 | B68: CHEMICAL | C68: Chemical and petrochemical | D68: Химическая (в т.ч. нефтехимическая) промышленность | E68: 化学和石油化工 | F68: [ISIC Rev. 4 Divisions 20 and 21] Excluding petrochemical feedstocks. | G68: ISIC и NACE: разделы 20 и 21. | H68: 【《国际标准行业分类》修订本第4版第20和21部分】不包括石化原料。
A69: 67 | B69: NONFERR | C69: Non-ferrous metals | D69: Цветная металлургия | E69: 有色金属 | F69: ISIC Group 242 + Class 2432 (NACE Group 24.4, Classes 24.53 and 24.54). | G69: ISIC: группа 242 и класс 2432 (NACE: группа 24.4 и классы 24.53, 24.54). | H69: 【《国际标准行业分类》修订本第4版第242组和第2432类】基础行业。
A70: 68 | B70: NONMET | C70: Non-metallic minerals | D70: Неметаллические минеральные продукты | E70: 非金属矿物 | F70: [ISIC Rev. 4 and NACE Division 23.] Report glass, ceramic, cement, and other building materials industries. | G70: ISIC: раздел 23 (NACE: раздел 23). Укажите отрасли стекла, керамики, цемента и прочих строительных материалов. | H70: 【《国际标准行业分类》修订本第4版第23部分】如玻璃、陶瓷、水泥等。
A71: 69 | B71: TRANSEQ | C71: Transport equipment | D71: Транспортное оборудование | E71: 交通运输设备 | F71: [ISIC Rev. 4 and NACE Divisions 29 and 30.] | G71: ISIC и NACE: разделы 29 и 30. | H71: 【《国际标准行业分类》修订本第4版第29和30部分】
A72: 70 | B72: MACHINE | C72: Machinery | D72: Машиностроение | E72: 机器设备 | F72: [ISIC Rev. 4 and NACE Divisions 25, 26, 27 and 28.] Report fabricated metal products, machinery and equipment other than transport equipment. | G72: ISIC и NACE – разделы 25, 26, 27, и 28. Укажите изготовленные металлические продукты, машины и оборудование, кроме транспортного оборудования. | H72: 【《国际标准行业分类》修订本第4版第25至28部分】装配式金属产品、机器及交通运输设备以外的设备。
A73: 71 | B73: MINING | C73: Mining and quarrying | D73: Горнодобыв. промышленность и разраб. карьеров | E73: 采矿和采石 | F73: [ISIC Rev. 4 Divisions 07 and 08 + Group 099 (NACE Divisions 07 and 08 + Group 09.9)] | G73: ISIC: разделы 07, 08 и группа 099 (NACE: разделы 07, 08 и группа 09.9). | H73: 【《国际标准行业分类》修订本第4版第07和08部分和第099组】采矿（不包括燃料）和采石。
A74: 72 | B74: FOODPRO | C74: Food, beverages and tobacco | D74: Пищевая промышленность, производство напитков и табачных изделий | E74: 食品和烟草 | F74: [ISIC Rev. 4 and NACE Divisions 10, 11 and 12.] | G74: ISIC и NACE: разделы 10, 11 и 12. | H74: 【《国际标准行业分类》修订本第4版第10至12部分】
A75: 73 | B75: PAPERPRO | C75: Paper, pulp and print | D75: Целлюлозно-бумажная и полиграфическая промышленность | E75: 纸、纸浆和印刷 | F75: [ISIC Rev. 4 and NACE Divisions 17 and 18.] Includes reproduction of recorded media. | G75: ISIC и NACE: разделы 17 и 18. Эта категория включает также тиражирование записанных носителей информации. | H75: 【《国际标准行业分类》修订本第4版第17和18部分】
A76: 74 | B76: WOODPRO | C76: Wood and wood products | D76: Производство древесины и деревянных изделий | E76: 木材和木材制品 | F76: [ISIC Rev. 4 and NACE Division 16] Wood and wood products other than pulp and paper. | G76: ISIC и NACE: раздел 16. | H76: 【《国际标准行业分类》修订本第4版第16部分】纸和纸浆以外的木材和木材制品
A77: 75 | B77: CONSTRUC | C77: Construction | D77: Строительство | E77: 建筑 | F77: [ISIC Rev. 4 and NACE Division 41, 42 and 43] | G77: ISIC и NACE: разделы 41, 42 и 43. | H77: 【《国际标准行业分类》修订本第4版第41至43部分】
A78: 76 | B78: TEXTILES | C78: Textiles and leather | D78: Текстильная и кожевенная промышленность | E78: 纺织品和皮革 | F78: [ISIC and NACE Divisions 13, 14 and 15.] | G78: ISIC и NACE: разделы 13, 14 и 15. | H78: 【《国际标准行业分类》修订本第4版第13至15部分】
A79: 77 | B79: INONSPEC | C79: Non-specified (Industry) | D79: Др. отрасли промышленности | E79: 未列明的产业 | F79: [ISIC and NACE Divisions 22, 31 and 32.] If your country's industrial classification consumption of fuels/electricity does not correspond to the above ISIC or NACE codes, please estimate the breakdown by industry and include in Not elsewhere specified (Industry) only consumption in sectors which is not covered above. | G79: ISIC и NACE: разделы 22, 31 и 32. Если промышленный классификатор потребления топлива / электричества в вашей стране не соответствует упомянутым выше кодам ISIC и NACE, то оцените, пожалуйста, разбивку по отраслям промышленности и включите в «Не указанные в других подгруппах» только потребление в секторах, не упомянутых выше. | H79: 【《国际标准行业分类》修订本第4版第22、31和32部分】上文未包括的任何制造业。注：大多数国家难以提供所有燃料的工业明细信息，在这种情况下，可使用未列明的产业这一行。因此，应慎重使用区域合计工业消费量。
A80: 78 | B80: TOTTRANS | C80: Transport | D80: Сектор транспорта | E80: 交通运输部门 | F80: [ISIC Rev. 4 and NACE categories: Divisions 49, 50 and 51.] Report fuels / electricity used for all transport activity irrespective of the economic sector, in which the activity occurs (except military fuel use, see Not elsewhere specified - Other). Electricity and purchased heat used for heating and lighting at railway and bus stations and airports should be reported in Commercial and public services. The transport sector is divided into the following sub-sectors: | G80: ISIC и NACE: разделы 49, 50 и 51. Укажите потребленное энергия, всеми видами транспортной деятельности, независимо от экономического сектора, в котором деятельность осуществляется (за исключением военного спользования, см. «Не указанные в других подгруппах» (Прочее)». Электричество и купленное тепло, используемое для отопления и освещения железнодорожных и автобусных станций и аэропортов следует указывать в Секторе коммерческих и общественных услуг. Укажите потребление в следующих категориях классификаторов: | H80: 交通运输部门能源消费量涵盖所有（使用机动发动机）的交通运输活动，无论其有助于哪一经济部门【《国际标准行业分类》修订本第4版第49至51部分】。交通运输部门能源消费量的明细如下：
A81: 79 | B81: ROAD | C81: Domestic aviation | D81: Внутренний воздушный транспорт | E81: 国内航空 | F81: Report quantities of aviation fuels delivered to aircraft for Domestic aviation – commercial, private, agricultural, etc. Include fuel used for purposes other than flying, e.g. bench testing of engines. The domestic/international split should be determined on the basis of departure and landing locations and not by the nationality of the airline. Note that this may include journeys of considerable length between two airports in a country (e.g. San Francisco to Honolulu). Exclude fuels used by airlines for their road vehicles (see Not elsewhere specified – Transport sector) and military use of aviation fuels (see Not elsewhere specified – Other sectors). For many countries this incorrectly includes fuel used by domestically owned carriers for outbound international traffic. | G81: Укажите объёмы авиационных топлив поставленных для воздушных судов в рамках внутренней авиации – коммерческой, частной, сельскохозяйственной и т.д. Включите топливо используемое для неавиационных целей - например стендового испытания двигателей. Разделение международная\местная авиация должно производиться ссылаясь на информацию о месте отправки и посадки, а не на основе страны происхождения авиакомпании. Заметьте, что эта категория может включать длинные путешествия между двумя аэропортами одной страны (например с Сан-Франциско в Гонолулу). Исключите топливо используемое авиакомпаниями для дорожного транспорта (см. Прочие, неуказанные в другом месте – Транспортный сектор) и военное использование авиационных топлив (см. Прочие, неуказанные в другом месте - Прочие секторы). | H81: 包括向进行国内（商业、私人、农业等）航空飞行的飞机输送的航空燃料数量，包括为飞行以外的其他目的使用的燃料数量，例如发动机台架试验，但不包括航空公司陆地运输使用的燃料。国内/国际航空飞行的区分依据是出发地和抵达地，而非航空公司的国籍。请注意：该项可包括在某一国家境内两个机场之间的长距离行程（例如从旧金山到檀香山）。许多国家将国内航空公司在出境国际飞行中使用的燃料列入此项，这一做法是不正确的。
A82: 80 | B82: DOMESAIR | C82: Road | D82: Автоперевозки | E82: 公路 | F82: Report oil for use in road vehicles. Include fuel used by agricultural vehicles on highways and lubricants for use in road vehicles. Exclude motor gasoline and diesel used in stationary engines (see Not elsewhere specified – Other sectors), diesel oil for non–highway use in tractors (see Agriculture/forestry – Other sectors), military use (see Not elsewhere specified – Other sectors) and gasoil used in engines at construction sites (see Construction – Industry sector). | G82: Укажите нефть используемую для дорожно-транспортных средств. Включите топливо используемое сельскохозяйственными машинами на шоссе и смазочные материалы для дорожно-транспортных средств. Исключите моторный бензин и дизель использованные в стационарных двигателях (см. Прочие, неуказанные в другом месте - Прочие секторы), дизельное топливо для внедорожного использования в тракторах (см. Сельское/лесное хозяйство - Прочие секторы), военное использование (см. Прочие, неуказанные в другом месте - Прочие секторы) и газойль использованный в двигателях на стройплощадках (см. Строительство – Промышленный сектор). | H82: 包括公路车辆以及农业和工业公路使用的燃料，不包括军队消费的燃料、固定式发动机使用的车用汽油和非公路用拖拉机使用的柴油。
A83: 81 | B83: RAIL | C83: Rail | D83: Железные дороги | E83: 铁路 | F83: Includes quantities used in rail traffic, including industrial railways. It includes oil used in rail transport as part of urban or suburban transport systems. | G83: Укажите нефть используемую в железнодорожных перевозках, включая промышленные железные дороги. Эта категория включает потребление нефти в железнодорожном транспорте как части городских или пригородных транспортных систем. | H83: 包括铁路运输（含工业铁路运输）使用的燃料数量。
A84: 82 | B84: PIPELINE | C84: Pipeline transport | D84: Транспортировк а по трубопроводам | E84: 管道运输 | F84: Report oil used as energy in the support and operation of pipelines transporting gases, liquids, slurries and other commodities, including the energy used for pump stations and maintenance of the pipeline. Oil used as energy for the pipeline distribution of natural or manufactured gas, hot water or steam (ISIC Rev. 4 Division 35) from the distributor to final users is excluded and should be reported in the Energy sector, while the oil used for the final distribution of water (ISIC 36) to household, industrial, commercial and other users should be included in the Commercial/public sector. Losses occurring during this transport between distributor and final users should be reported as Distribution losses. | G84: Укажите нефть использованную в виде энергии для поддержки и работы трубопроводов транспортирующих газы, жидкости, суспензии и прочие товары, включая энергию используемую для насосных станций и ухода за трубопроводом. Нефть, использованную в виде энергии для распределения по трубопроводу природного или синтезного газа, горячей воды или пара (ISIC 35) от поставщика до конечного потребителя следует исключить и указать в Секторе энергетики, в то время как нефть использованная для конечного распределения воды (ISIC 36) домашним хозяйствам, промышленным, коммерческим и прочим потребителям должна учитываться в категории Коммерческий\общественный сектор. Потери при транспортировке между поставщиком и конечными потребителями должны указываться как потери при распределении. | H84: 包括为支持和运作气体、液体、泥浆和其他货物的运输管道而使用的能源，包括为泵站和管道维护而使用的能源。配送商为向最终用户管道配送天然气或人造煤气、热水、蒸汽（《国际标准行业分类》修订本第4版第35部分）二使用的能源不包括在内，而应在能源行业自用项下报送。但是为向家庭、工业、商业和其他用户最终配送水（《国际标准行业分类》修订本第4版第36部分）而使用的能源应列在商业/公共服务项下。配送商和最终用户之间的运输过程中发生的损耗应作为损耗进行报送。
A85: 83 | B85: DOMESNAV | C85: Domestic navigation | D85: Внутренний водный транспорт | E85: 国内航运 | F85: Report fuels delivered to vessels of all flags not engaged in international navigation (see international marine bunkers). The domestic/international split should be determined on the basis of port of departure and port of arrival and not by the flag or nationality of the ship. Note that this may include journeys of considerable length between two ports in a country (e.g. San Francisco to Honolulu). | G85: Укажите топлива поставленные для судов плавающих под всеми флагами не участвующими в международном судоходстве (см. Международная морская бункеровка). Раздел международное\местное судоходство производится ссылаясь на информацию о порту отправления и порту прибытия, а не на флаг под которым плавает данное судно или его страну происхождения. Заметьте, что эта категория может включать длинные путешествия между двумя портами одной страны (например с Сан-Франциско в Гонолулу). | H85: 包括向并非从事国际航运（见国际海运船舶燃料）的悬挂任何国旗的船舶输送的燃料数量。国内/国际航运的区分依据是发运港和目的港，而非船舶悬挂的国旗或船籍。请注意：该项可以包括某一国家境内两个港口之间的长距离航程（例如从旧金山到檀香山）。海洋、沿海和内陆渔业使用的燃料和军队消费的燃料不包括在内。
A86: 84 | B86: TRNONSPE | C86: Non-specified (transport) | D86: Неспецифицированный транспорт | E86: 未列明的产业（交通运输） | F86: Report fuels used for transport activities not included elsewhere. Include fuels used by airlines for their road vehicles. Note: International marine bunkers and International aviation bunkers are shown in supply and are not included in the transport sector as part of final consumption. | G86: Укажите использование топлив для транспортных деятельностей, не включённых в вышеупомянутые категории. Включите здесь топливо используемое авиакомпаниями для дорожных средств. | H86: 包括未另行列明的所有交通运输。请注意：国际海运船舶燃料和国际航空燃料列示于供应项下，而不作为终端消费量的组成部分纳入交通运输部门。
A87: 85 | B87: TOTOTHER | C87: Other | D87: Другие | E87: 其他部门 | F87: Includes residential, commercial/public services, agriculture/‌forestry, fishing and non-specified (other). | G87: Укажите жилищный сектор, коммерческие предприятия и государственные учреждения, сельское хозяйство, рыболовство и неспецифицированные другие секторы. | H87: 包括居民生活、商业/公共服务、农业/林业、渔业和未列明的产业（其他）。
A88: 86 | B88: RESIDENT | C88: Residential | D88: Жилищный сектор | E88: 居民生活 | F88: Report fuels/electricity consumed by all households including "households with employed persons" (ISIC and NACE Divisions 97 and 98). | G88: Укажите топлива потреблённые всеми видами домашних хозяйств, включая "домашние хозяйства с домработниками" (ISIC и NACE Разделы 97 и 98). | H88: 包括家庭消费量，但用于交通运输的燃料除外。该项包括在居民生活消费总量中占比不大的有雇佣人员的家庭消费量[《国际标准行业分类》修订本第4版第97部分]。
A89: 87 | B89: COMMPUB | C89: Commercial and public services | D89: Коммерческие предприятия и государственные учреждения | E89: 商业和公共服务 | F89: [ISIC Rev. 4 Divisions and NACE Divisions 33, 36, 37, 38, 39, 45, 46, 47, 52, 53, 55, 56, 58, 59, 60, 61, 62, 63, 64, 65, 66, 68, 69, 70, 71, 72, 73, 74, 75, 77, 78, 79, 80, 81, 82, 84 (exclude Class 8422), 85, 86, 87, 88, 90, 91, 92, 93, 94, 95, 96 and 99.] Consumption by businesses and offices in the public and private sectors. Note that consumption at railway, bus stations, shipping piers and airports should be reported in this category and not shown in the Transport sector. | G89: [ISIC Разделы и NACE Разделы 33, 36, 37, 38, 39, 45, 46, 47, 52, 53, 55, 56, 58, 59, 60, 61, 62, 63, 64, 65, 66, 68, 69, 70, 71, 72, 73, 74, 75, 77, 78, 79, 80, 81, 82, 84 (без Класса 8422), 85, 86, 87, 88, 90, 91, 92, 93, 94, 95, 96 и 99.] потребление бизнесами и офисами в общественном и частном секторе. Заметьте, что использование потреблениена железной дороге, автобусных станциях, речных причалах и в аэропортах следует указать в этой категории, а не в Секторе транспорта. | H89: 【《国际标准行业分类》修订本第4版第33、36-39、45-47、52、53、55-56、58-66、68-75、77-82、84（不包括第8422类）、85-88、90-96和99部分】
A90: 88 | B90: AGRICULT | C90: Agriculture/forestry | D90: Сельское хозяйство | E90: 农业/林业 | F90: [ISIC Rev. 4 and NACE Divisions 01 and 02]. Includes deliveries to users classified as agriculture, hunting and forestry by the ISIC, and therefore includes energy consumed by such users whether for traction (excluding agricultural highway use), power or heating (agricultural and domestic). | G90: [ISIC Разделы 01 и 02 (NACE Разделы 01 и 02).] Укажите потребление пользователями классифицированными как сельское хозяйство, охота и лесное хозяйство. | H90: 包括向《国际标准行业分类》项下列为农业、狩猎、林业用户输送的能源，因此，该项包括该等用户为牵引（农业公路使用除外）、电力或取暖而消费的能源【《国际标准行业分类》修订本第4版第01和02部分】。
A91: 89 | B91: FISHING | C91: Fishing | D91: Рыболовство | E91: 渔业 | F91: Report fuels used for inland, coastal and deep–sea fishing. Fishing should cover fuels delivered to ships of all flags that have refuelled in the country (include international fishing). Also include energy used in the fishing industry as specified in ISIC Division 03 and NACE Division 03. Prior to 2007 edition, fishing was included with agriculture/forestry and this may continue to be the case for some countries. | G91: Укажите топлива используемые для речного, прибрежного и глубоко-морского рыболовства. Рыболовство должно включать топлива, поставленные на судна всех флагов, которые дозаправлялись в стране (включая международную рыбную ловлю). Включите также энергию использованную в рыболовной промышленности, как это указано в ISIC Разделе 03 и NACE Разделе 03. | H91: 包括内陆、沿海和深海渔业使用的燃料。此项包括向在国境内添加燃料的、悬挂任何国旗的渔船（含国际捕鱼船）输送的燃料，以及渔业使用的能源【《国际标准行业分类》修订本第4版第03部分】。在2007年版本之前，渔业列入农业/林业项下，某些国家可能仍继续沿用这一做法。
A92: 90 | B92: ONONSPEC | C92: Non-specified (other) | D92: Неспецифицированные другие секторы | E92: 未列明的产业（其他） | F92: Report activities not included elsewhere. This category includes military fuel use for all mobile and stationary consumption (e.g. ships, aircraft, road and energy used in living quarters), regardless of whether the fuel delivered is for the military of that country or for the military of another country. | G92: Укажите деятельности неуказанные в других категориях. Эта категория включает военное использование топлива как для мобильных, так и стационарных нужд (например: корабли, воздушные судна, дорожный транспорт и энергия используемая в жилых кварталах), независимо от того, была ли поставка осуществлена для военных целей отчитывающейся страны или для военных целей другой страны. | H92: 包括未另行列明的所有燃料使用量，以及未提供单独数据的上述类别的消费量。此项包括用于所有机动和固定消费的军用燃料使用量（例如：船舶、飞机、道路和生活区域使用的能源），无论该燃料是输送给本国军队，还是输送给他国军队。
A93: 91 | B93: NONENUSE | C93: Non-energy use | D93: Неэнергетическое использование | E93: 非能源使用 | F93: Non-energy use covers those fuels that are used as raw materials in the different sectors and are not consumed as a fuel or transformed into another fuel. Non-energy use is shown separately in final consumption under the heading non-energy use. | G93: Укажите энергетические продукты, использованные в виде сырья в разных секторах; т.е. не потреблённые в качестве топлива и не преобразованные в другое топливо. Укажите неэнергетическое потребление по секторам: | H93: 非能源使用包括不同部门作为原材料使用的，且不作为燃料消费的或未转换为其他燃料的燃料。非能源使用在终端消费量中单独列示，列在非能源使用标题项下。
A94: 92 | B94: NEINTREN | C94: Non-energy use industry/transformation/energy | D94: в промышленности/преобраз.-переработке/топл. энергетике | E94: 工业/转换/能源部门非能源使用 | F94: Non-energy in industry, transformation processes and energy industry own use. | G94: неэнергетическое использование всех подсекторов промышленности, преобразования и энергетики. Например, укажите в этой категории использование угля для производства метанола или аммиака. | H94: 工业、转换过程和能源行业自用项下的非能源使用量。
A95: 93 | B95: NETRANS | C95: Non-energy use in transport | D95: в транспорте | E95: 交通运输部门非能源用途 | F95: Non-energy use in transport. | G95: неэнергетическое использование во всех подсекторах транспортного сектора. | H95: 交通运输部门项下的非能源使用量。
A96: 94 | B96: NEOTHER | C96: Non-energy use in other | D96: в других секторах | E96: 其他部门的非能源用途 | F96: Non-energy use in Commercial and public services, Residential, Agriculture and Not elsewhere specified - Other sectors. | G96: неэнергетическое использование в Секторе коммерческих и общественных услуг, Жилищном секторе, Сельском хозяйстве и в «Не включенные в другие подгруппы (Прочие секторы)». | H96: “其他部门”项下的非能源使用量。
A97: 95 | B97: NECHEM | C97: Memo: Non-energy use chemical/petrochemical | D97: в т.ч. химикаты / нефтехимия | E97: 备忘项化学/石化产业非能源使用 | F97: Report quantities used in the petrochemical industry for the purpose of producing ethylene, propylene, butylene, synthesis gas, aromatics, butadiene and other hydrocarbon–based raw materials in processes such as steam cracking, aromatics plants and steam reforming [part of ISIC Rev. 4 Group 201]. Exclude amounts of oil used for fuel purposes. | G97: Укажите объёмы которые используются в нефтехимической промышленности для производства этилена, пропилена, бутилена, синтезного газа, ароматических соединений, бутадиена и прочего сырья базирующего на углеводородах в таких процессах, как паровой крекинг, установки по производству ароматических соединений и паровой реформинг. Исключите объёмы нефти использованные для топливных целей. | H97: 化学/石化行业包括生产乙烯、丙烯、丁烯、合成气、芳香烃、丁二烯和其他烃基原材料的裂解和重整过程，例如蒸汽裂解、芳香烃厂和蒸汽重整【《国际标准行业分类》修订本第4版第201组的部分】。注：该流量在以往版本中被称作“其中：化工原料”。
A98: 96 | C98: Electricity and heat output | D98: Производство электроэнерги и тепла | E98: 电力和热力产量
A99: 97 | B99: ELOUTPUT | C99: Electricity output in GWh | D99: Производство электроэнергии ● ГВт-ч | E99: 电力产量（单位：吉瓦时） | F99: Shows the total number of GWh generated by power plants separated into electricity plants and CHP plants. | G99: это сумма электрической энергии, произведенной всеми видами соответствующих генерирующих установок (включая гидроаккумулирующие), измеряемая на выходных клеммах основных генераторов. | H99: 发电厂生产的电力总量（单位：吉瓦时），分别按照发电厂和热电联产厂列示。
A100: 98 | B100: ELMAINE | C100: Elec output-main activity producer ele plants | D100: ="электроэнергии, "&D23 -> электроэнергии, Электростанции производителей энергии (основной вид деятельности) | E100: 电力产量-公用发电厂
A101: 99 | B101: ELAUTOE | C101: Elec output-autoproducer electricity plants | D101: ="электроэнергии, "&D24 -> электроэнергии, Электростанции предприятий, производящих энергию для собственных нужд | E101: 电力产量-自用发电厂
A102: 100 | B102: ELMAINC | C102: Elec output-main activity producer CHP plants | D102: ="электроэнергии, "&D25 -> электроэнергии, ТЭЦ производителей энергии (основной вид деятельности) | E102: 电力产量-公用热电联产厂
A103: 101 | B103: ELAUTOC | C103: Elec output-autoproducer CHP plants | D103: ="электроэнергии, "&D26 -> электроэнергии, ТЭЦ предприятий, производящих энергию для собственных нужд | E103: 电力产量-自用热电联产厂
A104: 102 | B104: HEMAINC | C104: Heat output-main activity producer CHP plants | D104: ="тепла, "&D25 -> тепла, ТЭЦ производителей энергии (основной вид деятельности) | E104: 热力产量-公用热电联产厂
A105: 103 | B105: HEAUTOC | C105: Heat output-autoproducer CHP plants | D105: ="тепла, "&D26 -> тепла, ТЭЦ предприятий, производящих энергию для собственных нужд | E105: 热力产量-自用热电联产厂
A106: 104 | B106: HEMAINH | C106: Heat output-main activity producer heat plant | D106: ="тепла, "&D27 -> тепла, Теплоцентрали производителей энергии (основной вид деятельности) | E106: 热力产量-公用热力厂
A107: 105 | B107: HEAUTOH | C107: Heat output-autoproducer heat plants | D107: ="тепла, "&D28 -> тепла, Теплоцентрали предприятий, производящих энергию для собственных нужд | E107: 热力产量-自用热力厂
A108: 106 | B108: HEATOUT | C108: Heat output in TJ | D108: Производство тепла ● ТДж | E108: 热力产量（单位：太焦耳） | F108: Shows the total amount of TJ generated by power plants separated into CHP plants and heat plants. | G108: это общий объем тепла, произведенного установками, включающий тепло, использованное вспомогательным оборудованием установок, которое использует горячую жидкость (отопление помещения, нагрев жидкого топлива и т.д.); потери при обмене теплом между установкой и сетью, а также тепло химических процессов, использованное в виде первичной энергии. | H108: 热力厂生产的热力总量（单位：太焦耳），分别按照热电联产厂和热力厂列示。
A109: 107 | B109: MHYDPUMP | C109: Memo: Main activity producer - pumped hydro | D109: Примечание: Производитель по основному виду деятельности – ГАЭС | E109: 备忘项：公用发电厂 - 抽水蓄能电站
A110: 108 | B110: AHYDPUMP | C110: Memo: Autoproducer - pumped hydro | D110: Примечание: Производитель для своих нужд – ГАЭС | E110: 备忘录：自用发电厂 - 抽水蓄能电站
A111: 109 | B111: VENTED | C111: Memo: gas vented | D111: Примечание: выпускаемый газ | E111: 备忘录：放空气
A112: 110 | B112: FLARED | C112: Memo: gas flared | D112: Примечание: сжигаемый газ | E112: 备忘录：火炬气

Sheet Exceptions (hidden)
C1: Exceptions
B3: The country-specific exceptions listed in the "Exceptions" worksheet are automatically copied to the disaggregated balance when necessary. This worksheet should not be modified, it is made available for information. When "Disaggregated Balance" cells are modified their font color is changed to red.
B8: Exception | C8: Country | D8: Product | E8: Cell | F8: Default | G8: New
B9: 1 | C9: GERMANY, GREECE, TURKEY | D9: LIGNITE, TBKB | E9: $I$29 | F9: =-VLOOKUP($B29,RawData,I$4,FALSE)*VLOOKUP(I$3,ConversionFactors,$D29,FALSE)/MJ_per_toe | G9: =-VLOOKUP($B29,RawData,I$4,FALSE)*VLOOKUP(I$3,ConversionFactors,MATCH("NIND",CFHeadings,0),FALSE)/MJ_per_toe
B10: 1 | C10: GERMANY, GREECE, TURKEY | D10: LIGNITE, EBKB | E10: $I$44 | F10: =-VLOOKUP($B44,RawData,I$4,FALSE)*VLOOKUP(I$3,ConversionFactors,$D44,FALSE)/MJ_per_toe | G10: =-VLOOKUP($B44,RawData,I$4,FALSE)*VLOOKUP(I$3,ConversionFactors,MATCH("NIND",CFHeadings,0),FALSE)/MJ_per_toe
B11: 2 | C11: IRELAND | D11: PEAT, TBKB | E11: $T$29 | F11: =-VLOOKUP($B29,RawData,T$4,FALSE)*VLOOKUP(T$3,ConversionFactors,$D29,FALSE)/MJ_per_toe | G11: =-VLOOKUP($B29,RawData,T$4,FALSE)*VLOOKUP(T$3,ConversionFactors,MATCH("NIND",CFHeadings,0),FALSE)/MJ_per_toe
B12: 2 | C12: IRELAND | D12: PEAT, EBKB | E12: $T$44 | F12: =-VLOOKUP($B44,RawData,T$4,FALSE)*VLOOKUP(T$3,ConversionFactors,$D44,FALSE)/MJ_per_toe | G12: =-VLOOKUP($B44,RawData,T$4,FALSE)*VLOOKUP(T$3,ConversionFactors,MATCH("NIND",CFHeadings,0),FALSE)/MJ_per_toe
B13: 3 | C13: UNITED KINGDOM | D13: COKEOVGS, TCOKEOVS | E13: $P$25 | F13: =(SUM(VLOOKUP($B5,RawData,P$4,FALSE),VLOOKUP("OSNATGAS",RawData,P$4,FALSE),VLOOKUP("OSOIL",RawData,P$4,FALSE),VLOOKUP("OSRENEW",RawData,P$4,FALSE),VLOOKUP("OSNONSPEC",RawData,P$4,FALSE),-VLOOKUP($B25,RawData,P$4,FALSE))*VLOOKUP(P$3,ConversionFactors,2,FALSE))*TJ_to_ktoe | G13: =(SUM(VLOOKUP($B5,RawData,P$4,FALSE),VLOOKUP("OSOIL",RawData,P$4,FALSE),VLOOKUP("OSRENEW",RawData,P$4,FALSE),-VLOOKUP($B25,RawData,P$4,FALSE))*VLOOKUP(P$3,ConversionFactors,2,FALSE))*TJ_to_ktoe
B14: 3 | C14: UNITED KINGDOM | D14: COKEOVGS, TNONSPEC | E14: $P$35 | F14: =(-VLOOKUP($B35,RawData,P$4,FALSE)*VLOOKUP(P$3,ConversionFactors,2,FALSE))*TJ_to_ktoe | G14: =(SUM(VLOOKUP("OSNATGAS",RawData,P$4,FALSE),VLOOKUP("OSNONSPEC",RawData,P$4,FALSE),-VLOOKUP($B35,RawData,P$4,FALSE))*VLOOKUP(P$3,ConversionFactors,2,FALSE))*TJ_to_ktoe
B15: 4 | C15: PEOPLE'S REPUBLIC OF CHINA | D15: COKCOAL, TGASWKS | E15: $F$26 | F15: =-VLOOKUP($B26,RawData,F$4,FALSE)*VLOOKUP(F$3,ConversionFactors,$D26,FALSE)/MJ_per_toe | G15: =-VLOOKUP($B26,RawData,F$4,FALSE)*VLOOKUP(F$3,ConversionFactors,MATCH("NBLAST",CFHeadings,0),FALSE)/MJ_per_toe
B16: 4 | C16: PEOPLE'S REPUBLIC OF CHINA | D16: BITCOAL, TGASWKS | E16: $G$26 | F16: =-VLOOKUP($B26,RawData,G$4,FALSE)*VLOOKUP(G$3,ConversionFactors,$D26,FALSE)/MJ_per_toe | G16: =-VLOOKUP($B26,RawData,G$4,FALSE)*VLOOKUP(G$3,ConversionFactors,MATCH("NBLAST",CFHeadings,0),FALSE)/MJ_per_toe
B17: 4 | C17: PEOPLE'S REPUBLIC OF CHINA | D17: OVENCOKE, TGASWKS | E17: $K$26 | F17: =-VLOOKUP($B26,RawData,K$4,FALSE)*VLOOKUP(K$3,ConversionFactors,$D26,FALSE)/MJ_per_toe | G17: =-VLOOKUP($B26,RawData,K$4,FALSE)*VLOOKUP(K$3,ConversionFactors,MATCH("NBLAST",CFHeadings,0),FALSE)/MJ_per_toe
B18: 4 | C18: PEOPLE'S REPUBLIC OF CHINA | D18: COKCOAL, EGASWKS | E18: $F$41 | F18: =-VLOOKUP($B41,RawData,F$4,FALSE)*VLOOKUP(F$3,ConversionFactors,$D41,FALSE)/MJ_per_toe | G18: =-VLOOKUP($B41,RawData,F$4,FALSE)*VLOOKUP(F$3,ConversionFactors,MATCH("NBLAST",CFHeadings,0),FALSE)/MJ_per_toe
B19: 4 | C19: PEOPLE'S REPUBLIC OF CHINA | D19: BITCOAL, EGASWKS | E19: $G$41 | F19: =-VLOOKUP($B41,RawData,G$4,FALSE)*VLOOKUP(G$3,ConversionFactors,$D41,FALSE)/MJ_per_toe | G19: =-VLOOKUP($B41,RawData,G$4,FALSE)*VLOOKUP(G$3,ConversionFactors,MATCH("NBLAST",CFHeadings,0),FALSE)/MJ_per_toe
B20: 4 | C20: PEOPLE'S REPUBLIC OF CHINA | D20: OVENCOKE, EGASWKS | E20: $K$41 | F20: =-VLOOKUP($B41,RawData,K$4,FALSE)*VLOOKUP(K$3,ConversionFactors,$D41,FALSE)/MJ_per_toe | G20: =-VLOOKUP($B41,RawData,K$4,FALSE)*VLOOKUP(K$3,ConversionFactors,MATCH("NBLAST",CFHeadings,0),FALSE)/MJ_per_toe
B21: 5 | C21: SOUTH AFRICA | D21: BITCOAL, TCOALLIQ | E21: $G$31 | F21: =-VLOOKUP($B31,RawData,G$4,FALSE)*VLOOKUP(G$3,ConversionFactors,$D31,FALSE)/MJ_per_toe | G21: =-VLOOKUP($B31,RawData,G$4,FALSE)*0.4968
B22: 5 | C22: SOUTH AFRICA | D22: BITCOAL, ECOALLIQ | E22: $G$46 | F22: =-VLOOKUP($B46,RawData,G$4,FALSE)*VLOOKUP(G$3,ConversionFactors,$D46,FALSE)/MJ_per_toe | G22: =-VLOOKUP($B46,RawData,G$4,FALSE)*0.4968
B23: 6 | C23: GERMANY | D23: NONCRUDE, TCOALLIQ | E23: $AA$31 | F23: =(VLOOKUP("OSCOAL",RawData,AA$4,FALSE)-VLOOKUP($B31,RawData,AA$4,FALSE))*VLOOKUP(AA$3,ConversionFactors,2,FALSE)/MJ_per_toe | G23: =-VLOOKUP($B31,RawData,AA$4,FALSE)*VLOOKUP(AA$3,ConversionFactors,2,FALSE)/MJ_per_toe
B24: 6 | C24: GERMANY | D24: NONCRUDE, TCOKEOVS | E24: $AA$25 | F24: =-VLOOKUP($B25,RawData,AA$4,FALSE)*VLOOKUP(AA$3,ConversionFactors,2,FALSE)/MJ_per_toe | G24: =(VLOOKUP("OSCOAL",RawData,AA$4,FALSE)-VLOOKUP($B25,RawData,AA$4,FALSE))*VLOOKUP(AA$3,ConversionFactors,2,FALSE)/MJ_per_toe
B25: 7 | C25: AUSTRALIA, CANADA, FINLAND, HUNGARY, IRELAND, MEXICO, POLAND, PORTUGAL, SLOVAK REPUBLIC, TURKEY, UNITED STATES, BRAZIL, BULGARIA, CROATIA, ROMANIA, SERBIA | D25: NONCRUDE, TGTL | E25: $AA$32 | F25: =(VLOOKUP("OSNATGAS",RawData,AA$4,FALSE)-VLOOKUP($B32,RawData,AA$4,FALSE))*VLOOKUP(AA$3,ConversionFactors,2,FALSE)/MJ_per_toe | G25: =-VLOOKUP($B32,RawData,AA$4,FALSE)*VLOOKUP(AA$3,ConversionFactors,2,FALSE)/MJ_per_toe
B26: 7 | C26: AUSTRALIA, CANADA, FINLAND, HUNGARY, IRELAND, MEXICO, POLAND, PORTUGAL, SLOVAK REPUBLIC, TURKEY, UNITED STATES, BRAZIL, BULGARIA, CROATIA, ROMANIA, SERBIA | D26: NONCRUDE, TNONSPEC | E26: $AA$35 | F26: =(VLOOKUP("OSNONSPEC",RawData,AA$4,FALSE)-VLOOKUP($B35,RawData,AA$4,FALSE))*VLOOKUP(AA$3,ConversionFactors,2,FALSE)/MJ_per_toe | G26: =(VLOOKUP("OSNATGAS",RawData,AA$4,FALSE)-VLOOKUP($B35,RawData,AA$4,FALSE))*VLOOKUP(AA$3,ConversionFactors,2,FALSE)/MJ_per_toe
B27: 8 | C27: ESTONIA | D27: OILSHALE, TCOALLIQ | E27: $V$31 | F27: =-VLOOKUP($B31,RawData,V$4,FALSE)*VLOOKUP(V$3,ConversionFactors,$D31,FALSE)/MJ_per_toe | G27: =-VLOOKUP($B31,RawData,V$4,FALSE)*VLOOKUP(V$3,ConversionFactors,MATCH("NCOKEOVS",CFHeadings,0),FALSE)/MJ_per_toe
B28: 9 | C28: UKRAINE | D28: NONCRUDE, TCOALLIQ | E28: $AA$31 | F28: =(VLOOKUP("OSCOAL",RawData,AA$4,FALSE)-VLOOKUP($B31,RawData,AA$4,FALSE))*VLOOKUP(AA$3,ConversionFactors,2,FALSE)/MJ_per_toe | G28: =-VLOOKUP($B31,RawData,AA$4,FALSE)*VLOOKUP(AA$3,ConversionFactors,2,FALSE)/MJ_per_toe
B29: 9 | C29: UKRAINE | D29: NONCRUDE, TNONSPEC | E29: $AA$35 | F29: =(VLOOKUP("OSNONSPEC",RawData,AA$4,FALSE)-VLOOKUP($B35,RawData,AA$4,FALSE))*VLOOKUP(AA$3,ConversionFactors,2,FALSE)/MJ_per_toe | G29: =(VLOOKUP("OSCOAL",RawData,AA$4,FALSE)-VLOOKUP($B35,RawData,AA$4,FALSE))*VLOOKUP(AA$3,ConversionFactors,2,FALSE)/MJ_per_toe
B30: 10 | C30: LITHUANIA | D30: ADDITIVE, INDPROD | E30: $Z$5 | F30: =SUM(VLOOKUP($B5,RawData,Z$4,FALSE),VLOOKUP("OSCOAL",RawData,Z$4,FALSE),VLOOKUP("OSNATGAS",RawData,Z$4,FALSE),VLOOKUP("OSOIL",RawData,Z$4,FALSE),VLOOKUP("OSRENEW",RawData,Z$4,FALSE),VLOOKUP("OSNONSPEC",RawData,Z$4,FALSE))*VLOOKUP(Z$3,ConversionFactors,$D5,FALSE)/MJ_per_toe | G30: =SUM(VLOOKUP($B5,RawData,Z$4,FALSE),VLOOKUP("OSCOAL",RawData,Z$4,FALSE),VLOOKUP("OSOIL",RawData,Z$4,FALSE),VLOOKUP("OSRENEW",RawData,Z$4,FALSE),VLOOKUP("OSNONSPEC",RawData,Z$4,FALSE))*VLOOKUP(Z$3,ConversionFactors,$D5,FALSE)/MJ_per_toe
B31: 10 | C31: LITHUANIA | D31: ADDITIVE, TNONSPEC | E31: $Z$35 | F31: =-VLOOKUP($B35,RawData,Z$4,FALSE)*VLOOKUP(Z$3,ConversionFactors,2,FALSE)/MJ_per_toe | G31: =VLOOKUP("OSNATGAS",RawData,Z$4,FALSE)*VLOOKUP(Z$3,ConversionFactors,2,FALSE)/MJ_per_toe
B32: 11 | C32: BELGIUM, CANADA, CHILE, CZECH REPUBLIC, DENMARK, FINLAND, FRANCE, GERMANY, ISRAEL, ITALY, JAPAN, NEW ZEALAND, NORWAY, POLAND, SLOVAK REPUBLIC, SPAIN, SWITZERLAND, UNITED STATES, LATVIA, RUSSIAN FEDERATION | D32: OTHER, MAINELEC | E32: $BL$15 | F32: =-VLOOKUP("ELMAINE",RawData,BL$4,FALSE)*GWh_to_ktoe | G32: 0
B33: 11 | C33: BELGIUM, CANADA, CHILE, CZECH REPUBLIC, DENMARK, FINLAND, FRANCE, GERMANY, ISRAEL, ITALY, JAPAN, NEW ZEALAND, NORWAY, POLAND, SLOVAK REPUBLIC, SPAIN, SWITZERLAND, UNITED STATES, LATVIA, RUSSIAN FEDERATION | D33: OTHER, AUTOELEC | E33: $BL$16 | F33: =-VLOOKUP("ELAUTOE",RawData,BL$4,FALSE)*GWh_to_ktoe | G33: 0
B34: 11 | C34: BELGIUM, CANADA, CHILE, CZECH REPUBLIC, DENMARK, FINLAND, FRANCE, GERMANY, ISRAEL, ITALY, JAPAN, NEW ZEALAND, NORWAY, POLAND, SLOVAK REPUBLIC, SPAIN, SWITZERLAND, UNITED STATES, LATVIA, RUSSIAN FEDERATION | D34: OTHER, MAINCHP | E34: $BL$17 | F34: =-VLOOKUP("ELMAINC",RawData,BL$4,FALSE)*GWh_to_ktoe-VLOOKUP("HEMAINC",RawData,BL$4,FALSE)*TJ_to_ktoe | G34: 0
B35: 11 | C35: BELGIUM, CANADA, CHILE, CZECH REPUBLIC, DENMARK, FINLAND, FRANCE, GERMANY, ISRAEL, ITALY, JAPAN, NEW ZEALAND, NORWAY, POLAND, SLOVAK REPUBLIC, SPAIN, SWITZERLAND, UNITED STATES, LATVIA, RUSSIAN FEDERATION | D35: OTHER, AUTOCHP | E35: $BL$18 | F35: =-VLOOKUP("ELAUTOC",RawData,BL$4,FALSE)*GWh_to_ktoe-VLOOKUP("HEAUTOC",RawData,BL$4,FALSE)*TJ_to_ktoe | G35: 0
B36: 11 | C36: BELGIUM, CANADA, CHILE, CZECH REPUBLIC, DENMARK, FINLAND, FRANCE, GERMANY, ISRAEL, ITALY, JAPAN, NEW ZEALAND, NORWAY, POLAND, SLOVAK REPUBLIC, SPAIN, SWITZERLAND, UNITED STATES, LATVIA, RUSSIAN FEDERATION | D36: OTHER, MAINHEAT | E36: $BL$19 | F36: =-VLOOKUP("HEMAINH",RawData,BL$4,FALSE)*TJ_to_ktoe | G36: 0
B37: 11 | C37: BELGIUM, CANADA, CHILE, CZECH REPUBLIC, DENMARK, FINLAND, FRANCE, GERMANY, ISRAEL, ITALY, JAPAN, NEW ZEALAND, NORWAY, POLAND, SLOVAK REPUBLIC, SPAIN, SWITZERLAND, UNITED STATES, LATVIA, RUSSIAN FEDERATION | D37: OTHER, AUTOHEAT | E37: $BL$20 | F37: =-VLOOKUP("HEAUTOH",RawData,BL$4,FALSE)*TJ_to_ktoe | G37: 0
B38: 12 | C38: SWEDEN | D38: HEAT, THEAT | E38: $BN$21 | F38: =VLOOKUP($B21,RawData,MATCH("ELECTR",RawDataHeadings,0),FALSE)*GWh_to_ktoe | G38: =(VLOOKUP("HEATOUT",RawData,MATCH("HEATPUMP",RawDataHeadings,0),FALSE)*TJ_to_ktoe-VLOOKUP("THEAT",RawData,MATCH("ELECTR",RawDataHeadings,0),FALSE)*GWh_to_ktoe)*0.21+VLOOKUP("THEAT",RawData,MATCH("ELECTR",RawDataHeadings,0),FALSE)*GWh_to_ktoe
B39: 12 | C39: SWEDEN | D39: HEAT, INDPROD | E39: $BN$5 | F39: =(VLOOKUP("HEATOUT",RawData,MATCH("HEATPUMP",RawDataHeadings,0),FALSE)+VLOOKUP("HEATOUT",RawData,MATCH("CHEMHEAT",RawDataHeadings,0),FALSE))*TJ_to_ktoe-VLOOKUP("THEAT",RawData,MATCH("ELECTR",RawDataHeadings,0),FALSE)*GWh_to_ktoe | G39: =(VLOOKUP("HEATOUT",RawData,MATCH("HEATPUMP",RawDataHeadings,0),FALSE)*TJ_to_ktoe-VLOOKUP("THEAT",RawData,MATCH("ELECTR",RawDataHeadings,0),FALSE)*GWh_to_ktoe)*0.79+VLOOKUP("HEATOUT",RawData,MATCH("CHEMHEAT",RawDataHeadings,0),FALSE)*TJ_to_ktoe
B40: 13 | C40: BAHRAIN | D40: REFFEEDS,TPETCHEM | E40: $Y$28 | F40: =VLOOKUP("OSOIL",RawData,Y$4,FALSE)*VLOOKUP(Y$3,ConversionFactors,2,FALSE)/MJ_per_toe | G40: =-VLOOKUP($B28,RawData,Y$4,FALSE)*VLOOKUP(Y$3,ConversionFactors,2,FALSE)/MJ_per_toe
B41: 13 | C41: BAHRAIN | D41: REFFEEDS,TNONSPEC | E41: $Y$35 | F41: =-VLOOKUP($B35,RawData,Y$4,FALSE)*VLOOKUP(Y$3,ConversionFactors,2,FALSE)/MJ_per_toe | G41: =VLOOKUP("OSOIL",RawData,Y$4,FALSE)*VLOOKUP(Y$3,ConversionFactors,2,FALSE)/MJ_per_toe
B42: 14 | C42: HUNGARY | D42: HEAT, INDPROD | E42: $BN$5 | F42: =(VLOOKUP("HEATOUT",RawData,MATCH("HEATPUMP",RawDataHeadings,0),FALSE)+VLOOKUP("HEATOUT",RawData,MATCH("CHEMHEAT",RawDataHeadings,0),FALSE))*TJ_to_ktoe-VLOOKUP("THEAT",RawData,MATCH("ELECTR",RawDataHeadings,0),FALSE)*GWh_to_ktoe | G42: 0
B43: 15 | C43: FINLAND | D43: OGASES, TBLASTFUR | E43: $R$27 | F43: =SUM(VLOOKUP($B5,RawData,R$4,FALSE),VLOOKUP("OSNATGAS",RawData,R$4,FALSE),VLOOKUP("OSOIL",RawData,R$4,FALSE),VLOOKUP("OSRENEW",RawData,R$4,FALSE),VLOOKUP("OSNONSPEC",RawData,R$4,FALSE),-VLOOKUP($B27,RawData,R$4,FALSE))*VLOOKUP(R$3,ConversionFactors,2,FALSE)*TJ_to_ktoe | G43: 0
B44: 15 | C44: FINLAND | D44: OGASES, TNONSPEC | E44: $R$35 | F44: =-VLOOKUP($B35,RawData,R$4,FALSE)*VLOOKUP(R$3,ConversionFactors,2,FALSE)*TJ_to_ktoe | G44: =SUM(VLOOKUP($B5,RawData,R$4,FALSE),VLOOKUP("OSNATGAS",RawData,R$4,FALSE),VLOOKUP("OSOIL",RawData,R$4,FALSE),VLOOKUP("OSRENEW",RawData,R$4,FALSE),VLOOKUP("OSNONSPEC",RawData,R$4,FALSE),-VLOOKUP($B27,RawData,R$4,FALSE))*VLOOKUP(R$3,ConversionFactors,2,FALSE)*TJ_to_ktoe

Sheet Data in physical units
A1: =HLOOKUP(LangChoice,Definitions_ProdLang!$M$2:$P$30,3) -> Data in physical units
C2: ='Published Balance'!$B$6& " ("&INDEX(Definitions_ProdLang!$I$3:$K$75,MATCH(C$4,Definitions_ProdLang!$B$3:$B$75,0),MATCH(LangChoice,Definitions_ProdLang!$I$2:$K$2,0)) & ")" -> Coal (kt) | M2: =HLOOKUP(LangChoice,Definitions_ProdLang!$M$2:$P$30,2)& " ("&INDEX(Definitions_ProdLang!$I$3:$K$75,MATCH(M$4,Definitions_ProdLang!$B$3:$B$75,0),MATCH(LangChoice,Definitions_ProdLang!$I$2:$K$2,0)) & ")" -> Coal gases (TJ-gross) | R2: =PEAT&CHAR(10) & "("&INDEX(Definitions_ProdLang!$I$3:$K$75,MATCH(R$4,Definitions_ProdLang!$B$3:$B$75,0),MATCH(LangChoice,Definitions_ProdLang!$I$2:$K$2,0)) & ")" -> Peat (kt) | S2: =PEATPROD&CHAR(10) & "("&INDEX(Definitions_ProdLang!$I$3:$K$75,MATCH(S$4,Definitions_ProdLang!$B$3:$B$75,0),MATCH(LangChoice,Definitions_ProdLang!$I$2:$K$2,0)) & ")" -> Peat products (kt) | T2: =OILSHALE&CHAR(10) & "("&INDEX(Definitions_ProdLang!$I$3:$K$75,MATCH(T$4,Definitions_ProdLang!$B$3:$B$75,0),MATCH(LangChoice,Definitions_ProdLang!$I$2:$K$2,0)) & ")" -> Oil shale and oil sands (kt) | U2: ='Balance Summary'!$AH$4& " ("&INDEX(Definitions_ProdLang!$I$3:$K$75,MATCH(U$4,Definitions_ProdLang!$B$3:$B$75,0),MATCH(LangChoice,Definitions_ProdLang!$I$2:$K$2,0)) & ")" -> Oil (kt) | Z2: =HLOOKUP(LangChoice,Definitions_ProdLang!$C$2:$E$75,Definitions_ProdLang!$A29+1,FALSE)& " ("&INDEX(Definitions_ProdLang!$I$3:$K$75,MATCH(Z$4,Definitions_ProdLang!$B$3:$B$75,0),MATCH(LangChoice,Definitions_ProdLang!$I$2:$K$2,0)) & ")" -> Oil products (kt) | AQ2: =NATGAS&CHAR(10) & "("&INDEX(Definitions_ProdLang!$I$3:$K$75,MATCH(AQ$4,Definitions_ProdLang!$B$3:$B$75,0),MATCH(LangChoice,Definitions_ProdLang!$I$2:$K$2,0)) & ")" -> Natural gas (TJ-gross) | AR2: =HLOOKUP(LangChoice,Definitions_ProdLang!$C$2:$E$75,Definitions_ProdLang!$A49+1,FALSE) -> Biofuels and waste | BC2: =HLOOKUP(LangChoice,Definitions_ProdLang!$C$2:$E$75,Definitions_ProdLang!$A61+1,FALSE) -> Electricity and heat
A3: =CountryName &", "&DataYear -> Statisland, 2023 | C3: =ANTCOAL -> Anthracite | D3: =COKCOAL -> Coking coal | E3: =BITCOAL -> Other bituminous coal | F3: =SUBCOAL -> Sub-bituminous coal | G3: =LIGNITE -> Lignite | H3: =PATFUEL -> Patent fuel | I3: =OVENCOKE -> Coke oven coke | J3: =GASCOKE -> Gas coke | K3: =COALTAR -> Coal tar | L3: =BKB -> BKB (Brown coal briquettes) | M3: =GASWKSGS -> Gas works gas | N3: =COKEOVGS -> Coke oven gas | O3: =BLFURGS -> Blast furnace gas | P3: =OGASES -> Other recovered gases | Q3: =MANGAS -> Elec/heat output from non-spec. manufactured gases | U3: =CRUDEOIL -> Crude oil | V3: =NGL -> Natural gas liquids (NGL) | W3: =REFFEEDS -> Refinery feedstocks | X3: =ADDITIVE -> Additives/ blending components | Y3: =NONCRUDE -> Other hydro-carbons | Z3: =REFINGAS -> Refinery gas | AA3: =ETHANE -> Ethane | AB3: =LPG -> Liquefied petroleum gases (LPG) | AC3: =NONBIOGASO -> Motor gasoline excl. biofuels | AD3: =AVGAS -> Aviation gasoline | AE3: =JETGAS -> Gasoline type jet fuel | AF3: =NONBIOJETK -> Kerosene type jet fuel excl. biofuels | AG3: =OTHKERO -> Other kerosene | AH3: =NONBIODIES -> Gas/diesel oil excluding biofuels | AI3: =RESFUEL -> Fuel oil | AJ3: =NAPHTHA -> Naphtha | AK3: =WHITESP -> White spirit & SBP | AL3: =LUBRIC -> Lubricants | AM3: =BITUMEN -> Bitumen | AN3: =PARWAX -> Paraffin waxes | AO3: =PETCOKE -> Petroleum coke | AP3: =ONONSPEC -> Non-specified oil products | AR3: =INDWASTE&CHAR(10) & "("&INDEX(Definitions_ProdLang!$I$3:$K$75,MATCH(AR$4,Definitions_ProdLang!$B$3:$B$75,0),MATCH(LangChoice,Definitions_ProdLang!$I$2:$K$2,0)) & ")" -> Industrial waste (TJ-net) | AS3: =MUNWASTER&CHAR(10) & "("&INDEX(Definitions_ProdLang!$I$3:$K$75,MATCH(AS$4,Definitions_ProdLang!$B$3:$B$75,0),MATCH(LangChoice,Definitions_ProdLang!$I$2:$K$2,0)) & ")" -> Municipal waste (renewable) (TJ-net) | AT3: =MUNWASTEN&CHAR(10) & "("&INDEX(Definitions_ProdLang!$I$3:$K$75,MATCH(AT$4,Definitions_ProdLang!$B$3:$B$75,0),MATCH(LangChoice,Definitions_ProdLang!$I$2:$K$2,0)) & ")" -> Municipal waste (non-renewable) (TJ-net) | AU3: =PRIMSBIO&CHAR(10) & "("&INDEX(Definitions_ProdLang!$I$3:$K$75,MATCH(AU$4,Definitions_ProdLang!$B$3:$B$75,0),MATCH(LangChoice,Definitions_ProdLang!$I$2:$K$2,0)) & ")" -> Primary solid biofuels (TJ-net) | AV3: =BIOGASES&CHAR(10) & "("&INDEX(Definitions_ProdLang!$I$3:$K$75,MATCH(AV$4,Definitions_ProdLang!$B$3:$B$75,0),MATCH(LangChoice,Definitions_ProdLang!$I$2:$K$2,0)) & ")" -> Biogases (TJ-net) | AW3: =BIOGASOL&CHAR(10) & "("&INDEX(Definitions_ProdLang!$I$3:$K$75,MATCH(AW$4,Definitions_ProdLang!$B$3:$B$75,0),MATCH(LangChoice,Definitions_ProdLang!$I$2:$K$2,0)) & ")" -> Biogasoline (kt) | AX3: =BIOJETKERO&CHAR(10) & "("&INDEX(Definitions_ProdLang!$I$3:$K$75,MATCH(AX$4,Definitions_ProdLang!$B$3:$B$75,0),MATCH(LangChoice,Definitions_ProdLang!$I$2:$K$2,0)) & ")" -> Bio jet kerosene (kt) | AY3: =BIODIESEL&CHAR(10) & "("&INDEX(Definitions_ProdLang!$I$3:$K$75,MATCH(AY$4,Definitions_ProdLang!$B$3:$B$75,0),MATCH(LangChoice,Definitions_ProdLang!$I$2:$K$2,0)) & ")" -> Biodiesels (kt) | AZ3: =OBIOLIQ&CHAR(10) & "("&INDEX(Definitions_ProdLang!$I$3:$K$75,MATCH(AZ$4,Definitions_ProdLang!$B$3:$B$75,0),MATCH(LangChoice,Definitions_ProdLang!$I$2:$K$2,0)) & ")" -> Other liquid biofuels (kt) | BA3: =RENEWNS&CHAR(10) & "("&INDEX(Definitions_ProdLang!$I$3:$K$75,MATCH(BA$4,Definitions_ProdLang!$B$3:$B$75,0),MATCH(LangChoice,Definitions_ProdLang!$I$2:$K$2,0)) & ")" -> Non-specified primary biofuels/ waste (TJ-net) | BB3: =CHARCOAL&CHAR(10) & "("&INDEX(Definitions_ProdLang!$I$3:$K$75,MATCH(BB$4,Definitions_ProdLang!$B$3:$B$75,0),MATCH(LangChoice,Definitions_ProdLang!$I$2:$K$2,0)) & ")" -> Charcoal (kt) | BC3: =NUCLEAR&CHAR(10) & "("&INDEX(Definitions_ProdLang!$I$3:$K$75,MATCH(BC$4,Definitions_ProdLang!$B$3:$B$75,0),MATCH(LangChoice,Definitions_ProdLang!$I$2:$K$2,0)) & ")" -> Nuclear (GWh) | BD3: =HYDRO&CHAR(10) & "("&INDEX(Definitions_ProdLang!$I$3:$K$75,MATCH(BD$4,Definitions_ProdLang!$B$3:$B$75,0),MATCH(LangChoice,Definitions_ProdLang!$I$2:$K$2,0)) & ")" -> Hydro (GWh) | BE3: =GEOTHERM&CHAR(10) & "("&INDEX(Definitions_ProdLang!$I$3:$K$75,MATCH(BE$4,Definitions_ProdLang!$B$3:$B$75,0),MATCH(LangChoice,Definitions_ProdLang!$I$2:$K$2,0)) & ")" -> Geothermal (TJ) | BF3: =SOLARPV&CHAR(10) & "("&INDEX(Definitions_ProdLang!$I$3:$K$75,MATCH(BF$4,Definitions_ProdLang!$B$3:$B$75,0),MATCH(LangChoice,Definitions_ProdLang!$I$2:$K$2,0)) & ")" -> Solar photovoltaic (GWh) | BG3: =SOLARTH&CHAR(10) & "("&INDEX(Definitions_ProdLang!$I$3:$K$75,MATCH(BG$4,Definitions_ProdLang!$B$3:$B$75,0),MATCH(LangChoice,Definitions_ProdLang!$I$2:$K$2,0)) & ")" -> Solar thermal (TJ) | BH3: =TIDE&CHAR(10) & "("&INDEX(Definitions_ProdLang!$I$3:$K$75,MATCH(BH$4,Definitions_ProdLang!$B$3:$B$75,0),MATCH(LangChoice,Definitions_ProdLang!$I$2:$K$2,0)) & ")" -> Tide/ wave/ ocean (GWh) | BI3: =WIND&CHAR(10) & "("&INDEX(Definitions_ProdLang!$I$3:$K$75,MATCH(BI$4,Definitions_ProdLang!$B$3:$B$75,0),MATCH(LangChoice,Definitions_ProdLang!$I$2:$K$2,0)) & ")" -> Wind (GWh) | BJ3: =HEATPUMP&CHAR(10) & "("&INDEX(Definitions_ProdLang!$I$3:$K$75,MATCH(BJ$4,Definitions_ProdLang!$B$3:$B$75,0),MATCH(LangChoice,Definitions_ProdLang!$I$2:$K$2,0)) & ")" -> Heat pumps (TJ) | BK3: =BOILER&CHAR(10) & "("&INDEX(Definitions_ProdLang!$I$3:$K$75,MATCH(BK$4,Definitions_ProdLang!$B$3:$B$75,0),MATCH(LangChoice,Definitions_ProdLang!$I$2:$K$2,0)) & ")" -> Electric boilers (TJ) | BL3: =CHEMHEAT&CHAR(10) & "("&INDEX(Definitions_ProdLang!$I$3:$K$75,MATCH(BL$4,Definitions_ProdLang!$B$3:$B$75,0),MATCH(LangChoice,Definitions_ProdLang!$I$2:$K$2,0)) & ")" -> Heat from chemical sources (TJ) | BM3: =OTHER&CHAR(10) & "("&INDEX(Definitions_ProdLang!$I$3:$K$75,MATCH(BM$4,Definitions_ProdLang!$B$3:$B$75,0),MATCH(LangChoice,Definitions_ProdLang!$I$2:$K$2,0)) & ")" -> Other sources (GWh) | BN3: =ELECTR&CHAR(10) & "("&INDEX(Definitions_ProdLang!$I$3:$K$75,MATCH(BN$4,Definitions_ProdLang!$B$3:$B$75,0),MATCH(LangChoice,Definitions_ProdLang!$I$2:$K$2,0)) & ")" -> Electricity (GWh) | BO3: =HEAT&CHAR(10) & "("&INDEX(Definitions_ProdLang!$I$3:$K$75,MATCH(BO$4,Definitions_ProdLang!$B$3:$B$75,0),MATCH(LangChoice,Definitions_ProdLang!$I$2:$K$2,0)) & ")" -> Heat (TJ) | BP3: =HEATNS& " ("&INDEX(Definitions_ProdLang!$I$3:$K$75,MATCH(BP$4,Definitions_ProdLang!$B$3:$B$75,0),MATCH(LangChoice,Definitions_ProdLang!$I$2:$K$2,0)) & ")" -> Heat output from non-specified combustible fuels (TJ)
B4: SHORT NAMES | C4: ANTCOAL | D4: COKCOAL | E4: BITCOAL | F4: SUBCOAL | G4: LIGNITE | H4: PATFUEL | I4: OVENCOKE | J4: GASCOKE | K4: COALTAR | L4: BKB | M4: GASWKSGS | N4: COKEOVGS | O4: BLFURGS | P4: OGASES | Q4: MANGAS | R4: PEAT | S4: PEATPROD | T4: OILSHALE | U4: CRUDEOIL | V4: NGL | W4: REFFEEDS | X4: ADDITIVE | Y4: NONCRUDE | Z4: REFINGAS | AA4: ETHANE | AB4: LPG | AC4: NONBIOGASO | AD4: AVGAS | AE4: JETGAS | AF4: NONBIOJETK | AG4: OTHKERO | AH4: NONBIODIES | AI4: RESFUEL | AJ4: NAPHTHA | AK4: WHITESP | AL4: LUBRIC | AM4: BITUMEN | AN4: PARWAX | AO4: PETCOKE | AP4: ONONSPEC | AQ4: NATGAS | AR4: INDWASTE | AS4: MUNWASTER | AT4: MUNWASTEN | AU4: PRIMSBIO | AV4: BIOGASES | AW4: BIOGASOL | AX4: BIOJETKERO | AY4: BIODIESEL | AZ4: OBIOLIQ | BA4: RENEWNS | BB4: CHARCOAL | BC4: NUCLEAR | BD4: HYDRO | BE4: GEOTHERM | BF4: SOLARPV | BG4: SOLARTH | BH4: TIDE | BI4: WIND | BJ4: HEATPUMP | BK4: BOILER | BL4: CHEMHEAT | BM4: OTHER | BN4: ELECTR | BO4: HEAT | BP4: HEATNS
A5: =INDPROD -> Production | B5: INDPROD | C5: 0 | D5: 0 | E5: 0 | F5: 0 | G5: 0 | H5: 0 | I5: 0 | J5: 0 | K5: 0 | L5: 0 | M5: 0 | N5: 0 | O5: 0 | P5: 0 | Q5: 0 | R5: 0 | S5: 0 | T5: 0 | U5: 1100 | V5: 0 | W5: 0 | X5: 0 | Y5: 0 | Z5: 0 | AA5: 0 | AB5: 0 | AC5: 0 | AD5: 0 | AE5: 0 | AF5: 0 | AG5: 0 | AH5: 500 | AI5: 0 | AJ5: 0 | AK5: 0 | AL5: 0 | AM5: 0 | AN5: 0 | AO5: 0 | AP5: 0 | AQ5: 0 | AR5: 0 | AS5: 0 | AT5: 0 | AU5: 62.5 | AV5: 0 | AW5: 0 | AX5: 0 | AY5: 1.5 | AZ5: 0 | BA5: 0 | BB5: 0 | BC5: 0 | BD5: 0 | BE5: 0 | BF5: 0 | BG5: 0 | BH5: 0 | BI5: 0 | BJ5: 0 | BK5: 0 | BL5: 0 | BM5: 0 | BN5: 10499 | BO5: 0 | BP5: 0
A6: =HLOOKUP(LangChoice,Definitions_FlowLang!$C$2:$E$112,MATCH($B6,Definitions_FlowLang!$B$2:$B$112,0),FALSE) -> From other sources - coal | B6: OSCOAL | C6: 0 | D6: 0 | E6: 0 | F6: 0 | G6: 0 | H6: 0 | I6: 0 | J6: 0 | K6: 0 | L6: 0 | M6: 0 | N6: 0 | O6: 0 | P6: 0 | Q6: 0 | R6: 0 | S6: 0 | T6: 0 | U6: 0 | V6: 0 | W6: 0 | X6: 0 | Y6: 0 | Z6: 0 | AA6: 0 | AB6: 0 | AC6: 0 | AD6: 0 | AE6: 0 | AF6: 0 | AG6: 0 | AH6: 0 | AI6: 0 | AJ6: 0 | AK6: 0 | AL6: 0 | AM6: 0 | AN6: 0 | AO6: 0 | AP6: 0 | AQ6: 0 | AR6: 0 | AS6: 0 | AT6: 0 | AU6: 0 | AV6: 0 | AW6: 0 | AX6: 0 | AY6: 0 | AZ6: 0 | BA6: 0 | BB6: 0 | BC6: 0 | BD6: 0 | BE6: 0 | BF6: 0 | BG6: 0 | BH6: 0 | BI6: 0 | BJ6: 0 | BK6: 0 | BL6: 0 | BM6: 0 | BN6: 0 | BO6: 0 | BP6: 0
A7: =HLOOKUP(LangChoice,Definitions_FlowLang!$C$2:$E$112,MATCH($B7,Definitions_FlowLang!$B$2:$B$112,0),FALSE) -> From other sources - natural gas | B7: OSNATGAS | C7: 0 | D7: 0 | E7: 0 | F7: 0 | G7: 0 | H7: 0 | I7: 0 | J7: 0 | K7: 0 | L7: 0 | M7: 0 | N7: 0 | O7: 0 | P7: 0 | Q7: 0 | R7: 0 | S7: 0 | T7: 0 | U7: 0 | V7: 0 | W7: 0 | X7: 0 | Y7: 0 | Z7: 0 | AA7: 0 | AB7: 0 | AC7: 0 | AD7: 0 | AE7: 0 | AF7: 0 | AG7: 0 | AH7: 0 | AI7: 0 | AJ7: 0 | AK7: 0 | AL7: 0 | AM7: 0 | AN7: 0 | AO7: 0 | AP7: 0 | AQ7: 0 | AR7: 0 | AS7: 0 | AT7: 0 | AU7: 0 | AV7: 0 | AW7: 0 | AX7: 0 | AY7: 0 | AZ7: 0 | BA7: 0 | BB7: 0 | BC7: 0 | BD7: 0 | BE7: 0 | BF7: 0 | BG7: 0 | BH7: 0 | BI7: 0 | BJ7: 0 | BK7: 0 | BL7: 0 | BM7: 0 | BN7: 0 | BO7: 0 | BP7: 0
A8: =HLOOKUP(LangChoice,Definitions_FlowLang!$C$2:$E$112,MATCH($B8,Definitions_FlowLang!$B$2:$B$112,0),FALSE) -> From other sources - oil products | B8: OSOIL | C8: 0 | D8: 0 | E8: 0 | F8: 0 | G8: 0 | H8: 0 | I8: 0 | J8: 0 | K8: 0 | L8: 0 | M8: 0 | N8: 0 | O8: 0 | P8: 0 | Q8: 0 | R8: 0 | S8: 0 | T8: 0 | U8: 0 | V8: 0 | W8: 0 | X8: 0 | Y8: 0 | Z8: 0 | AA8: 0 | AB8: 0 | AC8: 0 | AD8: 0 | AE8: 0 | AF8: 0 | AG8: 0 | AH8: 0 | AI8: 0 | AJ8: 0 | AK8: 0 | AL8: 0 | AM8: 0 | AN8: 0 | AO8: 0 | AP8: 0 | AQ8: 0 | AR8: 0 | AS8: 0 | AT8: 0 | AU8: 0 | AV8: 0 | AW8: 0 | AX8: 0 | AY8: 0 | AZ8: 0 | BA8: 0 | BB8: 0 | BC8: 0 | BD8: 0 | BE8: 0 | BF8: 0 | BG8: 0 | BH8: 0 | BI8: 0 | BJ8: 0 | BK8: 0 | BL8: 0 | BM8: 0 | BN8: 0 | BO8: 0 | BP8: 0
A9: =HLOOKUP(LangChoice,Definitions_FlowLang!$C$2:$E$112,MATCH($B9,Definitions_FlowLang!$B$2:$B$112,0),FALSE) -> From other sources - renewables | B9: OSRENEW | C9: 0 | D9: 0 | E9: 0 | F9: 0 | G9: 0 | H9: 0 | I9: 0 | J9: 0 | K9: 0 | L9: 0 | M9: 0 | N9: 0 | O9: 0 | P9: 0 | Q9: 0 | R9: 0 | S9: 0 | T9: 0 | U9: 0 | V9: 0 | W9: 0 | X9: 0 | Y9: 0 | Z9: 0 | AA9: 0 | AB9: 0 | AC9: 0 | AD9: 0 | AE9: 0 | AF9: 0 | AG9: 0 | AH9: 0 | AI9: 0 | AJ9: 0 | AK9: 0 | AL9: 0 | AM9: 0 | AN9: 0 | AO9: 0 | AP9: 0 | AQ9: 0 | AR9: 0 | AS9: 0 | AT9: 0 | AU9: 0 | AV9: 0 | AW9: 0 | AX9: 0 | AY9: 0 | AZ9: 0 | BA9: 0 | BB9: 0 | BC9: 0 | BD9: 0 | BE9: 0 | BF9: 0 | BG9: 0 | BH9: 0 | BI9: 0 | BJ9: 0 | BK9: 0 | BL9: 0 | BM9: 0 | BN9: 0 | BO9: 0 | BP9: 0
A10: =HLOOKUP(LangChoice,Definitions_FlowLang!$C$2:$E$112,MATCH($B10,Definitions_FlowLang!$B$2:$B$112,0),FALSE) -> From other sources - non-specified | B10: OSNONSPEC | C10: 0 | D10: 0 | E10: 0 | F10: 0 | G10: 0 | H10: 0 | I10: 0 | J10: 0 | K10: 0 | L10: 0 | M10: 0 | N10: 0 | O10: 0 | P10: 0 | Q10: 0 | R10: 0 | S10: 0 | T10: 0 | U10: 0 | V10: 0 | W10: 0 | X10: 0 | Y10: 0 | Z10: 0 | AA10: 0 | AB10: 0 | AC10: 0 | AD10: 0 | AE10: 0 | AF10: 0 | AG10: 0 | AH10: 0 | AI10: 0 | AJ10: 0 | AK10: 0 | AL10: 0 | AM10: 0 | AN10: 0 | AO10: 0 | AP10: 0 | AQ10: 0 | AR10: 0 | AS10: 0 | AT10: 0 | AU10: 0 | AV10: 0 | AW10: 0 | AX10: 0 | AY10: 0 | AZ10: 0 | BA10: 0 | BB10: 0 | BC10: 0 | BD10: 0 | BE10: 0 | BF10: 0 | BG10: 0 | BH10: 0 | BI10: 0 | BJ10: 0 | BK10: 0 | BL10: 0 | BM10: 0 | BN10: 0 | BO10: 0 | BP10: 0
A11: =IMPORTS -> Imports | B11: IMPORTS | C11: 0 | D11: 0 | E11: 0 | F11: 0 | G11: 0 | H11: 0 | I11: 0 | J11: 0 | K11: 0 | L11: 0 | M11: 0 | N11: 0 | O11: 0 | P11: 0 | Q11: 0 | R11: 0 | S11: 0 | T11: 0 | U11: 0 | V11: 0 | W11: 0 | X11: 0 | Y11: 0 | Z11: 0 | AA11: 0 | AB11: 0 | AC11: 0 | AD11: 0 | AE11: 0 | AF11: 0 | AG11: 0 | AH11: 2900 | AI11: 0 | AJ11: 0 | AK11: 0 | AL11: 0 | AM11: 0 | AN11: 0 | AO11: 0 | AP11: 0 | AQ11: 0 | AR11: 0 | AS11: 0 | AT11: 0 | AU11: 0 | AV11: 0 | AW11: 0 | AX11: 0 | AY11: 0 | AZ11: 0 | BA11: 0 | BB11: 0 | BC11: 0 | BD11: 0 | BE11: 0 | BF11: 0 | BG11: 0 | BH11: 0 | BI11: 0 | BJ11: 0 | BK11: 0 | BL11: 0 | BM11: 0 | BN11: 45 | BO11: 0 | BP11: 0
A12: =EXPORTS -> Exports | B12: EXPORTS | C12: 0 | D12: 0 | E12: 0 | F12: 0 | G12: 0 | H12: 0 | I12: 0 | J12: 0 | K12: 0 | L12: 0 | M12: 0 | N12: 0 | O12: 0 | P12: 0 | Q12: 0 | R12: 0 | S12: 0 | T12: 0 | U12: 700 | V12: 0 | W12: 0 | X12: 0 | Y12: 0 | Z12: 0 | AA12: 0 | AB12: 0 | AC12: 0 | AD12: 0 | AE12: 0 | AF12: 0 | AG12: 0 | AH12: 0 | AI12: 0 | AJ12: 0 | AK12: 0 | AL12: 0 | AM12: 0 | AN12: 0 | AO12: 0 | AP12: 0 | AQ12: 0 | AR12: 0 | AS12: 0 | AT12: 0 | AU12: 0 | AV12: 0 | AW12: 0 | AX12: 0 | AY12: 0 | AZ12: 0 | BA12: 0 | BB12: 0 | BC12: 0 | BD12: 0 | BE12: 0 | BF12: 0 | BG12: 0 | BH12: 0 | BI12: 0 | BJ12: 0 | BK12: 0 | BL12: 0 | BM12: 0 | BN12: -22 | BO12: 0 | BP12: 0
A13: =MARBUNK -> International marine bunkers | B13: MARBUNK | C13: 0 | D13: 0 | E13: 0 | F13: 0 | G13: 0 | H13: 0 | I13: 0 | J13: 0 | K13: 0 | L13: 0 | M13: 0 | N13: 0 | O13: 0 | P13: 0 | Q13: 0 | R13: 0 | S13: 0 | T13: 0 | U13: 0 | V13: 0 | W13: 0 | X13: 0 | Y13: 0 | Z13: 0 | AA13: 0 | AB13: 0 | AC13: 0 | AD13: 0 | AE13: 0 | AF13: 0 | AG13: 0 | AH13: -40 | AI13: 0 | AJ13: 0 | AK13: 0 | AL13: 0 | AM13: 0 | AN13: 0 | AO13: 0 | AP13: 0 | AQ13: 0 | AR13: 0 | AS13: 0 | AT13: 0 | AU13: 0 | AV13: 0 | AW13: 0 | AX13: 0 | AY13: 0 | AZ13: 0 | BA13: 0 | BB13: 0 | BC13: 0 | BD13: 0 | BE13: 0 | BF13: 0 | BG13: 0 | BH13: 0 | BI13: 0 | BJ13: 0 | BK13: 0 | BL13: 0 | BM13: 0 | BN13: 0 | BO13: 0 | BP13: 0
A14: =AVBUNK -> International aviation bunkers | B14: AVBUNK | C14: 0 | D14: 0 | E14: 0 | F14: 0 | G14: 0 | H14: 0 | I14: 0 | J14: 0 | K14: 0 | L14: 0 | M14: 0 | N14: 0 | O14: 0 | P14: 0 | Q14: 0 | R14: 0 | S14: 0 | T14: 0 | U14: 0 | V14: 0 | W14: 0 | X14: 0 | Y14: 0 | Z14: 0 | AA14: 0 | AB14: 0 | AC14: 0 | AD14: 0 | AE14: 0 | AF14: 0 | AG14: 0 | AH14: 0 | AI14: 0 | AJ14: 0 | AK14: 0 | AL14: 0 | AM14: 0 | AN14: 0 | AO14: 0 | AP14: 0 | AQ14: 0 | AR14: 0 | AS14: 0 | AT14: 0 | AU14: 0 | AV14: 0 | AW14: 0 | AX14: 0 | AY14: 0 | AZ14: 0 | BA14: 0 | BB14: 0 | BC14: 0 | BD14: 0 | BE14: 0 | BF14: 0 | BG14: 0 | BH14: 0 | BI14: 0 | BJ14: 0 | BK14: 0 | BL14: 0 | BM14: 0 | BN14: 0 | BO14: 0 | BP14: 0
A15: =STOCKCHA -> Stock changes | B15: STOCKCHA | C15: 0 | D15: 0 | E15: 0 | F15: 0 | G15: 0 | H15: 0 | I15: 0 | J15: 0 | K15: 0 | L15: 0 | M15: 0 | N15: 0 | O15: 0 | P15: 0 | Q15: 0 | R15: 0 | S15: 0 | T15: 0 | U15: 120 | V15: 0 | W15: 0 | X15: 0 | Y15: 0 | Z15: 0 | AA15: 0 | AB15: 0 | AC15: 0 | AD15: 0 | AE15: 0 | AF15: 0 | AG15: 0 | AH15: -15 | AI15: 0 | AJ15: 0 | AK15: 0 | AL15: 0 | AM15: 0 | AN15: 0 | AO15: 0 | AP15: 0 | AQ15: 0 | AR15: 0 | AS15: 0 | AT15: 0 | AU15: 0 | AV15: 0 | AW15: 0 | AX15: 0 | AY15: 0 | AZ15: 0 | BA15: 0 | BB15: 0 | BC15: 0 | BD15: 0 | BE15: 0 | BF15: 0 | BG15: 0 | BH15: 0 | BI15: 0 | BJ15: 0 | BK15: 0 | BL15: 0 | BM15: 0 | BN15: 0 | BO15: 0 | BP15: 0
A16: =DOMSUP -> Domestic supply | B16: DOMSUP | C16: =SUM(C5:C15) -> 0 | D16: 0 | E16: 0 | F16: 0 | G16: 0 | H16: 0 | I16: 0 | J16: 0 | K16: 0 | L16: 0 | M16: 0 | N16: 0 | O16: 0 | P16: 0 | Q16: 0 | R16: 0 | S16: 0 | T16: 0 | U16: 1920 | V16: 0 | W16: 0 | X16: 0 | Y16: 0 | Z16: 0 | AA16: 0 | AB16: 0 | AC16: 0 | AD16: 0 | AE16: 0 | AF16: 0 | AG16: 0 | AH16: 3345 | AI16: =SUM(AI5:AI15) -> 0 | AJ16: 0 | AK16: 0 | AL16: 0 | AM16: 0 | AN16: 0 | AO16: 0 | AP16: 0 | AQ16: 0 | AR16: 0 | AS16: 0 | AT16: 0 | AU16: 62.5 | AV16: 0 | AW16: 0 | AX16: 0 | AY16: 1.5 | AZ16: 0 | BA16: 0 | BB16: =SUM(BB5:BB15) -> 0 | BC16: 0 | BD16: 0 | BE16: =SUM(BE5:BE15) -> 0 | BF16: 0 | BG16: =SUM(BG5:BG15) -> 0 | BH16: 0 | BI16: 0 | BJ16: 0 | BK16: 0 | BL16: 0 | BM16: 0 | BN16: =BN5+BN11+BN12 -> 10522 | BO16: =BO5+BO11+BO12 -> 0 | BP16: 0
A17: =TRANSFER -> Transfers | B17: TRANSFER | C17: 0 | D17: 0 | E17: 0 | F17: 0 | G17: 0 | H17: 0 | I17: 0 | J17: 0 | K17: 0 | L17: 0 | M17: 0 | N17: 0 | O17: 0 | P17: 0 | Q17: 0 | R17: 0 | S17: 0 | T17: 0 | U17: 0 | V17: 0 | W17: 0 | X17: 0 | Y17: 0 | Z17: 0 | AA17: 0 | AB17: 0 | AC17: 0 | AD17: 0 | AE17: 0 | AF17: 0 | AG17: 0 | AH17: 0 | AI17: 0 | AJ17: 0 | AK17: 0 | AL17: 0 | AM17: 0 | AN17: 0 | AO17: 0 | AP17: 0 | AQ17: 0 | AR17: 0 | AS17: 0 | AT17: 0 | AU17: 0 | AV17: 0 | AW17: 0 | AX17: 0 | AY17: 0 | AZ17: 0 | BA17: 0 | BB17: 0 | BC17: 0 | BD17: 0 | BE17: 0 | BF17: 0 | BG17: 0 | BH17: 0 | BI17: 0 | BJ17: 0 | BK17: 0 | BL17: 0 | BM17: 0 | BN17: 0 | BO17: 0 | BP17: 0
A18: =STATDIFF -> Statistical differences | B18: STATDIFF | C18: =C19+C41+C59+C60-(C16+C17) -> 0 | D18: =D19+D41+D59+D60-(D16+D17) -> 0 | E18: 0 | F18: 0 | G18: 0 | H18: 0 | I18: 0 | J18: 0 | K18: 0 | L18: 0 | M18: 0 | N18: 0 | O18: 0 | P18: 0 | Q18: 0 | R18: 0 | S18: 0 | T18: 0 | U18: -1405 | V18: 0 | W18: 0 | X18: 0 | Y18: 0 | Z18: 0 | AA18: 0 | AB18: 0 | AC18: 0 | AD18: 0 | AE18: 0 | AF18: 0 | AG18: 0 | AH18: -110 | AI18: 0 | AJ18: 0 | AK18: 0 | AL18: 0 | AM18: 0 | AN18: 0 | AO18: 0 | AP18: 0 | AQ18: 0 | AR18: 0 | AS18: 0 | AT18: 0 | AU18: 0 | AV18: 0 | AW18: 0 | AX18: 0 | AY18: 0 | AZ18: 0 | BA18: 0 | BB18: 0 | BC18: 0 | BD18: 0 | BE18: 0 | BF18: 0 | BG18: 0 | BH18: 0 | BI18: 0 | BJ18: 0 | BK18: 0 | BL18: 0 | BM18: 0 | BN18: 0 | BO18: 0 | BP18: 0
A19: =TOTTRANF -> Transformation processes | B19: TOTTRANF | C19: =SUM(C20:C40) -> 0 | D19: 0 | E19: 0 | F19: 0 | G19: 0 | H19: 0 | I19: 0 | J19: 0 | K19: 0 | L19: 0 | M19: 0 | N19: 0 | O19: 0 | P19: 0 | Q19: 0 | R19: 0 | S19: 0 | T19: 0 | U19: 515 | V19: 0 | W19: 0 | X19: 0 | Y19: 0 | Z19: 0 | AA19: 0 | AB19: 0 | AC19: 0 | AD19: 0 | AE19: 0 | AF19: 0 | AG19: 0 | AH19: 2700 | AI19: =SUM(AI20:AI40) -> 0 | AJ19: 0 | AK19: 0 | AL19: 0 | AM19: 0 | AN19: 0 | AO19: 0 | AP19: 0 | AQ19: 0 | AR19: 0 | AS19: 0 | AT19: 0 | AU19: 0 | AV19: 0 | AW19: 0 | AX19: 0 | AY19: 0 | AZ19: 0 | BA19: 0 | BB19: =SUM(BB20:BB40) -> 0 | BC19: 0 | BD19: 0 | BE19: =SUM(BE20:BE40) -> 0 | BF19: 0 | BG19: =SUM(BG20:BG40) -> 0 | BH19: 0 | BI19: 0 | BJ19: 0 | BK19: 0 | BL19: 0 | BM19: 0 | BN19: =SUM(BN20:BN40) -> 0 | BO19: =SUM(BO20:BO40) -> 0 | BP19: 0
A20: =MAINELEC -> Main activity electricity plants | B20: MAINELEC | C20: 0 | D20: 0 | E20: 0 | F20: 0 | G20: 0 | H20: 0 | I20: 0 | J20: 0 | K20: 0 | L20: 0 | M20: 0 | N20: 0 | O20: 0 | P20: 0 | Q20: 0 | R20: 0 | S20: 0 | T20: 0 | U20: 0 | V20: 0 | W20: 0 | X20: 0 | Y20: 0 | Z20: 0 | AA20: 0 | AB20: 0 | AC20: 0 | AD20: 0 | AE20: 0 | AF20: 0 | AG20: 0 | AH20: 2300 | AI20: 0 | AJ20: 0 | AK20: 0 | AL20: 0 | AM20: 0 | AN20: 0 | AO20: 0 | AP20: 0 | AQ20: 0 | AR20: 0 | AS20: 0 | AT20: 0 | AU20: 0 | AV20: 0 | AW20: 0 | AX20: 0 | AY20: 0 | AZ20: 0 | BA20: 0 | BB20: 0 | BC20: 0 | BD20: 0 | BE20: 0 | BF20: 0 | BG20: 0 | BH20: 0 | BI20: 0 | BJ20: 0 | BK20: 0 | BL20: 0 | BM20: 0 | BN20: 0 | BO20: 0 | BP20: 0
A21: =AUTOELEC -> Autoproducer electricity plants | B21: AUTOELEC | C21: 0 | D21: 0 | E21: 0 | F21: 0 | G21: 0 | H21: 0 | I21: 0 | J21: 0 | K21: 0 | L21: 0 | M21: 0 | N21: 0 | O21: 0 | P21: 0 | Q21: 0 | R21: 0 | S21: 0 | T21: 0 | U21: 0 | V21: 0 | W21: 0 | X21: 0 | Y21: 0 | Z21: 0 | AA21: 0 | AB21: 0 | AC21: 0 | AD21: 0 | AE21: 0 | AF21: 0 | AG21: 0 | AH21: 400 | AI21: 0 | AJ21: 0 | AK21: 0 | AL21: 0 | AM21: 0 | AN21: 0 | AO21: 0 | AP21: 0 | AQ21: 0 | AR21: 0 | AS21: 0 | AT21: 0 | AU21: 0 | AV21: 0 | AW21: 0 | AX21: 0 | AY21: 0 | AZ21: 0 | BA21: 0 | BB21: 0 | BC21: 0 | BD21: 0 | BE21: 0 | BF21: 0 | BG21: 0 | BH21: 0 | BI21: 0 | BJ21: 0 | BK21: 0 | BL21: 0 | BM21: 0 | BN21: 0 | BO21: 0 | BP21: 0
A22: =MAINCHP -> Main activity producer CHP plants | B22: MAINCHP | C22: 0 | D22: 0 | E22: 0 | F22: 0 | G22: 0 | H22: 0 | I22: 0 | J22: 0 | K22: 0 | L22: 0 | M22: 0 | N22: 0 | O22: 0 | P22: 0 | Q22: 0 | R22: 0 | S22: 0 | T22: 0 | U22: 0 | V22: 0 | W22: 0 | X22: 0 | Y22: 0 | Z22: 0 | AA22: 0 | AB22: 0 | AC22: 0 | AD22: 0 | AE22: 0 | AF22: 0 | AG22: 0 | AH22: 0 | AI22: 0 | AJ22: 0 | AK22: 0 | AL22: 0 | AM22: 0 | AN22: 0 | AO22: 0 | AP22: 0 | AQ22: 0 | AR22: 0 | AS22: 0 | AT22: 0 | AU22: 0 | AV22: 0 | AW22: 0 | AX22: 0 | AY22: 0 | AZ22: 0 | BA22: 0 | BB22: 0 | BC22: 0 | BD22: 0 | BE22: 0 | BF22: 0 | BG22: 0 | BH22: 0 | BI22: 0 | BJ22: 0 | BK22: 0 | BL22: 0 | BM22: 0 | BN22: 0 | BO22: 0 | BP22: 0
A23: =AUTOCHP -> Autoproducer CHP plants | B23: AUTOCHP | C23: 0 | D23: 0 | E23: 0 | F23: 0 | G23: 0 | H23: 0 | I23: 0 | J23: 0 | K23: 0 | L23: 0 | M23: 0 | N23: 0 | O23: 0 | P23: 0 | Q23: 0 | R23: 0 | S23: 0 | T23: 0 | U23: 0 | V23: 0 | W23: 0 | X23: 0 | Y23: 0 | Z23: 0 | AA23: 0 | AB23: 0 | AC23: 0 | AD23: 0 | AE23: 0 | AF23: 0 | AG23: 0 | AH23: 0 | AI23: 0 | AJ23: 0 | AK23: 0 | AL23: 0 | AM23: 0 | AN23: 0 | AO23: 0 | AP23: 0 | AQ23: 0 | AR23: 0 | AS23: 0 | AT23: 0 | AU23: 0 | AV23: 0 | AW23: 0 | AX23: 0 | AY23: 0 | AZ23: 0 | BA23: 0 | BB23: 0 | BC23: 0 | BD23: 0 | BE23: 0 | BF23: 0 | BG23: 0 | BH23: 0 | BI23: 0 | BJ23: 0 | BK23: 0 | BL23: 0 | BM23: 0 | BN23: 0 | BO23: 0 | BP23: 0
A24: =MAINHEAT -> Main activity producer heat plants | B24: MAINHEAT | C24: 0 | D24: 0 | E24: 0 | F24: 0 | G24: 0 | H24: 0 | I24: 0 | J24: 0 | K24: 0 | L24: 0 | M24: 0 | N24: 0 | O24: 0 | P24: 0 | Q24: 0 | R24: 0 | S24: 0 | T24: 0 | U24: 0 | V24: 0 | W24: 0 | X24: 0 | Y24: 0 | Z24: 0 | AA24: 0 | AB24: 0 | AC24: 0 | AD24: 0 | AE24: 0 | AF24: 0 | AG24: 0 | AH24: 0 | AI24: 0 | AJ24: 0 | AK24: 0 | AL24: 0 | AM24: 0 | AN24: 0 | AO24: 0 | AP24: 0 | AQ24: 0 | AR24: 0 | AS24: 0 | AT24: 0 | AU24: 0 | AV24: 0 | AW24: 0 | AX24: 0 | AY24: 0 | AZ24: 0 | BA24: 0 | BB24: 0 | BC24: 0 | BD24: 0 | BE24: 0 | BF24: 0 | BG24: 0 | BH24: 0 | BI24: 0 | BJ24: 0 | BK24: 0 | BL24: 0 | BM24: 0 | BN24: 0 | BO24: 0 | BP24: 0
A25: =AUTOHEAT -> Autoproducer heat plants | B25: AUTOHEAT | C25: 0 | D25: 0 | E25: 0 | F25: 0 | G25: 0 | H25: 0 | I25: 0 | J25: 0 | K25: 0 | L25: 0 | M25: 0 | N25: 0 | O25: 0 | P25: 0 | Q25: 0 | R25: 0 | S25: 0 | T25: 0 | U25: 0 | V25: 0 | W25: 0 | X25: 0 | Y25: 0 | Z25: 0 | AA25: 0 | AB25: 0 | AC25: 0 | AD25: 0 | AE25: 0 | AF25: 0 | AG25: 0 | AH25: 0 | AI25: 0 | AJ25: 0 | AK25: 0 | AL25: 0 | AM25: 0 | AN25: 0 | AO25: 0 | AP25: 0 | AQ25: 0 | AR25: 0 | AS25: 0 | AT25: 0 | AU25: 0 | AV25: 0 | AW25: 0 | AX25: 0 | AY25: 0 | AZ25: 0 | BA25: 0 | BB25: 0 | BC25: 0 | BD25: 0 | BE25: 0 | BF25: 0 | BG25: 0 | BH25: 0 | BI25: 0 | BJ25: 0 | BK25: 0 | BL25: 0 | BM25: 0 | BN25: 0 | BO25: 0 | BP25: 0
A26: =THEAT -> Heat pumps | B26: THEAT | C26: 0 | D26: 0 | E26: 0 | F26: 0 | G26: 0 | H26: 0 | I26: 0 | J26: 0 | K26: 0 | L26: 0 | M26: 0 | N26: 0 | O26: 0 | P26: 0 | Q26: 0 | R26: 0 | S26: 0 | T26: 0 | U26: 0 | V26: 0 | W26: 0 | X26: 0 | Y26: 0 | Z26: 0 | AA26: 0 | AB26: 0 | AC26: 0 | AD26: 0 | AE26: 0 | AF26: 0 | AG26: 0 | AH26: 0 | AI26: 0 | AJ26: 0 | AK26: 0 | AL26: 0 | AM26: 0 | AN26: 0 | AO26: 0 | AP26: 0 | AQ26: 0 | AR26: 0 | AS26: 0 | AT26: 0 | AU26: 0 | AV26: 0 | AW26: 0 | AX26: 0 | AY26: 0 | AZ26: 0 | BA26: 0 | BB26: 0 | BC26: 0 | BD26: 0 | BE26: 0 | BF26: 0 | BG26: 0 | BH26: 0 | BI26: 0 | BJ26: 0 | BK26: 0 | BL26: 0 | BM26: 0 | BN26: 0 | BO26: 0 | BP26: 0
A27: =TBOILER -> Electric boilers | B27: TBOILER | C27: 0 | D27: 0 | E27: 0 | F27: 0 | G27: 0 | H27: 0 | I27: 0 | J27: 0 | K27: 0 | L27: 0 | M27: 0 | N27: 0 | O27: 0 | P27: 0 | Q27: 0 | R27: 0 | S27: 0 | T27: 0 | U27: 0 | V27: 0 | W27: 0 | X27: 0 | Y27: 0 | Z27: 0 | AA27: 0 | AB27: 0 | AC27: 0 | AD27: 0 | AE27: 0 | AF27: 0 | AG27: 0 | AH27: 0 | AI27: 0 | AJ27: 0 | AK27: 0 | AL27: 0 | AM27: 0 | AN27: 0 | AO27: 0 | AP27: 0 | AQ27: 0 | AR27: 0 | AS27: 0 | AT27: 0 | AU27: 0 | AV27: 0 | AW27: 0 | AX27: 0 | AY27: 0 | AZ27: 0 | BA27: 0 | BB27: 0 | BC27: 0 | BD27: 0 | BE27: 0 | BF27: 0 | BG27: 0 | BH27: 0 | BI27: 0 | BJ27: 0 | BK27: 0 | BL27: 0 | BM27: 0 | BN27: 0 | BO27: 0 | BP27: 0
A28: =TELE -> Chemical heat for electricity production | B28: TELE | C28: 0 | D28: 0 | E28: 0 | F28: 0 | G28: 0 | H28: 0 | I28: 0 | J28: 0 | K28: 0 | L28: 0 | M28: 0 | N28: 0 | O28: 0 | P28: 0 | Q28: 0 | R28: 0 | S28: 0 | T28: 0 | U28: 0 | V28: 0 | W28: 0 | X28: 0 | Y28: 0 | Z28: 0 | AA28: 0 | AB28: 0 | AC28: 0 | AD28: 0 | AE28: 0 | AF28: 0 | AG28: 0 | AH28: 0 | AI28: 0 | AJ28: 0 | AK28: 0 | AL28: 0 | AM28: 0 | AN28: 0 | AO28: 0 | AP28: 0 | AQ28: 0 | AR28: 0 | AS28: 0 | AT28: 0 | AU28: 0 | AV28: 0 | AW28: 0 | AX28: 0 | AY28: 0 | AZ28: 0 | BA28: 0 | BB28: 0 | BC28: 0 | BD28: 0 | BE28: 0 | BF28: 0 | BG28: 0 | BH28: 0 | BI28: 0 | BJ28: 0 | BK28: 0 | BL28: 0 | BM28: 0 | BN28: 0 | BO28: 0 | BP28: 0
A29: =TPATFUEL -> Patent fuel plants | B29: TPATFUEL | C29: 0 | D29: 0 | E29: 0 | F29: 0 | G29: 0 | H29: 0 | I29: 0 | J29: 0 | K29: 0 | L29: 0 | M29: 0 | N29: 0 | O29: 0 | P29: 0 | Q29: 0 | R29: 0 | S29: 0 | T29: 0 | U29: 0 | V29: 0 | W29: 0 | X29: 0 | Y29: 0 | Z29: 0 | AA29: 0 | AB29: 0 | AC29: 0 | AD29: 0 | AE29: 0 | AF29: 0 | AG29: 0 | AH29: 0 | AI29: 0 | AJ29: 0 | AK29: 0 | AL29: 0 | AM29: 0 | AN29: 0 | AO29: 0 | AP29: 0 | AQ29: 0 | AR29: 0 | AS29: 0 | AT29: 0 | AU29: 0 | AV29: 0 | AW29: 0 | AX29: 0 | AY29: 0 | AZ29: 0 | BA29: 0 | BB29: 0 | BC29: 0 | BD29: 0 | BE29: 0 | BF29: 0 | BG29: 0 | BH29: 0 | BI29: 0 | BJ29: 0 | BK29: 0 | BL29: 0 | BM29: 0 | BN29: 0 | BO29: 0 | BP29: 0
A30: =TCOKEOVS -> Coke ovens | B30: TCOKEOVS | C30: 0 | D30: 0 | E30: 0 | F30: 0 | G30: 0 | H30: 0 | I30: 0 | J30: 0 | K30: 0 | L30: 0 | M30: 0 | N30: 0 | O30: 0 | P30: 0 | Q30: 0 | R30: 0 | S30: 0 | T30: 0 | U30: 0 | V30: 0 | W30: 0 | X30: 0 | Y30: 0 | Z30: 0 | AA30: 0 | AB30: 0 | AC30: 0 | AD30: 0 | AE30: 0 | AF30: 0 | AG30: 0 | AH30: 0 | AI30: 0 | AJ30: 0 | AK30: 0 | AL30: 0 | AM30: 0 | AN30: 0 | AO30: 0 | AP30: 0 | AQ30: 0 | AR30: 0 | AS30: 0 | AT30: 0 | AU30: 0 | AV30: 0 | AW30: 0 | AX30: 0 | AY30: 0 | AZ30: 0 | BA30: 0 | BB30: 0 | BC30: 0 | BD30: 0 | BE30: 0 | BF30: 0 | BG30: 0 | BH30: 0 | BI30: 0 | BJ30: 0 | BK30: 0 | BL30: 0 | BM30: 0 | BN30: 0 | BO30: 0 | BP30: 0
A31: =TGASWKS -> Gas works | B31: TGASWKS | C31: 0 | D31: 0 | E31: 0 | F31: 0 | G31: 0 | H31: 0 | I31: 0 | J31: 0 | K31: 0 | L31: 0 | M31: 0 | N31: 0 | O31: 0 | P31: 0 | Q31: 0 | R31: 0 | S31: 0 | T31: 0 | U31: 0 | V31: 0 | W31: 0 | X31: 0 | Y31: 0 | Z31: 0 | AA31: 0 | AB31: 0 | AC31: 0 | AD31: 0 | AE31: 0 | AF31: 0 | AG31: 0 | AH31: 0 | AI31: 0 | AJ31: 0 | AK31: 0 | AL31: 0 | AM31: 0 | AN31: 0 | AO31: 0 | AP31: 0 | AQ31: 0 | AR31: 0 | AS31: 0 | AT31: 0 | AU31: 0 | AV31: 0 | AW31: 0 | AX31: 0 | AY31: 0 | AZ31: 0 | BA31: 0 | BB31: 0 | BC31: 0 | BD31: 0 | BE31: 0 | BF31: 0 | BG31: 0 | BH31: 0 | BI31: 0 | BJ31: 0 | BK31: 0 | BL31: 0 | BM31: 0 | BN31: 0 | BO31: 0 | BP31: 0
A32: =TBLASTFUR -> Blast furnaces | B32: TBLASTFUR | C32: 0 | D32: 0 | E32: 0 | F32: 0 | G32: 0 | H32: 0 | I32: 0 | J32: 0 | K32: 0 | L32: 0 | M32: 0 | N32: 0 | O32: 0 | P32: 0 | Q32: 0 | R32: 0 | S32: 0 | T32: 0 | U32: 0 | V32: 0 | W32: 0 | X32: 0 | Y32: 0 | Z32: 0 | AA32: 0 | AB32: 0 | AC32: 0 | AD32: 0 | AE32: 0 | AF32: 0 | AG32: 0 | AH32: 0 | AI32: 0 | AJ32: 0 | AK32: 0 | AL32: 0 | AM32: 0 | AN32: 0 | AO32: 0 | AP32: 0 | AQ32: 0 | AR32: 0 | AS32: 0 | AT32: 0 | AU32: 0 | AV32: 0 | AW32: 0 | AX32: 0 | AY32: 0 | AZ32: 0 | BA32: 0 | BB32: 0 | BC32: 0 | BD32: 0 | BE32: 0 | BF32: 0 | BG32: 0 | BH32: 0 | BI32: 0 | BJ32: 0 | BK32: 0 | BL32: 0 | BM32: 0 | BN32: 0 | BO32: 0 | BP32: 0
A33: =TPETCHEM -> Petrochemical plants | B33: TPETCHEM | C33: 0 | D33: 0 | E33: 0 | F33: 0 | G33: 0 | H33: 0 | I33: 0 | J33: 0 | K33: 0 | L33: 0 | M33: 0 | N33: 0 | O33: 0 | P33: 0 | Q33: 0 | R33: 0 | S33: 0 | T33: 0 | U33: 0 | V33: 0 | W33: 0 | X33: 0 | Y33: 0 | Z33: 0 | AA33: 0 | AB33: 0 | AC33: 0 | AD33: 0 | AE33: 0 | AF33: 0 | AG33: 0 | AH33: 0 | AI33: 0 | AJ33: 0 | AK33: 0 | AL33: 0 | AM33: 0 | AN33: 0 | AO33: 0 | AP33: 0 | AQ33: 0 | AR33: 0 | AS33: 0 | AT33: 0 | AU33: 0 | AV33: 0 | AW33: 0 | AX33: 0 | AY33: 0 | AZ33: 0 | BA33: 0 | BB33: 0 | BC33: 0 | BD33: 0 | BE33: 0 | BF33: 0 | BG33: 0 | BH33: 0 | BI33: 0 | BJ33: 0 | BK33: 0 | BL33: 0 | BM33: 0 | BN33: 0 | BO33: 0 | BP33: 0
A34: =TBKB -> BKB / peat briquette plants | B34: TBKB | C34: 0 | D34: 0 | E34: 0 | F34: 0 | G34: 0 | H34: 0 | I34: 0 | J34: 0 | K34: 0 | L34: 0 | M34: 0 | N34: 0 | O34: 0 | P34: 0 | Q34: 0 | R34: 0 | S34: 0 | T34: 0 | U34: 0 | V34: 0 | W34: 0 | X34: 0 | Y34: 0 | Z34: 0 | AA34: 0 | AB34: 0 | AC34: 0 | AD34: 0 | AE34: 0 | AF34: 0 | AG34: 0 | AH34: 0 | AI34: 0 | AJ34: 0 | AK34: 0 | AL34: 0 | AM34: 0 | AN34: 0 | AO34: 0 | AP34: 0 | AQ34: 0 | AR34: 0 | AS34: 0 | AT34: 0 | AU34: 0 | AV34: 0 | AW34: 0 | AX34: 0 | AY34: 0 | AZ34: 0 | BA34: 0 | BB34: 0 | BC34: 0 | BD34: 0 | BE34: 0 | BF34: 0 | BG34: 0 | BH34: 0 | BI34: 0 | BJ34: 0 | BK34: 0 | BL34: 0 | BM34: 0 | BN34: 0 | BO34: 0 | BP34: 0
A35: =TREFINER -> Oil refineries | B35: TREFINER | C35: 0 | D35: 0 | E35: 0 | F35: 0 | G35: 0 | H35: 0 | I35: 0 | J35: 0 | K35: 0 | L35: 0 | M35: 0 | N35: 0 | O35: 0 | P35: 0 | Q35: 0 | R35: 0 | S35: 0 | T35: 0 | U35: 515 | V35: 0 | W35: 0 | X35: 0 | Y35: 0 | Z35: 0 | AA35: 0 | AB35: 0 | AC35: 0 | AD35: 0 | AE35: 0 | AF35: 0 | AG35: 0 | AH35: 0 | AI35: 0 | AJ35: 0 | AK35: 0 | AL35: 0 | AM35: 0 | AN35: 0 | AO35: 0 | AP35: 0 | AQ35: 0 | AR35: 0 | AS35: 0 | AT35: 0 | AU35: 0 | AV35: 0 | AW35: 0 | AX35: 0 | AY35: 0 | AZ35: 0 | BA35: 0 | BB35: 0 | BC35: 0 | BD35: 0 | BE35: 0 | BF35: 0 | BG35: 0 | BH35: 0 | BI35: 0 | BJ35: 0 | BK35: 0 | BL35: 0 | BM35: 0 | BN35: 0 | BO35: 0 | BP35: 0
A36: =TCOALLIQ -> Coal liquefaction plants | B36: TCOALLIQ | C36: 0 | D36: 0 | E36: 0 | F36: 0 | G36: 0 | H36: 0 | I36: 0 | J36: 0 | K36: 0 | L36: 0 | M36: 0 | N36: 0 | O36: 0 | P36: 0 | Q36: 0 | R36: 0 | S36: 0 | T36: 0 | U36: 0 | V36: 0 | W36: 0 | X36: 0 | Y36: 0 | Z36: 0 | AA36: 0 | AB36: 0 | AC36: 0 | AD36: 0 | AE36: 0 | AF36: 0 | AG36: 0 | AH36: 0 | AI36: 0 | AJ36: 0 | AK36: 0 | AL36: 0 | AM36: 0 | AN36: 0 | AO36: 0 | AP36: 0 | AQ36: 0 | AR36: 0 | AS36: 0 | AT36: 0 | AU36: 0 | AV36: 0 | AW36: 0 | AX36: 0 | AY36: 0 | AZ36: 0 | BA36: 0 | BB36: 0 | BC36: 0 | BD36: 0 | BE36: 0 | BF36: 0 | BG36: 0 | BH36: 0 | BI36: 0 | BJ36: 0 | BK36: 0 | BL36: 0 | BM36: 0 | BN36: 0 | BO36: 0 | BP36: 0
